Service Area,Service Division,Expense Type,Expense Code,Detailed Expense Type,Payment Date,Transaction Number,Amount Exc Vat,Supplier Name
Adults Wellbeing and Health,Commissioning inc Supporting People,Third Party Payments,478111,Purchase of Care,02-Apr-2013,2576257-APRIL2013,"1,110.55",REDACTED - PAYMENT TO INDIVIDUAL
Adults Wellbeing and Health,Commissioning inc Supporting People,Third Party Payments,478111,Purchase of Care,02-Apr-2013,2576513-APRIL2013,"1,265.55",REDACTED - PAYMENT TO INDIVIDUAL
Adults Wellbeing and Health,Head of Adults,Transport,230005,Contract Hire,02-Apr-2013,2576415-2378,"2,300.00",NIGHTINGALE COACHES.
Adults Wellbeing and Health,Head of Adults,Premises,125009,Rents,02-Apr-2013,2576379-SI-001873,"3,500.00",LEISUREWORKS.
Adults Wellbeing and Health,Head of Adults,Premises,125009,Rents,02-Apr-2013,2576374-271037,782.50,KNIGHT FRANK LLP.
Adults Wellbeing and Health,Head of Adults,Premises,125009,Rents,02-Apr-2013,2576525-230460,"5,971.75",WHITTLE JONES (GROUP) LTD.
Adults Wellbeing and Health,Head of Adults,Premises,125009,Rents,02-Apr-2013,2576340-140915,"2,687.08",HARLEY STREET INTERNATIONAL LTD.
Adults Wellbeing and Health,Head of Adults,Premises,150005,Apportioned Exps of Operational Blds,02-Apr-2013,2576464-106997,538.00,SANDERSON WEATHERALL LLP.
Adults Wellbeing and Health,Head of Adults,Premises,125009,Rents,02-Apr-2013,2576300-GLS,"4,601.31",DERWENTSIDE HOMES LTD.
Adults Wellbeing and Health,Social Inclusion,Supplies and Services,384199,Miscellaneous Expenses,02-Apr-2013,2576341-22032013,"35,000.00",HEALTH DIAGNOSTICS LTD.
Adults Wellbeing and Health,Social Inclusion,Supplies and Services,338099,Services,02-Apr-2013,2576239-262,"3,500.00",2D LTD.
Adults Wellbeing and Health,Social Inclusion,Supplies and Services,338099,Services,02-Apr-2013,2576274-2617,"3,500.00",CHESTER LE STREET & DISTRICT CVS.
Adults Wellbeing and Health,Social Inclusion,Supplies and Services,338099,Services,02-Apr-2013,2576311-5142,"3,500.00",EAST DURHAM TRUST.
Adults Wellbeing and Health,Social Inclusion,Supplies and Services,338099,Services,02-Apr-2013,2576439-11124/13,"3,500.00",PIONEERING CARE PARTNERSHIP.
Adults Wellbeing and Health,Social Inclusion,Supplies and Services,384199,Miscellaneous Expenses,02-Apr-2013,2576297-5864,"2,000.00",D & H WEBSTER.
Adults Wellbeing and Health,Social Inclusion,Supplies and Services,338027,Services,02-Apr-2013,2576516-0934,588.24,UNITE LTD.
Assistant Chief Executive,Partnerships & Community Engagement Div.,Transfer Payments,525030,Other,02-Apr-2013,2576352-GRANT,710.00,HUNSTANWORTH VILLAGE HALL ASSOCIATION.
Assistant Chief Executive,Partnerships & Community Engagement Div.,Supplies and Services,384086,Miscellaneous Expenses,02-Apr-2013,2576260-12NB-DVLY,"2,000.00",BLACKFYNE PANTHERS.
Children and Young Peoples Services,CYPS - Local Authority,Supplies and Services,332047,"Printing, Stationery and Gen Off Exps",02-Apr-2013,2576486-5722832,598.35,SUPPLIES TEAM LTD.
Children and Young Peoples Services,CYPS - Local Authority,Transfer Payments,510026,School Children,02-Apr-2013,2576444-EDS/SUS/059,"5,000.00",RAINBOW NURSERY LTD (MIDDLESTONE MOOR).
Children and Young Peoples Services,CYPS - Local Authority,Transfer Payments,510026,School Children,02-Apr-2013,2576504-EDS/SUS/060,"5,000.00",TM NURSERY ENTERPRISES LTD T/A JACK IN THE BOX DAYCARE.
Children and Young Peoples Services,CYPS - Local Authority,Supplies and Services,304259,Equipment and Materials,02-Apr-2013,2576453-P03814890101,515.75,ROMPA LTD.
Children and Young Peoples Services,CYPS - Local Authority,Transport,230005,Contract Hire,02-Apr-2013,2576328-791,945.00,GEM TRAVEL.
Children and Young Peoples Services,CYPS - Local Authority,Transfer Payments,510026,School Children,02-Apr-2013,2576350-AB,"1,485.60",HOWLETCH & SHOTTON CHILDCARE LTD.
Children and Young Peoples Services,CYPS - Local Authority,Transfer Payments,510026,School Children,02-Apr-2013,2576350-BEB,"2,659.88",HOWLETCH & SHOTTON CHILDCARE LTD.
Children and Young Peoples Services,CYPS - Local Authority,Transfer Payments,510026,School Children,02-Apr-2013,2576350-OC-DCATCH,"1,368.00",HOWLETCH & SHOTTON CHILDCARE LTD.
Children and Young Peoples Services,CYPS - Local Authority,Transfer Payments,510026,School Children,02-Apr-2013,2576444-FS-DCATCH,"1,368.00",RAINBOW NURSERY LTD (MIDDLESTONE MOOR).
Children and Young Peoples Services,CYPS - Local Authority,Transfer Payments,510026,School Children,02-Apr-2013,2576444-HR-DCATCH,519.96,RAINBOW NURSERY LTD (MIDDLESTONE MOOR).
Children and Young Peoples Services,CYPS - Local Authority,Supplies and Services,352001,Conference Expenses,02-Apr-2013,2576518-12209066-001,"3,900.00",UNIVERSITY OF TEESSIDE.
Children and Young Peoples Services,CYPS - Local Authority,Supplies and Services,304639,Equipment and Materials,02-Apr-2013,2576437-2590760057,"1,760.00",PHONAK UK LTD.
Children and Young Peoples Services,CYPS - Local Authority,Third Party Payments,425040,Rendered by Voluntary Organisations,02-Apr-2013,2576255-104305955,"3,412.17",BARNARDOS.
Children and Young Peoples Services,CYPS - Local Authority,Third Party Payments,425040,Rendered by Voluntary Organisations,02-Apr-2013,2576255-104305962,"3,972.03",BARNARDOS.
Children and Young Peoples Services,CYPS - Local Authority,Supplies and Services,338091,Services,02-Apr-2013,2576477-12028384,"4,740.00",SOUTH TYNESIDE COUNCIL.
Children and Young Peoples Services,CYPS - Local Authority,Supplies and Services,338045,Services,02-Apr-2013,2576270-103423,659.52,CARTER BROWN ASSOCIATES.
Children and Young Peoples Services,CYPS - Local Authority,Supplies and Services,338044,Services,02-Apr-2013,2576381-1042,721.81,LEXTOX.
Children and Young Peoples Services,CYPS - Local Authority,Transport,230005,Contract Hire,02-Apr-2013,2576296-3703-FRC,"6,669.21",CROFT BUSINESS SERVICES (UK) LTD T/A CROFT TAXIS.
Children and Young Peoples Services,CYPS - Local Authority,Transport,230005,Contract Hire,02-Apr-2013,2576316-YOU/016,630.00,ELLIOTTS OF TRIMDON.
Children and Young Peoples Services,CYPS - Local Authority,Transport,230005,Contract Hire,02-Apr-2013,2576316-YOU/017,588.00,ELLIOTTS OF TRIMDON.
Children and Young Peoples Services,CYPS - Local Authority,Transport,230005,Contract Hire,02-Apr-2013,2576386-1437,"1,040.00",LOCAL TRANSPORT LTD.
Children and Young Peoples Services,CYPS - Local Authority,Transport,230005,Contract Hire,02-Apr-2013,2576284-CLUB13011E,700.00,CLUBMAN CABS.
Children and Young Peoples Services,CYPS - Local Authority,Supplies and Services,384504,Miscellaneous Expenses,02-Apr-2013,2576448-02645,"1,044.54",RIAS RI ACCOMMODATION & SUPPORT LTD.
Children and Young Peoples Services,CYPS - Local Authority,Supplies and Services,384504,Miscellaneous Expenses,02-Apr-2013,2576448-02646,"1,044.54",RIAS RI ACCOMMODATION & SUPPORT LTD.
Children and Young Peoples Services,CYPS - Local Authority,Third Party Payments,440027,Other Third Party Payments,02-Apr-2013,2575715-866176,"1,177.05",REDACTED - PAYMENT TO INDIVIDUAL
Children and Young Peoples Services,CYPS - Local Authority,Third Party Payments,440028,Other Third Party Payments,02-Apr-2013,2575718-866390,874.38,REDACTED - PAYMENT TO INDIVIDUAL
Children and Young Peoples Services,CYPS - Local Authority,Third Party Payments,440027,Other Third Party Payments,02-Apr-2013,2575719-866278,"1,177.05",REDACTED - PAYMENT TO INDIVIDUAL
Children and Young Peoples Services,CYPS - Local Authority,Third Party Payments,440027,Other Third Party Payments,02-Apr-2013,2575747-866071,571.71,REDACTED - PAYMENT TO INDIVIDUAL
Children and Young Peoples Services,CYPS - Local Authority,Third Party Payments,440027,Other Third Party Payments,02-Apr-2013,2575779-866127,"1,647.87",REDACTED - PAYMENT TO INDIVIDUAL
Children and Young Peoples Services,CYPS - Local Authority,Third Party Payments,440027,Other Third Party Payments,02-Apr-2013,2575797-866226,706.23,REDACTED - PAYMENT TO INDIVIDUAL
Children and Young Peoples Services,CYPS - Local Authority,Third Party Payments,440027,Other Third Party Payments,02-Apr-2013,2575804-866289,874.38,REDACTED - PAYMENT TO INDIVIDUAL
Children and Young Peoples Services,CYPS - Local Authority,Third Party Payments,440027,Other Third Party Payments,02-Apr-2013,2575808-866159,"1,412.46",REDACTED - PAYMENT TO INDIVIDUAL
Children and Young Peoples Services,CYPS - Local Authority,Third Party Payments,440027,Other Third Party Payments,02-Apr-2013,2575812-866203,706.23,REDACTED - PAYMENT TO INDIVIDUAL
Children and Young Peoples Services,CYPS - Local Authority,Third Party Payments,440028,Other Third Party Payments,02-Apr-2013,2575813-866388,"1,143.42",REDACTED - PAYMENT TO INDIVIDUAL
Children and Young Peoples Services,CYPS - Local Authority,Third Party Payments,440029,Other Third Party Payments,02-Apr-2013,2575829-866062,"1,125.40",REDACTED - PAYMENT TO INDIVIDUAL
Children and Young Peoples Services,CYPS - Local Authority,Third Party Payments,440027,Other Third Party Payments,02-Apr-2013,2575857-866319,571.71,REDACTED - PAYMENT TO INDIVIDUAL
Children and Young Peoples Services,CYPS - Local Authority,Third Party Payments,440027,Other Third Party Payments,02-Apr-2013,2575871-866150,538.08,REDACTED - PAYMENT TO INDIVIDUAL
Children and Young Peoples Services,CYPS - Local Authority,Third Party Payments,440027,Other Third Party Payments,02-Apr-2013,2575907-866089,908.01,REDACTED - PAYMENT TO INDIVIDUAL
Children and Young Peoples Services,CYPS - Local Authority,Third Party Payments,440027,Other Third Party Payments,02-Apr-2013,2575913-866215,571.71,REDACTED - PAYMENT TO INDIVIDUAL
Children and Young Peoples Services,CYPS - Local Authority,Third Party Payments,440027,Other Third Party Payments,02-Apr-2013,2575933-866078,706.23,REDACTED - PAYMENT TO INDIVIDUAL
Children and Young Peoples Services,CYPS - Local Authority,Third Party Payments,440029,Other Third Party Payments,02-Apr-2013,2575939-866068,593.69,REDACTED - PAYMENT TO INDIVIDUAL
Children and Young Peoples Services,CYPS - Local Authority,Third Party Payments,440027,Other Third Party Payments,02-Apr-2013,2575954-866258,706.23,REDACTED - PAYMENT TO INDIVIDUAL
Children and Young Peoples Services,CYPS - Local Authority,Third Party Payments,440027,Other Third Party Payments,02-Apr-2013,2575984-866142,"1,177.05",REDACTED - PAYMENT TO INDIVIDUAL
Children and Young Peoples Services,CYPS - Local Authority,Third Party Payments,440028,Other Third Party Payments,02-Apr-2013,2575997-866396,538.08,REDACTED - PAYMENT TO INDIVIDUAL
Children and Young Peoples Services,CYPS - Local Authority,Third Party Payments,440027,Other Third Party Payments,02-Apr-2013,2576005-866076,706.23,REDACTED - PAYMENT TO INDIVIDUAL
Children and Young Peoples Services,CYPS - Local Authority,Third Party Payments,440028,Other Third Party Payments,02-Apr-2013,2576012-866391,941.64,REDACTED - PAYMENT TO INDIVIDUAL
Children and Young Peoples Services,CYPS - Local Authority,Third Party Payments,440027,Other Third Party Payments,02-Apr-2013,2576018-866252,"1,109.79",REDACTED - PAYMENT TO INDIVIDUAL
Children and Young Peoples Services,CYPS - Local Authority,Third Party Payments,440027,Other Third Party Payments,02-Apr-2013,2576022-866333,"1,647.87",REDACTED - PAYMENT TO INDIVIDUAL
Children and Young Peoples Services,CYPS - Local Authority,Third Party Payments,440027,Other Third Party Payments,02-Apr-2013,2576035-866317,"1,177.05",REDACTED - PAYMENT TO INDIVIDUAL
Children and Young Peoples Services,CYPS - Local Authority,Third Party Payments,440027,Other Third Party Payments,02-Apr-2013,2576041-866157,739.86,REDACTED - PAYMENT TO INDIVIDUAL
Children and Young Peoples Services,CYPS - Local Authority,Third Party Payments,440027,Other Third Party Payments,02-Apr-2013,2576044-866164,"1,177.05",REDACTED - PAYMENT TO INDIVIDUAL
Children and Young Peoples Services,CYPS - Local Authority,Third Party Payments,440027,Other Third Party Payments,02-Apr-2013,2576048-866236,706.23,REDACTED - PAYMENT TO INDIVIDUAL
Children and Young Peoples Services,CYPS - Local Authority,Third Party Payments,440027,Other Third Party Payments,02-Apr-2013,2576057-866359,"1,513.35",REDACTED - PAYMENT TO INDIVIDUAL
Children and Young Peoples Services,CYPS - Local Authority,Third Party Payments,440027,Other Third Party Payments,02-Apr-2013,2576068-866099,638.97,REDACTED - PAYMENT TO INDIVIDUAL
Children and Young Peoples Services,CYPS - Local Authority,Third Party Payments,440028,Other Third Party Payments,02-Apr-2013,2576072-866392,941.64,REDACTED - PAYMENT TO INDIVIDUAL
Children and Young Peoples Services,CYPS - Local Authority,Third Party Payments,440027,Other Third Party Payments,02-Apr-2013,2576090-866217,975.27,REDACTED - PAYMENT TO INDIVIDUAL
Children and Young Peoples Services,CYPS - Local Authority,Third Party Payments,440027,Other Third Party Payments,02-Apr-2013,2576098-866293,"1,109.79",REDACTED - PAYMENT TO INDIVIDUAL
Children and Young Peoples Services,CYPS - Local Authority,Third Party Payments,440028,Other Third Party Payments,02-Apr-2013,2576099-866393,672.60,REDACTED - PAYMENT TO INDIVIDUAL
Children and Young Peoples Services,CYPS - Local Authority,Third Party Payments,440027,Other Third Party Payments,02-Apr-2013,2576103-866092,874.38,REDACTED - PAYMENT TO INDIVIDUAL
Children and Young Peoples Services,CYPS - Local Authority,Third Party Payments,440027,Other Third Party Payments,02-Apr-2013,2576122-866151,706.23,REDACTED - PAYMENT TO INDIVIDUAL
Children and Young Peoples Services,CYPS - Local Authority,Third Party Payments,440027,Other Third Party Payments,02-Apr-2013,2576143-866266,571.71,REDACTED - PAYMENT TO INDIVIDUAL
Children and Young Peoples Services,CYPS - Local Authority,Third Party Payments,440028,Other Third Party Payments,02-Apr-2013,2576149-866401,874.38,REDACTED - PAYMENT TO INDIVIDUAL
Children and Young Peoples Services,CYPS - Local Authority,Third Party Payments,440027,Other Third Party Payments,02-Apr-2013,2576150-866283,"1,647.87",REDACTED - PAYMENT TO INDIVIDUAL
Children and Young Peoples Services,CYPS - Local Authority,Third Party Payments,440027,Other Third Party Payments,02-Apr-2013,2576153-866306,"1,177.05",REDACTED - PAYMENT TO INDIVIDUAL
Children and Young Peoples Services,CYPS - Local Authority,Third Party Payments,440029,Other Third Party Payments,02-Apr-2013,2576167-866058,"1,181.67",REDACTED - PAYMENT TO INDIVIDUAL
Children and Young Peoples Services,CYPS - Local Authority,Third Party Payments,440027,Other Third Party Payments,02-Apr-2013,2576202-866129,"1,177.05",REDACTED - PAYMENT TO INDIVIDUAL
Children and Young Peoples Services,CYPS - Local Authority,Third Party Payments,440027,Other Third Party Payments,02-Apr-2013,2576210-866091,706.23,REDACTED - PAYMENT TO INDIVIDUAL
Children and Young Peoples Services,CYPS - Local Authority,Third Party Payments,440027,Other Third Party Payments,02-Apr-2013,2576236-866138,"1,177.05",REDACTED - PAYMENT TO INDIVIDUAL
Children and Young Peoples Services,CYPS - Local Authority,Premises,150005,Apportioned Exps of Operational Blds,02-Apr-2013,2576262-D11759,982.71,BRADLEY HALL CHARTERED SURVEYORS CLIENT ACCOUNT.
Children and Young Peoples Services,CYPS - Local Authority,Premises,125009,Rents,02-Apr-2013,2576377-Q1-SUITE1/3/4,"9,806.00",LANGLEY MOOR B3 LTD.
Children and Young Peoples Services,CYPS - Local Authority,Premises,125009,Rents,02-Apr-2013,2576377-Q1-SUITE2A&B,"3,765.50",LANGLEY MOOR B3 LTD.
Children and Young Peoples Services,CYPS - Local Authority,Premises,125009,Rents,02-Apr-2013,2576377-Q1-SUITE5,"2,319.50",LANGLEY MOOR B3 LTD.
Children and Young Peoples Services,CYPS - Local Authority,Employees,080025,Agency Staff,02-Apr-2013,2576496-430021441,"1,940.30",TEES ESK & WEAR VALLEY NHS FOUNDATION TRUST.
Children and Young Peoples Services,CYPS - Local Authority,Employees,080025,Agency Staff,02-Apr-2013,2576496-430021775,"1,670.81",TEES ESK & WEAR VALLEY NHS FOUNDATION TRUST.
Children and Young Peoples Services,CYPS - Local Authority,Employees,080025,Agency Staff,02-Apr-2013,2576496-430023356,"1,616.91",TEES ESK & WEAR VALLEY NHS FOUNDATION TRUST.
Children and Young Peoples Services,CYPS - Local Authority,Transport,230005,Contract Hire,02-Apr-2013,2576284-CLUB13011D,"1,029.00",CLUBMAN CABS.
Children and Young Peoples Services,CYPS - Local Authority,Third Party Payments,440999,Other Third Party Payments,02-Apr-2013,2576291-SITRH/0005275,"1,056.69",COUNTY DURHAM HANDYPERSON SERVICE.
Children and Young Peoples Services,CYPS - Local Authority,Transport,230005,Contract Hire,02-Apr-2013,2576383-2831,522.00,LINCAB TAXIS.
Children and Young Peoples Services,CYPS - Local Authority,Employees,080025,Agency Staff,02-Apr-2013,2576496-430022552,808.46,TEES ESK & WEAR VALLEY NHS FOUNDATION TRUST.
Children and Young Peoples Services,CYPS - Local Authority,Employees,080025,Agency Staff,02-Apr-2013,2576496-430022845,"2,479.27",TEES ESK & WEAR VALLEY NHS FOUNDATION TRUST.
Children and Young Peoples Services,CYPS - Local Authority,Supplies and Services,340001,Postages,02-Apr-2013,2576456-9039173642,"47,571.12",ROYAL MAIL GROUP PLC.
Children and Young Peoples Services,CYPS - Local Authority,Supplies and Services,340001,Postages,02-Apr-2013,2576456-9042561820,"1,142.59",ROYAL MAIL GROUP PLC.
Children and Young Peoples Services,CYPS - Local Authority,Supplies and Services,338043,Services,02-Apr-2013,2576522-494009,808.50,WARD HADAWAY.
Children and Young Peoples Services,CYPS - Local Authority,Supplies and Services,364999,Grants to Voluntary Organisations,02-Apr-2013,2576276-GRANT,"2,500.00",CIRCLE CREW FOR CHANGE LTD.
Children and Young Peoples Services,Dedicated Schools Grant,Third Party Payments,425005,Rendered by Voluntary Organisations,02-Apr-2013,2576434-10667,"102,097.66",PERCY HEDLEY FOUNDATION.
Children and Young Peoples Services,Dedicated Schools Grant,Transport,230005,Contract Hire,02-Apr-2013,2576242-07/12.,"1,020.00",ADVANCE TRAVEL.
Children and Young Peoples Services,Dedicated Schools Grant,Transport,230005,Contract Hire,02-Apr-2013,2576305-0015,"1,420.00",DUNCAN G CUMMINGS T/A DC TAXIS.
Children and Young Peoples Services,Dedicated Schools Grant,Transport,230005,Contract Hire,02-Apr-2013,2576397-INV-7,782.00,MICHAEL COBB (T/A HAIL TAXIS).
Children and Young Peoples Services,Dedicated Schools Grant,Transport,230005,Contract Hire,02-Apr-2013,2576510-44,"1,560.00",TRIDENT TAXIS.
Corporate Resources,Financing- Resources,Supplies and Services,338099,Services,02-Apr-2013,2576370-7814,"1,535.18",KAIZEN CONSULTANTS.
Corporate Resources,Financing- Resources,Supplies and Services,338099,Services,02-Apr-2013,2576370-7817,"1,134.40",KAIZEN CONSULTANTS.
Corporate Resources,Financing- Resources,Supplies and Services,342053,Computers and Communications,02-Apr-2013,2576280-C/RB115454,"12,669.05",CIVICA UK LTD.
Corporate Resources,Financing- Resources,Supplies and Services,338099,Services,02-Apr-2013,2576370-7802,"3,610.31",KAIZEN CONSULTANTS.
Corporate Resources,Financing- Resources,Supplies and Services,338099,Services,02-Apr-2013,2576370-7816,"3,372.61",KAIZEN CONSULTANTS.
Corporate Resources,Human Resources Total,Supplies and Services,384999,Miscellaneous Expenses,02-Apr-2013,2576417-6737,"3,000.00",NORTH EAST REGIONAL EMPLOYERS ORGANISATION.
Corporate Resources,ICT Services incl. Design and Print,Supplies and Services,342051,Computers and Communications,02-Apr-2013,2576428-1399279,"76,767.40",ORACLE CORPORATION UK LTD.
Corporate Resources,ICT Services incl. Design and Print,Supplies and Services,340001,Postages,02-Apr-2013,2576456-9042482988,"11,385.41",ROYAL MAIL GROUP PLC.
Corporate Resources,ICT Services incl. Design and Print,Premises,125009,Rents,02-Apr-2013,2576262-D11849,"10,000.00",BRADLEY HALL CHARTERED SURVEYORS CLIENT ACCOUNT.
Corporate Resources,ICT Services incl. Design and Print,Intangible Assets,917003,Software capitalised implementation fees,02-Apr-2013,2576269-92882695,"4,000.00",CAPITA EDUCATION RESOURCING.
Neighbourhood Services,Direct Services,Supplies and Services,304221,Equipment and Materials,02-Apr-2013,2576331-639191,"2,301.15",GLASDON UK LTD.
Neighbourhood Services,Direct Services,Third Party Payments,430100,Rendered by Private Contractors,02-Apr-2013,2576256-16085212,858.00,BELL TRUCK SALES LTD.
Neighbourhood Services,Direct Services,Transport,230005,Contract Hire,02-Apr-2013,2576258-285086,900.00,BICKFORD TRUCK HIRE LTD.
Neighbourhood Services,Direct Services,Third Party Payments,430100,Rendered by Private Contractors,02-Apr-2013,2576256-46030003,"1,320.50",BELL TRUCK SALES LTD.
Neighbourhood Services,Direct Services,Third Party Payments,430100,Rendered by Private Contractors,02-Apr-2013,2576387-92926,"1,728.90",LONDONDERRY GARAGE LTD.
Neighbourhood Services,Direct Services,Transport,230710,Contract Hire,02-Apr-2013,2576515-53334,"5,800.00",UNILINK FINANCE LTD.
Neighbourhood Services,Direct Services,Third Party Payments,430100,Rendered by Private Contractors,02-Apr-2013,2576252-15973,568.00,AXLE WEIGHT TECHNOLOGY LTD.
Neighbourhood Services,Direct Services,Third Party Payments,430100,Rendered by Private Contractors,02-Apr-2013,2576347-48144,635.00,HOGARTH COACHWORKS LTD.
Neighbourhood Services,Direct Services,Third Party Payments,430100,Rendered by Private Contractors,02-Apr-2013,2576347-48435,"2,639.15",HOGARTH COACHWORKS LTD.
Neighbourhood Services,Direct Services,Third Party Payments,430100,Rendered by Private Contractors,02-Apr-2013,2576480-11600540,"1,401.21",SPRINGFIELD MOTOR GROUP.
Neighbourhood Services,Direct Services,Premises,125009,Rents,02-Apr-2013,2576322-98,"12,500.00",FINKLEGATE PROPERTIES LTD.
Neighbourhood Services,Direct Services,Premises,125009,Rents,02-Apr-2013,2576534-4598,"2,000.00",YOUNGS CHARTERED SURVEYORS.
Neighbourhood Services,Direct Services,Premises,125009,Rents,02-Apr-2013,2576411-BUS/60245,"2,029.19",NETWORK RAIL.
Neighbourhood Services,Direct Services,Premises,125009,Rents,02-Apr-2013,2576393-1303066,"18,967.50",MANDALE INVESTMENTS LTD.
Neighbourhood Services,Direct Services,Stock,926900,Stock in hand-Inventory system,02-Apr-2013,2576285-131329,612.00,COLAS LTD.
Neighbourhood Services,Direct Services,Stock,926900,Stock in hand-Inventory system,02-Apr-2013,2576371-1014,556.00,KBRO LTD.
Neighbourhood Services,Direct Services,Stock,926900,Stock in hand-Inventory system,02-Apr-2013,2576431-XL079223,971.40,PARK ELECTRICAL DISTRIBUTORS LTD.
Neighbourhood Services,Direct Services,Stock,926900,Stock in hand-Inventory system,02-Apr-2013,2576431-XL079885,767.00,PARK ELECTRICAL DISTRIBUTORS LTD.
Neighbourhood Services,Direct Services,Stock,926900,Stock in hand-Inventory system,02-Apr-2013,2576474-247898,999.84,SMITH BROS (CAER CONAN) WHOLESALE LTD.
Neighbourhood Services,Direct Services,Stock,926900,Stock in hand-Inventory system,02-Apr-2013,2576488-0663368,518.96,T CROSSLING & CO LTD.
Neighbourhood Services,Direct Services,Stock,926900,Stock in hand-Inventory system,02-Apr-2013,2576505-94885,"1,087.29",TOMMY WARDLE.
Neighbourhood Services,Direct Services,"Vehicles, Equipment, Furniture and Fittings",912541,Purchase-vehicles,02-Apr-2013,2576492-301138,"6,400.00",TC HARRISON JCB.
Neighbourhood Services,Direct Services,"Vehicles, Equipment, Furniture and Fittings",912541,Purchase-vehicles,02-Apr-2013,2576492-525967,"18,500.00",TC HARRISON JCB.
Neighbourhood Services,Direct Services,Debtors,930046,Debtor-leasing,02-Apr-2013,2576492-525968,"48,000.00",TC HARRISON JCB.
Neighbourhood Services,Direct Services,"Vehicles, Equipment, Furniture and Fittings",912541,Purchase-vehicles,02-Apr-2013,2576492-525969,"18,500.00",TC HARRISON JCB.
Neighbourhood Services,Direct Services,"Vehicles, Equipment, Furniture and Fittings",912541,Purchase-vehicles,02-Apr-2013,2576492-525970,"18,500.00",TC HARRISON JCB.
Neighbourhood Services,Direct Services,"Vehicles, Equipment, Furniture and Fittings",912541,Purchase-vehicles,02-Apr-2013,2576492-525971,"39,000.00",TC HARRISON JCB.
Neighbourhood Services,Direct Services,"Vehicles, Equipment, Furniture and Fittings",912541,Purchase-vehicles,02-Apr-2013,2576492-525972,"18,500.00",TC HARRISON JCB.
Neighbourhood Services,Direct Services,Third Party Payments,430100,Rendered by Private Contractors,02-Apr-2013,2576385-661,"1,651.00",LMC ELECTRICAL SERVICES T/A LMC ELECTRICAL & STAIRLIFT SERVICES LTD.
Neighbourhood Services,Direct Services,Supplies and Services,324117,Provisions,02-Apr-2013,2576263-31471531,550.52,BRAKE BROS FOODSERVICE LTD.
Neighbourhood Services,Direct Services,Supplies and Services,324117,Provisions,02-Apr-2013,2576263-31502857,685.62,BRAKE BROS FOODSERVICE LTD.
Neighbourhood Services,Direct Services,Supplies and Services,324117,Provisions,02-Apr-2013,2576264-6137387,748.98,BRAMBLES FOODS LTD.
Neighbourhood Services,Direct Services,Supplies and Services,324117,Provisions,02-Apr-2013,2576367-M80854,"2,440.45",JR HOLLAND FOOD SERVICES LTD.
Neighbourhood Services,Direct Services,Supplies and Services,324117,Provisions,02-Apr-2013,2576263-31526806,613.55,BRAKE BROS FOODSERVICE LTD.
Neighbourhood Services,Direct Services,Supplies and Services,324117,Provisions,02-Apr-2013,2576392-213283,"1,535.93",MALTON FOODS LTD.
Neighbourhood Services,"Environment,Health & Consumer Protection",Premises,106099,Centrally Controlled Rep and Maint,02-Apr-2013,2576286-JOB,775.00,COLIN JOBLING T/A RAINBOW INTERNATIONAL.
Neighbourhood Services,"Heritage, Culture & Libraries",Premises,125009,Rents,02-Apr-2013,2576262-D11660,"3,425.00",BRADLEY HALL CHARTERED SURVEYORS CLIENT ACCOUNT.
Neighbourhood Services,"Heritage, Culture & Libraries",Supplies and Services,312013,"Newspapers, Books and Periodicals",02-Apr-2013,2576250-3814083,519.69,ASKEWS & HOLTS LIBRARY SERVICES LTD.
Neighbourhood Services,"Heritage, Culture & Libraries",Supplies and Services,312013,"Newspapers, Books and Periodicals",02-Apr-2013,2576250-3814354,584.16,ASKEWS & HOLTS LIBRARY SERVICES LTD.
Neighbourhood Services,"Heritage, Culture & Libraries",Supplies and Services,384999,Miscellaneous Expenses,02-Apr-2013,2576465-110056,"131,928.00",SCIENCE MUSEUM GROUP ENTERPRISES LTD.
Neighbourhood Services,Technical Services,Third Party Payments,460350,Contract Payments,02-Apr-2013,2576251-771,"1,080.00",AWSM FARMS.
Neighbourhood Services,Technical Services,Third Party Payments,460350,Contract Payments,02-Apr-2013,2576329-14213,"1,015.00",GJ CONTRACTORS.
Neighbourhood Services,Technical Services,Third Party Payments,460350,Contract Payments,02-Apr-2013,2576351-SNOW,"7,317.50",HT DAVIES & PARTNERS.
Neighbourhood Services,Technical Services,Third Party Payments,460350,Contract Payments,02-Apr-2013,2576355-2015,"1,333.00",IAN C LIDDLE.
Neighbourhood Services,Technical Services,Third Party Payments,460350,Contract Payments,02-Apr-2013,2576360-5304263,876.50,JA GILSON (AGRICULTURAL CONTRACTORS) LTD.
Neighbourhood Services,Technical Services,Third Party Payments,460350,Contract Payments,02-Apr-2013,2576360-5304266,"2,234.25",JA GILSON (AGRICULTURAL CONTRACTORS) LTD.
Neighbourhood Services,Technical Services,Third Party Payments,460350,Contract Payments,02-Apr-2013,2576360-5304271,"2,099.25",JA GILSON (AGRICULTURAL CONTRACTORS) LTD.
Neighbourhood Services,Technical Services,Supplies and Services,304357,Equipment and Materials,02-Apr-2013,2576282-225760,800.00,CLEE HILL PLANT LTD.
Neighbourhood Services,Technical Services,Third Party Payments,430100,Rendered by Private Contractors,02-Apr-2013,2576336-20185,780.00,GRAB & DELIVER LTD.
Neighbourhood Services,Technical Services,Third Party Payments,430100,Rendered by Private Contractors,02-Apr-2013,2576336-20186,"1,560.00",GRAB & DELIVER LTD.
Neighbourhood Services,Technical Services,Supplies and Services,304358,Equipment and Materials,02-Apr-2013,2576359-1099,890.00,J & JG GILL & SONS LTD.
Neighbourhood Services,Technical Services,Supplies and Services,304358,Equipment and Materials,02-Apr-2013,2576359-1100,990.00,J & JG GILL & SONS LTD.
Neighbourhood Services,Technical Services,Supplies and Services,304358,Equipment and Materials,02-Apr-2013,2576365-13366,730.00,JOHN R BUTTERFIELD LTD.
Neighbourhood Services,Technical Services,Supplies and Services,304358,Equipment and Materials,02-Apr-2013,2576365-13578,712.80,JOHN R BUTTERFIELD LTD.
Neighbourhood Services,Technical Services,Supplies and Services,304358,Equipment and Materials,02-Apr-2013,2576373-750,629.25,KEVIN SNOWDON GROUNDWORKS LTD.
Neighbourhood Services,Technical Services,Supplies and Services,304358,Equipment and Materials,02-Apr-2013,2576388-659,"2,384.85",M & E & MR WALTON.
Neighbourhood Services,Technical Services,Supplies and Services,304221,Equipment and Materials,02-Apr-2013,2576396-ZBB0396987,"1,181.43",MARSHALLS MONO LTD.
Neighbourhood Services,Technical Services,Third Party Payments,430100,Rendered by Private Contractors,02-Apr-2013,2576408-2,"5,173.61",NEDCO CONTRACTS (NE) LTD.
Neighbourhood Services,Technical Services,Third Party Payments,430100,Rendered by Private Contractors,02-Apr-2013,2576441-123179,"7,266.00",PREMIER TRAFFIC MANAGEMENT LTD.
Neighbourhood Services,Technical Services,Third Party Payments,430100,Rendered by Private Contractors,02-Apr-2013,2576441-123624,958.10,PREMIER TRAFFIC MANAGEMENT LTD.
Neighbourhood Services,Technical Services,Third Party Payments,430100,Rendered by Private Contractors,02-Apr-2013,2576441-123690,958.10,PREMIER TRAFFIC MANAGEMENT LTD.
Neighbourhood Services,Technical Services,Supplies and Services,304221,Equipment and Materials,02-Apr-2013,2576442-050005,"8,791.03",PREMIER WASTE MANAGEMENT LTD.
Neighbourhood Services,Technical Services,Supplies and Services,304221,Equipment and Materials,02-Apr-2013,2576442-050007,"1,720.10",PREMIER WASTE MANAGEMENT LTD.
Neighbourhood Services,Technical Services,Supplies and Services,304221,Equipment and Materials,02-Apr-2013,2576442-050008,"7,443.23",PREMIER WASTE MANAGEMENT LTD.
Neighbourhood Services,Technical Services,Supplies and Services,304221,Equipment and Materials,02-Apr-2013,2576442-050114,"4,981.69",PREMIER WASTE MANAGEMENT LTD.
Neighbourhood Services,Technical Services,Supplies and Services,304221,Equipment and Materials,02-Apr-2013,2576442-050117,"3,498.97",PREMIER WASTE MANAGEMENT LTD.
Neighbourhood Services,Technical Services,Supplies and Services,304221,Equipment and Materials,02-Apr-2013,2576442-050190,"2,737.75",PREMIER WASTE MANAGEMENT LTD.
Neighbourhood Services,Technical Services,Supplies and Services,304221,Equipment and Materials,02-Apr-2013,2576442-050192,"4,142.31",PREMIER WASTE MANAGEMENT LTD.
Neighbourhood Services,Technical Services,Supplies and Services,304358,Equipment and Materials,02-Apr-2013,2576499-5577,565.25,TEWARD BROS LTD.
Neighbourhood Services,Technical Services,Fees,901002,Professional fees,02-Apr-2013,2576243-60216682,"1,886.00",AECOM LTD.
RED HRA,HRA Capital,Construction Work,908105,Construction work,02-Apr-2013,2576484-166306,"29,970.00",SUNTER LTD.
RED HRA,HRA Control Codes,Creditors,952184,Creditor-tenants contents insurance,02-Apr-2013,2576395-325664,"2,720.60",MARSH LTD UK.
Regeneration & Economic Development,Economic Development and Housing,Supplies and Services,384999,Miscellaneous Expenses,02-Apr-2013,2576461-SAA/12MARCH/13,"3,600.00",SAARANG.
Regeneration & Economic Development,Economic Development and Housing,Premises,120021,Energy Costs,02-Apr-2013,2576290-08088559,819.17,CORONA ENERGY RETAIL 2 LTD.
Regeneration & Economic Development,Economic Development and Housing,Premises,120021,Energy Costs,02-Apr-2013,2576290-08088550,"1,121.51",CORONA ENERGY RETAIL 2 LTD.
Regeneration & Economic Development,Economic Development and Housing,Supplies and Services,338066,Services,02-Apr-2013,2576273-DCC1218,"2,500.00",CHARLES MONCK & ASSOCIATES.
Regeneration & Economic Development,Economic Development and Housing,Supplies and Services,304337,Equipment and Materials,02-Apr-2013,2576467-1/12350,670.00,SEASALT LTD.
Regeneration & Economic Development,Economic Development and Housing,Supplies and Services,384199,Miscellaneous Expenses,02-Apr-2013,2576483-1554,500.00,STARK HARTLEY ATKINSON LTD.
Regeneration & Economic Development,Economic Development and Housing,Supplies and Services,384199,Miscellaneous Expenses,02-Apr-2013,2576253-49487,"2,992.00",AZTEC COLOUR PRINT NORTH EAST LTD.
Regeneration & Economic Development,Economic Development and Housing,Supplies and Services,384199,Miscellaneous Expenses,02-Apr-2013,2576421-6085,"2,376.00",NORTHERN PRINT DISTRIBUTION LTD.
Regeneration & Economic Development,Economic Development and Housing,Supplies and Services,338002,Services,02-Apr-2013,2576471-GRANT/865,"1,020.00",SHERBURN HILL COMMUNITY ASSOCIATION.
Regeneration & Economic Development,Economic Development and Housing,Premises,125009,Rents,02-Apr-2013,2576271-010313,"2,321.83",CDC ENTERPRISE AGENCY.
Regeneration & Economic Development,Economic Development and Housing,Fees,901002,Professional Fees,02-Apr-2013,2576321-82902/11,"2,192.50",FAIRHURST.
Regeneration & Economic Development,Economic Development and Housing,Other Expenses,914006,Tenants Allowances,02-Apr-2013,2576399-HOME/LOSS,"2,686.41",REDACTED - PAYMENT TO INDIVIDUAL
Regeneration & Economic Development,Economic Development and Housing,Fees,901002,Professional Fees,02-Apr-2013,2576364-EN-08,"400,139.35",JOHN GRAHAM CONSTRUCTION LTD.
Regeneration & Economic Development,Economic Development and Housing,Cap Exp on Grants & Other Financial Assistance (REFCUS),918401,Capital grants,02-Apr-2013,2576436-TBI-GRANT,"3,319.40",REDACTED - PAYMENT TO INDIVIDUAL
Regeneration & Economic Development,Economic Development and Housing,Cap Exp on Grants & Other Financial Assistance (REFCUS),918401,Capital grants,02-Apr-2013,2576356-BSG,"20,000.00",INFINITE LEARNING & DEVELOPMENT.
Regeneration & Economic Development,Economic Development and Housing,Cap Exp on Grants & Other Financial Assistance (REFCUS),918401,Capital grants,02-Apr-2013,2576343-BSG,"13,000.00",REDACTED - PAYMENT TO INDIVIDUAL
Regeneration & Economic Development,Economic Development and Housing,Construction Work,908105,Construction work,02-Apr-2013,2576473-INS3-DBC,"615,114.63",SIR ROBERT MCALPINE LTD.
Regeneration & Economic Development,Economic Development and Housing,Construction Work,908105,Construction work,02-Apr-2013,2576376-INV00246573,"4,290.00",LANES GROUP PLC.
Regeneration & Economic Development,Economic Development and Housing,Cap Exp on Grants & Other Financial Assistance (REFCUS),918401,Capital grants,02-Apr-2013,2576246-1398,"3,495.00",REDACTED - PAYMENT TO INDIVIDUAL
Regeneration & Economic Development,Economic Development and Housing,Cap Exp on Grants & Other Financial Assistance (REFCUS),918401,Capital grants,02-Apr-2013,2576293-106,"1,840.00",CRAIG PATTERSON T/A LET ME GET YOU WET.
Regeneration & Economic Development,Economic Development and Housing,Cap Exp on Grants & Other Financial Assistance (REFCUS),918401,Capital grants,02-Apr-2013,2576309-11769,"2,164.95",EASIBATHE LTD.
Regeneration & Economic Development,Economic Development and Housing,Cap Exp on Grants & Other Financial Assistance (REFCUS),918401,Capital grants,02-Apr-2013,2576309-12300,"1,987.43",EASIBATHE LTD.
Regeneration & Economic Development,Economic Development and Housing,Cap Exp on Grants & Other Financial Assistance (REFCUS),918401,Capital grants,02-Apr-2013,2576315-079GE,"2,630.00",ELLIOT HIRD & PARTNERS LTD.
Regeneration & Economic Development,Economic Development and Housing,Cap Exp on Grants & Other Financial Assistance (REFCUS),918401,Capital grants,02-Apr-2013,2576315-DFG447/12,"2,980.00",ELLIOT HIRD & PARTNERS LTD.
Regeneration & Economic Development,Economic Development and Housing,Cap Exp on Grants & Other Financial Assistance (REFCUS),918401,Capital grants,02-Apr-2013,2576319-DFG/417/12,"3,285.00",F TIFFEN BUILDING SERVICES.
Regeneration & Economic Development,Economic Development and Housing,Cap Exp on Grants & Other Financial Assistance (REFCUS),918401,Capital grants,02-Apr-2013,2576319-DFG369/12,"1,323.03",F TIFFEN BUILDING SERVICES.
Regeneration & Economic Development,Economic Development and Housing,Cap Exp on Grants & Other Financial Assistance (REFCUS),918401,Capital grants,02-Apr-2013,2576319-DFG442/12,"4,140.00",F TIFFEN BUILDING SERVICES.
Regeneration & Economic Development,Economic Development and Housing,Cap Exp on Grants & Other Financial Assistance (REFCUS),918401,Capital grants,02-Apr-2013,2576319-DFG456/12,"2,152.00",F TIFFEN BUILDING SERVICES.
Regeneration & Economic Development,Economic Development and Housing,Cap Exp on Grants & Other Financial Assistance (REFCUS),918401,Capital grants,02-Apr-2013,2576319-DFG457/12,"2,312.00",F TIFFEN BUILDING SERVICES.
Regeneration & Economic Development,Economic Development and Housing,Cap Exp on Grants & Other Financial Assistance (REFCUS),918401,Capital grants,02-Apr-2013,2576319-DFG458/12,"3,360.00",F TIFFEN BUILDING SERVICES.
Regeneration & Economic Development,Economic Development and Housing,Cap Exp on Grants & Other Financial Assistance (REFCUS),918401,Capital grants,02-Apr-2013,2576319-DFG504/12,"2,540.00",F TIFFEN BUILDING SERVICES.
Regeneration & Economic Development,Economic Development and Housing,Cap Exp on Grants & Other Financial Assistance (REFCUS),918401,Capital grants,02-Apr-2013,2576358-384/12,"5,027.40",J & B NELSON CONSTRUCTION.
Regeneration & Economic Development,Economic Development and Housing,Cap Exp on Grants & Other Financial Assistance (REFCUS),918401,Capital grants,02-Apr-2013,2576366-73,"5,760.00",JOHN RYAN BUILDING SERVICES.
Regeneration & Economic Development,Economic Development and Housing,Cap Exp on Grants & Other Financial Assistance (REFCUS),918401,Capital grants,02-Apr-2013,2576389-2013/535B,"4,208.00",M & R DEVELOPMENTS & CONTRACTORS LTD..
Regeneration & Economic Development,Economic Development and Housing,Cap Exp on Grants & Other Financial Assistance (REFCUS),918401,Capital grants,02-Apr-2013,2576389-2013/536B,"12,731.25",M & R DEVELOPMENTS & CONTRACTORS LTD..
Regeneration & Economic Development,Economic Development and Housing,Cap Exp on Grants & Other Financial Assistance (REFCUS),918401,Capital grants,02-Apr-2013,2576435-12072/25012013,"3,735.00",PETER JORDAN.
Regeneration & Economic Development,Economic Development and Housing,Cap Exp on Grants & Other Financial Assistance (REFCUS),918401,Capital grants,02-Apr-2013,2576458-67,"5,830.60",ROYCE CARSON BUILDING SERVICES.
Regeneration & Economic Development,Economic Development and Housing,Cap Exp on Grants & Other Financial Assistance (REFCUS),918401,Capital grants,02-Apr-2013,2576469-143,985.00,SHAPE ADAPTATIONS LTD.
Regeneration & Economic Development,Economic Development and Housing,Cap Exp on Grants & Other Financial Assistance (REFCUS),918401,Capital grants,02-Apr-2013,2576491-DFG229/12,"4,080.00",TANDEM CONTRACTS LTD.
Regeneration & Economic Development,Economic Development and Housing,Fees,901001,Internal fees,02-Apr-2013,2576502-SITRH/0005297,838.20,THREE RIVERS HOUSING ASSOCIATION LTD.
Regeneration & Economic Development,Economic Development and Housing,Cap Exp on Grants & Other Financial Assistance (REFCUS),918401,Capital grants,02-Apr-2013,2576503-SIP-122623,"3,675.00",THYSSENKRUPP ENCASA LTD.
Regeneration & Economic Development,Economic Development and Housing,Cap Exp on Grants & Other Financial Assistance (REFCUS),918401,Capital grants,02-Apr-2013,2576503-SIP121937,"5,211.00",THYSSENKRUPP ENCASA LTD.
Regeneration & Economic Development,Economic Development and Housing,Cap Exp on Grants & Other Financial Assistance (REFCUS),918401,Capital grants,02-Apr-2013,2576503-SIP122046,"1,330.00",THYSSENKRUPP ENCASA LTD.
Regeneration & Economic Development,Economic Development and Housing,Cap Exp on Grants & Other Financial Assistance (REFCUS),918401,Capital grants,02-Apr-2013,2576503-SIP122665,"1,540.00",THYSSENKRUPP ENCASA LTD.
Regeneration & Economic Development,Economic Development and Housing,Cap Exp on Grants & Other Financial Assistance (REFCUS),918401,Capital grants,02-Apr-2013,2576503-SIP122754,"4,215.00",THYSSENKRUPP ENCASA LTD.
Regeneration & Economic Development,Economic Development and Housing,Cap Exp on Grants & Other Financial Assistance (REFCUS),918401,Capital grants,02-Apr-2013,2576503-SIP122773,"4,930.00",THYSSENKRUPP ENCASA LTD.
Regeneration & Economic Development,Economic Development and Housing,Cap Exp on Grants & Other Financial Assistance (REFCUS),918401,Capital grants,02-Apr-2013,2576503-SIP122807,"1,400.00",THYSSENKRUPP ENCASA LTD.
Regeneration & Economic Development,Economic Development and Housing,Cap Exp on Grants & Other Financial Assistance (REFCUS),918401,Capital grants,02-Apr-2013,2576503-SIP122857,"1,841.25",THYSSENKRUPP ENCASA LTD.
Regeneration & Economic Development,Economic Development and Housing,Cap Exp on Grants & Other Financial Assistance (REFCUS),918401,Capital grants,02-Apr-2013,2576508-OP/I063194,"2,933.50",TOTAL HYGIENE LTD.
Regeneration & Economic Development,Economic Development and Housing,Cap Exp on Grants & Other Financial Assistance (REFCUS),918401,Capital grants,02-Apr-2013,2576528-11772/5526,"10,085.48",WRIGHT CONSTRUCTION (DURHAM) LTD.
Regeneration & Economic Development,"Spatial Policy, Planning, Assets & Environment",Payments In Advance,932001,Payments in advance,02-Apr-2013,2576325-217525,"1,315.00",G4S ASSESSMENT SERVICES (UK) LTD T/A QUALITY IN TOURISM.
Regeneration & Economic Development,"Spatial Policy, Planning, Assets & Environment",Supplies and Services,364999,Grants to Voluntary Organisations,02-Apr-2013,2576313-383,"2,000.00",ECO ENTERPRISES LTD.
Regeneration & Economic Development,"Spatial Policy, Planning, Assets & Environment",Supplies and Services,384700,Miscellaneous Expenses,02-Apr-2013,2576405-GRANT,"3,797.90",REDACTED - PAYMENT TO INDIVIDUAL
Regeneration & Economic Development,"Spatial Policy, Planning, Assets & Environment",Supplies and Services,384700,Miscellaneous Expenses,02-Apr-2013,2576450-GRANT,"1,680.60",REDACTED - PAYMENT TO INDIVIDUAL
Regeneration & Economic Development,"Spatial Policy, Planning, Assets & Environment",Supplies and Services,384199,Miscellaneous Expenses,02-Apr-2013,2576245-BURS,600.00,ALISTAIR LOCKETT.
Regeneration & Economic Development,Strategy Programmes and Performance,Supplies and Services,384899,Miscellaneous Expenses,02-Apr-2013,2576310-ED052/11,"2,172.20",EAST DURHAM BUSINESS SERVICE.
Regeneration & Economic Development,Strategy Programmes and Performance,Supplies and Services,384899,Miscellaneous Expenses,02-Apr-2013,2576459-NPD133/2FINAL,"5,898.25",RURAL DEVELOPMENT INITIATIVES LTD.
Regeneration & Economic Development,Transport,Third Party Payments,440999,Other Third Party Payments,02-Apr-2013,2576304-5595-03,"1,666.67",DTA CONSULTING ENGINEERS.
Regeneration & Economic Development,Transport,Supplies and Services,304245,Equipment and Materials,02-Apr-2013,2576291-SITRH,"2,764.58",COUNTY DURHAM HANDYPERSON SERVICE.
Regeneration & Economic Development,Transport,Supplies and Services,384199,Miscellaneous Expenses,02-Apr-2013,2576439-11125/13,"1,600.00",PIONEERING CARE PARTNERSHIP.
Regeneration & Economic Development,Transport,Supplies and Services,384199,Miscellaneous Expenses,02-Apr-2013,2576487-130625,"30,688.00",SUSTRANS.
Regeneration & Economic Development,Transport,Supplies and Services,384540,Miscellaneous Expenses,02-Apr-2013,2576446-14995,"4,400.00",REGION SERVICES LTD.
Regeneration & Economic Development,Transport,Supplies and Services,388001,Contributions to Funds,02-Apr-2013,2576438-88995,"4,492.40",PINDAR TRAVEL INFORMATION SYSTEMS LTD T/A PINDAR CREATIVE.
Adults Wellbeing and Health,Commissioning inc Supporting People,Third Party Payments,472113,Purchase of Care,03-Apr-2013,2576632-AL07,"11,250.00",DALE CARE LTD.
Adults Wellbeing and Health,Commissioning inc Supporting People,Supplies and Services,338099,Services,03-Apr-2013,2576646-74,"2,548.00",DURHAM COUNTY CARERS SUPPORT.
Adults Wellbeing and Health,Commissioning inc Supporting People,Supplies and Services,338099,Services,03-Apr-2013,2576646-76,"1,557.70",DURHAM COUNTY CARERS SUPPORT.
Adults Wellbeing and Health,Commissioning inc Supporting People,Third Party Payments,479101,Purchase of Care,03-Apr-2013,2576646-79,"41,655.20",DURHAM COUNTY CARERS SUPPORT.
Adults Wellbeing and Health,Commissioning inc Supporting People,Third Party Payments,479101,Purchase of Care,03-Apr-2013,2576677-15007A,"9,366.13",FAMILY ACTION.
Adults Wellbeing and Health,Commissioning inc Supporting People,Third Party Payments,479101,Purchase of Care,03-Apr-2013,2576677-15026,"1,364.11",FAMILY ACTION.
Adults Wellbeing and Health,Financing-Adult Services,Debtors,930131,Debtor-Hospital Re-Admission Avoidance Project,03-Apr-2013,2576889-04NG,900.00,PREMIER COMMUNITY CARE LTD.
Adults Wellbeing and Health,Head of Adults,Transfer Payments,515201,Social Services Clients,03-Apr-2013,218736-MA9/10&10/11,"5,336.47",HMRC..
Adults Wellbeing and Health,Head of Adults,Summary Income Level,720047,Fees and Charges,03-Apr-2013,2576956-OP,"1,508.77",REDACTED - PAYMENT TO INDIVIDUAL
Adults Wellbeing and Health,Head of Adults,Supplies and Services,338370,Services,03-Apr-2013,2576615-3140128,"229,736.58",CO DURHAM & DARLINGTON NHS FOUNDATION TRUST.
Adults Wellbeing and Health,Head of Adults,Employees,080025,Agency Staff,03-Apr-2013,2576971-430022642,"1,952.90",TEES ESK & WEAR VALLEY NHS FOUNDATION TRUST.
Adults Wellbeing and Health,Head of Adults,Summary Income Level,720045,Fees and Charges,03-Apr-2013,218788-REFUND,"2,915.22",REDACTED - PAYMENT TO INDIVIDUAL
Adults Wellbeing and Health,Head of Adults,Summary Income Level,720033,Fees and Charges,03-Apr-2013,218798-REFUND,635.65,REDACTED - PAYMENT TO INDIVIDUAL
Adults Wellbeing and Health,Head of Adults,Summary Income Level,720044,Fees and Charges,03-Apr-2013,2577016-RCF,613.03,REDACTED - PAYMENT TO INDIVIDUAL
Adults Wellbeing and Health,Head of Adults,Third Party Payments,479102,Purchase of Care,03-Apr-2013,2576578-201227,"2,247.50",BLUE SKY TRUST.
Adults Wellbeing and Health,Head of Adults,Supplies and Services,338066,Services,03-Apr-2013,2576872-238,"7,750.00",PEOPLETOO LTD.
Adults Wellbeing and Health,Head of Adults,Supplies and Services,324117,Provisions,03-Apr-2013,2576583-31556980,757.84,BRAKE BROS FOODSERVICE LTD.
Adults Wellbeing and Health,Planning and Performance,Supplies and Services,342053,Computers and Communications,03-Apr-2013,2576690-0000012528,600.00,GAEL LTD.
Adults Wellbeing and Health,Planning and Performance,Employees,040149,"Recruitment, Instruction and Training",03-Apr-2013,2576781-124915,"2,850.00",LEARNING NEXUS LTD.
Adults Wellbeing and Health,Planning and Performance,Supplies and Services,352001,Conference Expenses,03-Apr-2013,2576672-TR/165,790.00,ESPA.
Adults Wellbeing and Health,Planning and Performance,Supplies and Services,352001,Conference Expenses,03-Apr-2013,2576679-401,"3,950.00",FIRST IN TRAINING LTD.
Adults Wellbeing and Health,Planning and Performance,Supplies and Services,352001,Conference Expenses,03-Apr-2013,2576862-16189,"4,950.00",OPUS PHARMACY SERVICES LTD.
Adults Wellbeing and Health,Planning and Performance,Employees,040149,"Recruitment, Instruction and Training",03-Apr-2013,2576757-301,845.00,JOHN BIDDULPH T/A OUTREACH.
Adults Wellbeing and Health,Planning and Performance,Employees,040149,"Recruitment, Instruction and Training",03-Apr-2013,2576757-302,845.00,JOHN BIDDULPH T/A OUTREACH.
Adults Wellbeing and Health,Planning and Performance,Supplies and Services,312010,"Newspapers, Books and Periodicals",03-Apr-2013,2576845-6182,840.00,NORTHERN PRINT DISTRIBUTION LTD.
Adults Wellbeing and Health,Planning and Performance,Supplies and Services,384540,Miscellaneous Expenses,03-Apr-2013,2576898-DUR397,"1,500.00",REAL RADIO (NORTH EAST) LTD.
Adults Wellbeing and Health,Social Inclusion,Supplies and Services,312009,"Newspapers, Books and Periodicals",03-Apr-2013,2576877-1474357,"2,172.26",PETERS LTD.
Adults Wellbeing and Health,Social Inclusion,Supplies and Services,384199,Miscellaneous Expenses,03-Apr-2013,2576832-SLINV/00000190,"15,000.00",NEW COLLEGE DURHAM.
Assistant Chief Executive,Partnerships & Community Engagement Div.,Cap Exp on Grants & Other Financial Assistance (REFCUS),918004,Contributions to other bodies,03-Apr-2013,218761-12NB-STAN039,"7,000.00",MORRISON ROAD ALLOTMENT ASSOCIATION.
Assistant Chief Executive,Partnerships & Community Engagement Div.,Supplies and Services,384086,Miscellaneous Expenses,03-Apr-2013,2576818-12NB-3TWN023,"3,000.00",MOHAN COMMUNITY SERVICES CIC.
Assistant Chief Executive,Partnerships & Community Engagement Div.,Supplies and Services,384086,Miscellaneous Expenses,03-Apr-2013,2576835-12NB-GAMP025,"15,210.00",NEWTON AYCLIFFE JUNIOR NEIGHBOURHOOD WATCH.
Children and Young Peoples Services,CYPS - Local Authority,Employees,030001,Teachers Pension,03-Apr-2013,2576967-610435,"14,697.57",TEACHERS PENSIONS.
Children and Young Peoples Services,CYPS - Local Authority,Supplies and Services,384199,Miscellaneous Expenses,03-Apr-2013,2576758-1778,"7,797.27",JOHN MUIR TRUST.
Children and Young Peoples Services,CYPS - Local Authority,Supplies and Services,324117,Provisions,03-Apr-2013,2576966-9410666204,867.02,TCHIBO COFFEE INTERNATIONAL LTD.
Children and Young Peoples Services,CYPS - Local Authority,Supplies and Services,304083,Equipment and Materials,03-Apr-2013,2576837-8284173,"1,615.53",NISBETS PLC.
Children and Young Peoples Services,CYPS - Local Authority,Supplies and Services,384871,Miscellaneous Expenses,03-Apr-2013,2576992-739,"1,800.00",TRAINING LADDER LTD.
Children and Young Peoples Services,CYPS - Local Authority,Premises,106099,Centrally Controlled Rep and Maint,03-Apr-2013,218755-SSW001MB,"2,060.00",MASON & BONE PAINTING CONTRACTORS LTD.
Children and Young Peoples Services,CYPS - Local Authority,Employees,040149,"Recruitment, Instruction and Training",03-Apr-2013,2576945-1300016912,896.00,ST JOHN AMBULANCE.
Children and Young Peoples Services,CYPS - Local Authority,Supplies and Services,384302,Miscellaneous Expenses,03-Apr-2013,2576951-3619808,595.50,STORYSACK LTD.
Children and Young Peoples Services,CYPS - Local Authority,Supplies and Services,304649,Equipment and Materials,03-Apr-2013,2577031-496141262,596.85,YORKSHIRE PURCHASING ORGANISATION.
Children and Young Peoples Services,CYPS - Local Authority,Supplies and Services,384641,Miscellaneous Expenses,03-Apr-2013,2576665-13C/105,"1,860.00",EMERALD NURSERY.
Children and Young Peoples Services,CYPS - Local Authority,Supplies and Services,384641,Miscellaneous Expenses,03-Apr-2013,2576665-13C/2ES,954.00,EMERALD NURSERY.
Children and Young Peoples Services,CYPS - Local Authority,Supplies and Services,384641,Miscellaneous Expenses,03-Apr-2013,2576665-13C/94WEB,"1,496.00",EMERALD NURSERY.
Children and Young Peoples Services,CYPS - Local Authority,Supplies and Services,384641,Miscellaneous Expenses,03-Apr-2013,2576665-13C/4EM,"1,435.00",EMERALD NURSERY.
Children and Young Peoples Services,CYPS - Local Authority,Supplies and Services,384491,Miscellaneous Expenses,03-Apr-2013,2576665-13C/95WEI,"1,074.00",EMERALD NURSERY.
Children and Young Peoples Services,CYPS - Local Authority,Supplies and Services,384199,Miscellaneous Expenses,03-Apr-2013,2576745-5211,686.00,INGRAMS REMOVERS & STORERS.
Children and Young Peoples Services,CYPS - Local Authority,Supplies and Services,384491,Miscellaneous Expenses,03-Apr-2013,2576666-12C/1DSAIF,"1,162.00",EMERALD NURSERY.
Children and Young Peoples Services,CYPS - Local Authority,Supplies and Services,304259,Equipment and Materials,03-Apr-2013,2576596-INV142592,576.00,CACHE.
Children and Young Peoples Services,CYPS - Local Authority,Supplies and Services,352001,Conference Expenses,03-Apr-2013,2576975-378471,"2,500.00",THE OPEN UNIVERSITY.
Children and Young Peoples Services,CYPS - Local Authority,Transfer Payments,510032,School Children,03-Apr-2013,2576592-ADJ0008875,683.85,BUTTERCUP NURSERIES LTD.
Children and Young Peoples Services,CYPS - Local Authority,Transfer Payments,510032,School Children,03-Apr-2013,2576593-ADJ0008870,873.00,BUTTERCUP NURSERIES LTD.
Children and Young Peoples Services,CYPS - Local Authority,Transfer Payments,510032,School Children,03-Apr-2013,2576614-ADJ0008883,785.70,CLEVER CLOGS DAY NURSERY (DURHAM) LTD.
Children and Young Peoples Services,CYPS - Local Authority,Transfer Payments,510032,School Children,03-Apr-2013,2576954-ADJ0008927,"1,236.75",SUNSHINE DAY NURSERY.
Children and Young Peoples Services,CYPS - Local Authority,Construction Work,908105,Construction work,03-Apr-2013,2576549-144562,719.00,ALBANY OFFICE EQUIPMENT (WHOLESALE) LTD.
Children and Young Peoples Services,CYPS - Local Authority,Construction Work,908105,Construction work,03-Apr-2013,2576602-13538,"4,998.30",CATHEDRAL LOCK & SAFE SERVICES LTD.
Children and Young Peoples Services,CYPS - Local Authority,Supplies and Services,352001,Conference Expenses,03-Apr-2013,2576868-I0060870,"9,998.00",OXFORD BROOKES ENTERPRISES LTD.
Children and Young Peoples Services,CYPS - Local Authority,Fees,901002,Professional fees,03-Apr-2013,218771-86615-6/3/13,"5,115.00",MR EDWIN SIMPSON.
Children and Young Peoples Services,CYPS - Local Authority,Supplies and Services,384302,Miscellaneous Expenses,03-Apr-2013,2576882-2590759379,"4,400.00",PHONAK UK LTD.
Children and Young Peoples Services,CYPS - Local Authority,Supplies and Services,304259,Equipment and Materials,03-Apr-2013,2576878-179300,566.82,PHIL PARKER LTD.
Children and Young Peoples Services,CYPS - Local Authority,Transport,230007,Contract Hire,03-Apr-2013,218702-01/2013/S030,710.00,COLLINS TAXIS.
Children and Young Peoples Services,CYPS - Local Authority,Supplies and Services,338091,Services,03-Apr-2013,2576664-3169,570.00,ELKLAN TRAINING LTD.
Children and Young Peoples Services,CYPS - Local Authority,Supplies and Services,338066,Services,03-Apr-2013,2576626-511802,"22,352.64",COUNTY DURHAM PCT .
Children and Young Peoples Services,CYPS - Local Authority,Supplies and Services,338066,Services,03-Apr-2013,2576626-511966,"21,414.64",COUNTY DURHAM PCT .
Children and Young Peoples Services,CYPS - Local Authority,Supplies and Services,304259,Equipment and Materials,03-Apr-2013,2576700-923069,"1,007.95",GL EDUCATION GROUP LTD.
Children and Young Peoples Services,CYPS - Local Authority,Supplies and Services,338027,Services,03-Apr-2013,2576742-ISPL.033,"2,500.00",IMPROVEMENT SUPPORT PARTNERS LTD.
Children and Young Peoples Services,CYPS - Local Authority,Third Party Payments,425041,Rendered by Voluntary Organisations,03-Apr-2013,2576603-9755,"6,666.67",CCS ADOPTION.
Children and Young Peoples Services,CYPS - Local Authority,Third Party Payments,425040,Rendered by Voluntary Organisations,03-Apr-2013,2576685-FC011991,820.00,FOSTER CARES LTD.
Children and Young Peoples Services,CYPS - Local Authority,Third Party Payments,425040,Rendered by Voluntary Organisations,03-Apr-2013,2576685-FC012002,980.00,FOSTER CARES LTD.
Children and Young Peoples Services,CYPS - Local Authority,Third Party Payments,425040,Rendered by Voluntary Organisations,03-Apr-2013,2576685-FC012006,700.00,FOSTER CARES LTD.
Children and Young Peoples Services,CYPS - Local Authority,Third Party Payments,425040,Rendered by Voluntary Organisations,03-Apr-2013,2576685-FC012007,730.00,FOSTER CARES LTD.
Children and Young Peoples Services,CYPS - Local Authority,Third Party Payments,425040,Rendered by Voluntary Organisations,03-Apr-2013,2576685-FC012010,730.00,FOSTER CARES LTD.
Children and Young Peoples Services,CYPS - Local Authority,Third Party Payments,425040,Rendered by Voluntary Organisations,03-Apr-2013,2576685-FC012034,820.00,FOSTER CARES LTD.
Children and Young Peoples Services,CYPS - Local Authority,Third Party Payments,425040,Rendered by Voluntary Organisations,03-Apr-2013,2576685-FC012040,730.00,FOSTER CARES LTD.
Children and Young Peoples Services,CYPS - Local Authority,Third Party Payments,425040,Rendered by Voluntary Organisations,03-Apr-2013,2576685-FC012045,980.00,FOSTER CARES LTD.
Children and Young Peoples Services,CYPS - Local Authority,Third Party Payments,425040,Rendered by Voluntary Organisations,03-Apr-2013,2576685-FC012049,700.00,FOSTER CARES LTD.
Children and Young Peoples Services,CYPS - Local Authority,Third Party Payments,425040,Rendered by Voluntary Organisations,03-Apr-2013,2576685-FC012050,730.00,FOSTER CARES LTD.
Children and Young Peoples Services,CYPS - Local Authority,Third Party Payments,425040,Rendered by Voluntary Organisations,03-Apr-2013,2576685-FC012052,"1,180.00",FOSTER CARES LTD.
Children and Young Peoples Services,CYPS - Local Authority,Third Party Payments,425040,Rendered by Voluntary Organisations,03-Apr-2013,2576685-FC012053,730.00,FOSTER CARES LTD.
Children and Young Peoples Services,CYPS - Local Authority,Third Party Payments,425021,Rendered by Voluntary Organisations,03-Apr-2013,2576873-10671,"83,708.16",PERCY HEDLEY FOUNDATION.
Children and Young Peoples Services,CYPS - Local Authority,Third Party Payments,425040,Rendered by Voluntary Organisations,03-Apr-2013,2576957-126307,"1,069.00",SWIIS FOSTER CARE LTD.
Children and Young Peoples Services,CYPS - Local Authority,Third Party Payments,425040,Rendered by Voluntary Organisations,03-Apr-2013,2576957-126572,"1,069.00",SWIIS FOSTER CARE LTD.
Children and Young Peoples Services,CYPS - Local Authority,Third Party Payments,425040,Rendered by Voluntary Organisations,03-Apr-2013,2576957-126857,"1,069.00",SWIIS FOSTER CARE LTD.
Children and Young Peoples Services,CYPS - Local Authority,Third Party Payments,425040,Rendered by Voluntary Organisations,03-Apr-2013,2576957-127291,"1,069.00",SWIIS FOSTER CARE LTD.
Children and Young Peoples Services,CYPS - Local Authority,Third Party Payments,425040,Rendered by Voluntary Organisations,03-Apr-2013,2576957-128122,910.00,SWIIS FOSTER CARE LTD.
Children and Young Peoples Services,CYPS - Local Authority,Third Party Payments,425040,Rendered by Voluntary Organisations,03-Apr-2013,2576957-128123,"1,075.00",SWIIS FOSTER CARE LTD.
Children and Young Peoples Services,CYPS - Local Authority,Third Party Payments,425040,Rendered by Voluntary Organisations,03-Apr-2013,2576957-128124,901.00,SWIIS FOSTER CARE LTD.
Children and Young Peoples Services,CYPS - Local Authority,Third Party Payments,425040,Rendered by Voluntary Organisations,03-Apr-2013,2576957-128125,"1,069.00",SWIIS FOSTER CARE LTD.
Children and Young Peoples Services,CYPS - Local Authority,Third Party Payments,425040,Rendered by Voluntary Organisations,03-Apr-2013,2576957-128126,910.00,SWIIS FOSTER CARE LTD.
Children and Young Peoples Services,CYPS - Local Authority,Third Party Payments,425040,Rendered by Voluntary Organisations,03-Apr-2013,2576957-128127,"1,091.00",SWIIS FOSTER CARE LTD.
Children and Young Peoples Services,CYPS - Local Authority,Third Party Payments,425040,Rendered by Voluntary Organisations,03-Apr-2013,2576957-128128,911.00,SWIIS FOSTER CARE LTD.
Children and Young Peoples Services,CYPS - Local Authority,Supplies and Services,338057,Services,03-Apr-2013,218717-NOV/MAR13,"3,000.00",DUNELM MEDICAL PRACTICE.
Children and Young Peoples Services,CYPS - Local Authority,Supplies and Services,338042,Services,03-Apr-2013,218756-287344/INVMM43,"2,000.00",MISS AMANDA MILLER.
Children and Young Peoples Services,CYPS - Local Authority,Supplies and Services,338042,Services,03-Apr-2013,218756-289472/INVMM42,"1,800.00",MISS AMANDA MILLER.
Children and Young Peoples Services,CYPS - Local Authority,Supplies and Services,338042,Services,03-Apr-2013,218776-202775FEB13,"4,200.00",MR JUSTIN GRAY.
Children and Young Peoples Services,CYPS - Local Authority,Supplies and Services,338042,Services,03-Apr-2013,218781-195360-25/2/13,"2,500.00",MR ROGER BICKERDIKE.
Children and Young Peoples Services,CYPS - Local Authority,Transport,230005,Contract Hire,03-Apr-2013,2576795-1440,563.00,LOCAL TRANSPORT LTD.
Children and Young Peoples Services,CYPS - Local Authority,Transport,235073,Public Transport,03-Apr-2013,2576823-MILEAGE,"1,057.56",REDACTED - PAYMENT TO INDIVIDUAL
Children and Young Peoples Services,CYPS - Local Authority,Supplies and Services,364352,Grants to Voluntary Organisations,03-Apr-2013,2576949-11/3/13-7/4/13,969.03,STONHAM HOUSING ASSOCIATION LTD.
Children and Young Peoples Services,CYPS - Local Authority,Third Party Payments,440999,Other Third Party Payments,03-Apr-2013,2576924-PERM,848.00,REDACTED - PAYMENT TO INDIVIDUAL
Children and Young Peoples Services,CYPS - Local Authority,"Vehicles, Equipment, Furniture and Fittings",912529,Purchase-equipment,03-Apr-2013,2576752-3322,"4,513.99",JCM SEATING SOLUTIONS LTD.
Children and Young Peoples Services,CYPS - Local Authority,Supplies and Services,340001,Postages,03-Apr-2013,2576830-92,500.00,NEOPOST LTD CREDIFON RCB ACCOUNT.
Children and Young Peoples Services,CYPS - Local Authority,Employees,040001,"Recruitment, Instruction and Training",03-Apr-2013,2576838-5100123,"1,500.00",NORTH DURHAM ACADEMY.
Children and Young Peoples Services,CYPS - Local Authority,Employees,040001,"Recruitment, Instruction and Training",03-Apr-2013,2576996-AR21001943,540.00,TSL EDUCATION LTD.
Children and Young Peoples Services,CYPS - Local Authority,Employees,040001,"Recruitment, Instruction and Training",03-Apr-2013,2576996-TAR,540.00,TSL EDUCATION LTD.
Children and Young Peoples Services,Dedicated Schools Grant,Supplies and Services,338081,Services,03-Apr-2013,2576670-1103DCCEQA,"3,300.00",EQ ASSOCIATES LTD.
Corporate Resources,Financing- Resources,Supplies and Services,372009,Subscriptions,03-Apr-2013,2576722-10871,783.00,HBINFO LTD.
Corporate Resources,Financing- Resources,Supplies and Services,372009,Subscriptions,03-Apr-2013,218805-SIN10079,516.50,ORICA SOFTWARE SYSTEMS LTD.
Corporate Resources,Human Resources Total,Supplies and Services,384199,Miscellaneous Expenses,03-Apr-2013,2576695-12808,"3,530.65",GATENBY SANDERSON LTD.
Corporate Resources,ICT Services incl. Design and Print,Stock,926900,Stock in hand-Inventory system,03-Apr-2013,2577002-2319779,"46,875.00",VIGLEN LTD.
Corporate Resources,ICT Services incl. Design and Print,Stock,926900,Stock in hand-Inventory system,03-Apr-2013,2577002-2319780,"15,625.00",VIGLEN LTD.
Corporate Resources,ICT Services incl. Design and Print,"Vehicles, Equipment, Furniture and Fittings",912701,Computer equipment,03-Apr-2013,2577002-2320441,"1,674.00",VIGLEN LTD.
Corporate Resources,ICT Services incl. Design and Print,Construction Work,908105,Construction work,03-Apr-2013,218738-17374,"18,867.92",IMTECH ICT LTD.
Corporate Resources,ICT Services incl. Design and Print,Construction Work,908105,Construction work,03-Apr-2013,2576970-PSI-9062036,"2,594.96",TECHNOLOGY SERVICES GROUP LTD.
Corporate Resources,ICT Services incl. Design and Print,Supplies and Services,304245,Equipment and Materials,03-Apr-2013,2576555-WN2709886,654.60,ANTALIS LTD.
Corporate Resources,ICT Services incl. Design and Print,Supplies and Services,304245,Equipment and Materials,03-Apr-2013,2576555-WN2713457,824.00,ANTALIS LTD.
Corporate Resources,ICT Services incl. Design and Print,Supplies and Services,342053,Computers and Communications,03-Apr-2013,2576863-1399768,"33,045.53",ORACLE CORPORATION UK LTD.
Corporate Resources,ICT Services incl. Design and Print,Supplies and Services,342053,Computers and Communications,03-Apr-2013,2576880-OP/I692318,"51,847.09",PHOENIX SOFTWARE LTD.
Corporate Resources,ICT Services incl. Design and Print,Supplies and Services,344135,Telephones,03-Apr-2013,2576958-117440,795.00,SWITCHSHOP LTD.
Corporate Resources,ICT Services incl. Design and Print,Supplies and Services,304303,Equipment and Materials,03-Apr-2013,2576715-INV0148576,"1,999.00",GV MULTI MEDIA LTD.
Corporate Resources,ICT Services incl. Design and Print,Stock,926900,Stock in hand-Inventory system,03-Apr-2013,2576746-1049677,"1,324.09",INSIGHT DIRECT (UK) LTD.
Corporate Resources,ICT Services incl. Design and Print,Supplies and Services,342033,Computers and Communications,03-Apr-2013,2576746-1230447,928.20,INSIGHT DIRECT (UK) LTD.
Corporate Resources,ICT Services incl. Design and Print,Stock,926900,Stock in hand-Inventory system,03-Apr-2013,2576746-1231323,"2,046.30",INSIGHT DIRECT (UK) LTD.
Corporate Resources,ICT Services incl. Design and Print,Stock,926900,Stock in hand-Inventory system,03-Apr-2013,2576746-1247769,850.00,INSIGHT DIRECT (UK) LTD.
Corporate Resources,ICT Services incl. Design and Print,Stock,926900,Stock in hand-Inventory system,03-Apr-2013,2576746-1249100,900.00,INSIGHT DIRECT (UK) LTD.
Corporate Resources,ICT Services incl. Design and Print,Stock,926900,Stock in hand-Inventory system,03-Apr-2013,2576880-OP/I691316,"3,146.05",PHOENIX SOFTWARE LTD.
Corporate Resources,Legal & Democratic Services,Supplies and Services,328041,"Clothing, Uniforms and Laundry",03-Apr-2013,2576644-19119,"4,699.44",DURHAM BUSINESSWEAR LTD.
Corporate Resources,Legal & Democratic Services,Supplies and Services,372009,Subscriptions,03-Apr-2013,2576788-SU3E82273,"7,293.00",LEXISNEXIS BUTTERWORTHS.
Corporate Resources,Legal & Democratic Services,Supplies and Services,304639,Equipment and Materials,03-Apr-2013,2576923-0000232253,"6,742.65",SHAW & SONS LTD.
Neighbourhood Services,Direct Services,Premises,120009,Energy Costs,03-Apr-2013,2576861-15655299,"2,010.17",OPUS ENERGY LTD.
Neighbourhood Services,Direct Services,Transport,230005,Contract Hire,03-Apr-2013,2576881-221253,675.00,PHOENIX VEHICLE HIRE LTD.
Neighbourhood Services,Direct Services,Supplies and Services,344115,Telephones,03-Apr-2013,2576587-25462478,"1,977.00",BRITISH TELECOMMUNICATIONS PLC.
Neighbourhood Services,Direct Services,Third Party Payments,430100,Rendered by Private Contractors,03-Apr-2013,2576640-222592,631.46,DENNIS EAGLE LTD.
Neighbourhood Services,Direct Services,Third Party Payments,430100,Rendered by Private Contractors,03-Apr-2013,2576640-222843,"1,668.33",DENNIS EAGLE LTD.
Neighbourhood Services,Direct Services,Stock,926004,Stock,03-Apr-2013,2576696-9192630,703.80,GB OILS T/A BRETT FUELS.
Neighbourhood Services,Direct Services,Stock,926004,Stock,03-Apr-2013,2576696-9314737,"1,709.75",GB OILS T/A BRETT FUELS.
Neighbourhood Services,Direct Services,Third Party Payments,430100,Rendered by Private Contractors,03-Apr-2013,2576698-B83432,516.25,GEESINK NORBA LTD.
Neighbourhood Services,Direct Services,Third Party Payments,430100,Rendered by Private Contractors,03-Apr-2013,2576698-B83433,815.16,GEESINK NORBA LTD.
Neighbourhood Services,Direct Services,Summary Income Level,725025,Rents,03-Apr-2013,2577013-233488,"1,121.33",WHITTLE JONES (GROUP) LTD.
Neighbourhood Services,Direct Services,Stock,926004,Stock,03-Apr-2013,2576696-9323955,"18,472.63",GB OILS T/A BRETT FUELS.
Neighbourhood Services,Direct Services,Third Party Payments,430100,Rendered by Private Contractors,03-Apr-2013,2576704-INV048556,728.60,GOTT TECHNICAL SERVICES LTD.
Neighbourhood Services,Direct Services,Stock,926004,Stock,03-Apr-2013,2576828-INVDUR0031483,990.00,NE TRUCK SPARES LTD.
Neighbourhood Services,Direct Services,Third Party Payments,430100,Rendered by Private Contractors,03-Apr-2013,218815-27181,775.00,TEAM VALLEY TRANSMISSIONS LTD.
Neighbourhood Services,Direct Services,Third Party Payments,430100,Rendered by Private Contractors,03-Apr-2013,2576540-24094,732.69,ABRAHAM VEHICLE SERVICES LTD.
Neighbourhood Services,Direct Services,Third Party Payments,430100,Rendered by Private Contractors,03-Apr-2013,2576569-46029765,"1,249.88",BELL TRUCK SALES LTD.
Neighbourhood Services,Direct Services,Third Party Payments,430100,Rendered by Private Contractors,03-Apr-2013,2576569-46030142,"2,822.82",BELL TRUCK SALES LTD.
Neighbourhood Services,Direct Services,Transport,230710,Contract Hire,03-Apr-2013,2576751-00047429,556.44,JCB FINANCE (LEASING) LTD.
Neighbourhood Services,Direct Services,Supplies and Services,304999,Equipment and Materials,03-Apr-2013,2576936-201043437,"4,149.60",SNAP ON BUSINESS SOLUTIONS LTD.
Neighbourhood Services,Direct Services,Supplies and Services,304221,Equipment and Materials,03-Apr-2013,2576557-18213,525.85,ARBOR TIMBER & BUILDERS MERCHANTS LTD.
Neighbourhood Services,Direct Services,Third Party Payments,430100,Rendered by Private Contractors,03-Apr-2013,2576910-MAR00713,"2,450.00",RW CHICKEN (SCAFFOLDING) LTD.
Neighbourhood Services,Direct Services,Third Party Payments,430100,Rendered by Private Contractors,03-Apr-2013,2576910-MAR04513,510.00,RW CHICKEN (SCAFFOLDING) LTD.
Neighbourhood Services,Direct Services,Supplies and Services,304221,Equipment and Materials,03-Apr-2013,2576833-061475,743.40,NEW ROW FARM NURSERIES.
Neighbourhood Services,Direct Services,Supplies and Services,304221,Equipment and Materials,03-Apr-2013,2576984-22047,680.00,TODDS HIGHWAY MAINTENANCE LTD.
Neighbourhood Services,Direct Services,Supplies and Services,304221,Equipment and Materials,03-Apr-2013,2577018-32669,817.00,WILLOWCRETE MFG CO LTD.
Neighbourhood Services,Direct Services,Supplies and Services,304221,Equipment and Materials,03-Apr-2013,2577018-32673,"2,596.00",WILLOWCRETE MFG CO LTD.
Neighbourhood Services,Direct Services,Supplies and Services,304259,Equipment and Materials,03-Apr-2013,2576833-061430,550.80,NEW ROW FARM NURSERIES.
Neighbourhood Services,Direct Services,Supplies and Services,304259,Equipment and Materials,03-Apr-2013,2576833-061432,"1,315.50",NEW ROW FARM NURSERIES.
Neighbourhood Services,Direct Services,Supplies and Services,304221,Equipment and Materials,03-Apr-2013,218693-10046,532.60,AMENITY & HORTICULTURAL SERVICES LTD.
Neighbourhood Services,Direct Services,Supplies and Services,389001,Inventory Related,03-Apr-2013,2576558-918847294,880.33,ARCO LTD.
Neighbourhood Services,Direct Services,Stock,926900,Stock in hand-Inventory system,03-Apr-2013,2576558-918897697,"2,638.40",ARCO LTD.
Neighbourhood Services,Direct Services,Stock,926900,Stock in hand-Inventory system,03-Apr-2013,2576563-INV077550,"1,400.00",AZTEC CHEMICALS LTD.
Neighbourhood Services,Direct Services,Stock,926900,Stock in hand-Inventory system,03-Apr-2013,2576660-059-108933,743.01,EDMUNDSON ELECTRICAL LTD.
Neighbourhood Services,Direct Services,Stock,926900,Stock in hand-Inventory system,03-Apr-2013,2576660-059-118484,"1,112.40",EDMUNDSON ELECTRICAL LTD.
Neighbourhood Services,Direct Services,Stock,926900,Stock in hand-Inventory system,03-Apr-2013,2576764-STI377368,666.43,JT DOVE LTD.
Neighbourhood Services,Direct Services,Stock,926900,Stock in hand-Inventory system,03-Apr-2013,2576846-0663314,598.05,NORTHERN TOOLS & ACCESSORIES.
Neighbourhood Services,Direct Services,Stock,926900,Stock in hand-Inventory system,03-Apr-2013,2576846-0666710,575.65,NORTHERN TOOLS & ACCESSORIES.
Neighbourhood Services,Direct Services,Stock,926900,Stock in hand-Inventory system,03-Apr-2013,2576870-XL079791,843.25,PARK ELECTRICAL DISTRIBUTORS LTD.
Neighbourhood Services,Direct Services,Stock,926900,Stock in hand-Inventory system,03-Apr-2013,2576870-XL079856,"2,259.53",PARK ELECTRICAL DISTRIBUTORS LTD.
Neighbourhood Services,Direct Services,Stock,926900,Stock in hand-Inventory system,03-Apr-2013,2576937-180853,"5,561.04",SNAPFAST.
Neighbourhood Services,Direct Services,Stock,926900,Stock in hand-Inventory system,03-Apr-2013,2577025-80492538,"1,086.44",WOLSELEY UK LTD.
Neighbourhood Services,Direct Services,Stock,926900,Stock in hand-Inventory system,03-Apr-2013,2577025-80562868,554.72,WOLSELEY UK LTD.
Neighbourhood Services,Direct Services,"Vehicles, Equipment, Furniture and Fittings",912541,Purchase-vehicles,03-Apr-2013,2576711-104996,"17,200.00",GREENLAY (GRASS MACHINERY) LTD.
Neighbourhood Services,Direct Services,Third Party Payments,430100,Rendered by Private Contractors,03-Apr-2013,2576618-3026/CCS1577,"47,958.20",COMPLETE CLADDING SYSTEMS LTD.
Neighbourhood Services,Direct Services,Third Party Payments,430100,Rendered by Private Contractors,03-Apr-2013,2576618-3027/CCS1573,"49,724.58",COMPLETE CLADDING SYSTEMS LTD.
Neighbourhood Services,Direct Services,Third Party Payments,430100,Rendered by Private Contractors,03-Apr-2013,2576618-3028/CCS1573,"41,128.50",COMPLETE CLADDING SYSTEMS LTD.
Neighbourhood Services,Direct Services,Supplies and Services,304221,Equipment and Materials,03-Apr-2013,2576812-0000046323,"1,118.14",MIKROFILL SYSTEMS LTD.
Neighbourhood Services,Direct Services,Supplies and Services,324117,Provisions,03-Apr-2013,2576583-31522298,690.83,BRAKE BROS FOODSERVICE LTD.
Neighbourhood Services,Direct Services,Supplies and Services,324117,Provisions,03-Apr-2013,2576583-31552988,740.03,BRAKE BROS FOODSERVICE LTD.
Neighbourhood Services,Direct Services,Summary Income Level,720101,Fees and Charges,03-Apr-2013,2576648-OP,"21,542.25",DURHAM POLICE & CRIME COMMISSIONER.
Neighbourhood Services,"Environment,Health & Consumer Protection",Supplies and Services,304999,Equipment and Materials,03-Apr-2013,2576844-DI20161066,609.00,NORTHERN POWERGRID (NORTHEAST) LTD.
Neighbourhood Services,"Environment,Health & Consumer Protection",Supplies and Services,338027,Services,03-Apr-2013,2576879-48247,725.44,PHOENIX SECURITY UK LTD.
Neighbourhood Services,"Heritage, Culture & Libraries",Supplies and Services,384199,Miscellaneous Expenses,03-Apr-2013,2576576-00019,"9,441.32",BISHOP CATERING LTD.
Neighbourhood Services,"Heritage, Culture & Libraries",Supplies and Services,312017,"Newspapers, Books and Periodicals",03-Apr-2013,2576560-3835896,689.33,ASKEWS & HOLTS LIBRARY SERVICES LTD.
Neighbourhood Services,"Heritage, Culture & Libraries",Supplies and Services,312013,"Newspapers, Books and Periodicals",03-Apr-2013,2576560-3836161,787.14,ASKEWS & HOLTS LIBRARY SERVICES LTD.
Neighbourhood Services,"Heritage, Culture & Libraries",Supplies and Services,312017,"Newspapers, Books and Periodicals",03-Apr-2013,2576560-3836360,833.28,ASKEWS & HOLTS LIBRARY SERVICES LTD.
Neighbourhood Services,"Heritage, Culture & Libraries",Supplies and Services,312013,"Newspapers, Books and Periodicals",03-Apr-2013,2576560-3836362,505.71,ASKEWS & HOLTS LIBRARY SERVICES LTD.
Neighbourhood Services,"Heritage, Culture & Libraries",Supplies and Services,312017,"Newspapers, Books and Periodicals",03-Apr-2013,2576560-3836415,515.64,ASKEWS & HOLTS LIBRARY SERVICES LTD.
Neighbourhood Services,"Heritage, Culture & Libraries",Supplies and Services,312013,"Newspapers, Books and Periodicals",03-Apr-2013,2576560-3836417,538.32,ASKEWS & HOLTS LIBRARY SERVICES LTD.
Neighbourhood Services,"Heritage, Culture & Libraries",Supplies and Services,312013,"Newspapers, Books and Periodicals",03-Apr-2013,2576560-3836546,551.65,ASKEWS & HOLTS LIBRARY SERVICES LTD.
Neighbourhood Services,"Heritage, Culture & Libraries",Supplies and Services,312013,"Newspapers, Books and Periodicals",03-Apr-2013,2576560-3836569,509.95,ASKEWS & HOLTS LIBRARY SERVICES LTD.
Neighbourhood Services,"Heritage, Culture & Libraries",Supplies and Services,312017,"Newspapers, Books and Periodicals",03-Apr-2013,2576560-3839599,552.53,ASKEWS & HOLTS LIBRARY SERVICES LTD.
Neighbourhood Services,"Heritage, Culture & Libraries",Supplies and Services,312017,"Newspapers, Books and Periodicals",03-Apr-2013,2576560-3839601,664.20,ASKEWS & HOLTS LIBRARY SERVICES LTD.
Neighbourhood Services,"Heritage, Culture & Libraries",Supplies and Services,312013,"Newspapers, Books and Periodicals",03-Apr-2013,2576560-3839881,732.48,ASKEWS & HOLTS LIBRARY SERVICES LTD.
Neighbourhood Services,"Heritage, Culture & Libraries",Supplies and Services,312013,"Newspapers, Books and Periodicals",03-Apr-2013,2576560-3840841,562.68,ASKEWS & HOLTS LIBRARY SERVICES LTD.
Neighbourhood Services,"Heritage, Culture & Libraries",Supplies and Services,312013,"Newspapers, Books and Periodicals",03-Apr-2013,2576560-3841083,519.60,ASKEWS & HOLTS LIBRARY SERVICES LTD.
Neighbourhood Services,"Heritage, Culture & Libraries",Supplies and Services,312013,"Newspapers, Books and Periodicals",03-Apr-2013,2576560-3841085,671.84,ASKEWS & HOLTS LIBRARY SERVICES LTD.
Neighbourhood Services,"Heritage, Culture & Libraries",Supplies and Services,312013,"Newspapers, Books and Periodicals",03-Apr-2013,2576560-3841184,551.22,ASKEWS & HOLTS LIBRARY SERVICES LTD.
Neighbourhood Services,"Heritage, Culture & Libraries",Supplies and Services,312013,"Newspapers, Books and Periodicals",03-Apr-2013,2576560-3841187,550.85,ASKEWS & HOLTS LIBRARY SERVICES LTD.
Neighbourhood Services,"Heritage, Culture & Libraries",Supplies and Services,312013,"Newspapers, Books and Periodicals",03-Apr-2013,2576755-03017171,"4,557.69",JG WINDOWS LTD.
Neighbourhood Services,"Heritage, Culture & Libraries",Supplies and Services,384199,Miscellaneous Expenses,03-Apr-2013,2576649-K40314,"5,000.00",DURHAM UNIVERSITY CONFERENCE & TOURISM LTD.
Neighbourhood Services,"Heritage, Culture & Libraries",Supplies and Services,384199,Miscellaneous Expenses,03-Apr-2013,2576712-001-20/3/13,"3,400.00",GRESHAUNA SANDERS.
Neighbourhood Services,"Heritage, Culture & Libraries",Supplies and Services,324001,Provisions,03-Apr-2013,2576599-EW53811168,"1,738.95",CARLSBERG UK LTD.
Neighbourhood Services,"Heritage, Culture & Libraries",Third Party Payments,410037,Rendered by Other Local Authorities,03-Apr-2013,2576853-0317,600.00,OAKWOOD AV.
Neighbourhood Services,"Heritage, Culture & Libraries",Supplies and Services,338047,Services,03-Apr-2013,2576869-R2037591,966.15,PARAMOUNT PICTURES UK.
Neighbourhood Services,"Heritage, Culture & Libraries",Supplies and Services,338047,Services,03-Apr-2013,2576824-GTSS,560.00,MRS SHARON KERRIDGE.
Neighbourhood Services,"Heritage, Culture & Libraries",Supplies and Services,338047,Services,03-Apr-2013,2576550-5343,"4,051.35",ALL ELECTRIC PRODUCTIONS.
Neighbourhood Services,Sport & Leisure,Construction Work,908105,Construction work,03-Apr-2013,2576619-2279,"4,780.00",CONCRETE PRESERVATION TECHNOLOGIES LTD.
Neighbourhood Services,Sport & Leisure,Premises,106099,Centrally Controlled Rep and Maint,03-Apr-2013,2576556-INVOICE,"1,020.00",APPLIED TRADING LTD.
Neighbourhood Services,Sport & Leisure,Supplies and Services,304259,Equipment and Materials,03-Apr-2013,2576559-692,"1,970.00",ASA JAMES.
Neighbourhood Services,Sport & Leisure,Supplies and Services,304259,Equipment and Materials,03-Apr-2013,2576836-9254,731.33,NICOLL INDUSTRIES LTD.
Neighbourhood Services,Sport & Leisure,Supplies and Services,338099,Services,03-Apr-2013,2576796-676,"5,500.00",LUMLEY ESTATES.
Neighbourhood Services,Sport & Leisure,Premises,120021,Energy Costs,03-Apr-2013,2576598-150481236,"1,080.84",CALOR GAS LTD.
Neighbourhood Services,Technical Services,Supplies and Services,332047,"Printing, Stationery and Gen Off Exps",03-Apr-2013,2576768-T/13/11801,520.00,KEYSOFT SOLUTIONS LTD.
Neighbourhood Services,Technical Services,Third Party Payments,460350,Contract Payments,03-Apr-2013,218811-921,"2,659.00",S TEASDALE & SON.
Neighbourhood Services,Technical Services,Third Party Payments,460502,Contract Payments,03-Apr-2013,218820-20100340,"49,835.00",VAISALA LTD.
Neighbourhood Services,Technical Services,Construction Work,908108,Capital - Surface Dressing,03-Apr-2013,2576769-12461,"424,292.20",KIELY BROS LTD.
Neighbourhood Services,Technical Services,Supplies and Services,304221,Equipment and Materials,03-Apr-2013,2576984-22048,630.00,TODDS HIGHWAY MAINTENANCE LTD.
Neighbourhood Services,Technical Services,Supplies and Services,304357,Equipment and Materials,03-Apr-2013,218823-N69464,"1,647.67",WILLIAMSON CONSTRUCTION EQUIPMENT LTD.
Neighbourhood Services,Technical Services,Supplies and Services,304221,Equipment and Materials,03-Apr-2013,2576542-17830150,615.60,AGGREGATE INDUSTRIES UK LTD.
Neighbourhood Services,Technical Services,Supplies and Services,304221,Equipment and Materials,03-Apr-2013,2576542-17836333,880.60,AGGREGATE INDUSTRIES UK LTD.
Neighbourhood Services,Technical Services,Supplies and Services,304221,Equipment and Materials,03-Apr-2013,2576542-17842675,"1,062.62",AGGREGATE INDUSTRIES UK LTD.
Neighbourhood Services,Technical Services,Third Party Payments,430100,Rendered by Private Contractors,03-Apr-2013,2576627-15389,579.84,COUPE LINE LTD.
Neighbourhood Services,Technical Services,Third Party Payments,430100,Rendered by Private Contractors,03-Apr-2013,2576627-15390,503.50,COUPE LINE LTD.
Neighbourhood Services,Technical Services,Supplies and Services,304260,Equipment and Materials,03-Apr-2013,2576696-9204743,703.80,GB OILS T/A BRETT FUELS.
Neighbourhood Services,Technical Services,Supplies and Services,304358,Equipment and Materials,03-Apr-2013,2576759-13386,910.00,JOHN R BUTTERFIELD LTD.
Neighbourhood Services,Technical Services,Supplies and Services,304358,Equipment and Materials,03-Apr-2013,2576759-13396,"1,155.50",JOHN R BUTTERFIELD LTD.
Neighbourhood Services,Technical Services,Supplies and Services,304358,Equipment and Materials,03-Apr-2013,2576759-13432,725.40,JOHN R BUTTERFIELD LTD.
Neighbourhood Services,Technical Services,Supplies and Services,304358,Equipment and Materials,03-Apr-2013,2576759-13433,"1,014.00",JOHN R BUTTERFIELD LTD.
Neighbourhood Services,Technical Services,Supplies and Services,304358,Equipment and Materials,03-Apr-2013,2576759-13437,"1,168.00",JOHN R BUTTERFIELD LTD.
Neighbourhood Services,Technical Services,Supplies and Services,304358,Equipment and Materials,03-Apr-2013,2576759-13439,"1,155.50",JOHN R BUTTERFIELD LTD.
Neighbourhood Services,Technical Services,Supplies and Services,304358,Equipment and Materials,03-Apr-2013,2576759-13475,677.00,JOHN R BUTTERFIELD LTD.
Neighbourhood Services,Technical Services,Supplies and Services,304358,Equipment and Materials,03-Apr-2013,2576759-13476,"1,039.00",JOHN R BUTTERFIELD LTD.
Neighbourhood Services,Technical Services,Supplies and Services,304358,Equipment and Materials,03-Apr-2013,2576759-13481,856.00,JOHN R BUTTERFIELD LTD.
Neighbourhood Services,Technical Services,Supplies and Services,304358,Equipment and Materials,03-Apr-2013,2576759-13483,"1,155.50",JOHN R BUTTERFIELD LTD.
Neighbourhood Services,Technical Services,Supplies and Services,304358,Equipment and Materials,03-Apr-2013,2576759-13484,770.00,JOHN R BUTTERFIELD LTD.
Neighbourhood Services,Technical Services,Supplies and Services,304358,Equipment and Materials,03-Apr-2013,2576759-13485,"1,140.50",JOHN R BUTTERFIELD LTD.
Neighbourhood Services,Technical Services,Supplies and Services,304358,Equipment and Materials,03-Apr-2013,2576759-13488,559.00,JOHN R BUTTERFIELD LTD.
Neighbourhood Services,Technical Services,Supplies and Services,304358,Equipment and Materials,03-Apr-2013,2576759-13489,905.80,JOHN R BUTTERFIELD LTD.
Neighbourhood Services,Technical Services,Supplies and Services,304358,Equipment and Materials,03-Apr-2013,2576759-13492,897.50,JOHN R BUTTERFIELD LTD.
Neighbourhood Services,Technical Services,Supplies and Services,304358,Equipment and Materials,03-Apr-2013,2576759-13496,604.40,JOHN R BUTTERFIELD LTD.
Neighbourhood Services,Technical Services,Supplies and Services,304358,Equipment and Materials,03-Apr-2013,2576759-13524,"1,054.00",JOHN R BUTTERFIELD LTD.
Neighbourhood Services,Technical Services,Supplies and Services,304358,Equipment and Materials,03-Apr-2013,2576759-13525,"1,014.00",JOHN R BUTTERFIELD LTD.
Neighbourhood Services,Technical Services,Supplies and Services,304358,Equipment and Materials,03-Apr-2013,2576759-13526,"1,142.00",JOHN R BUTTERFIELD LTD.
Neighbourhood Services,Technical Services,Supplies and Services,304358,Equipment and Materials,03-Apr-2013,2576759-13529,948.00,JOHN R BUTTERFIELD LTD.
Neighbourhood Services,Technical Services,Supplies and Services,304358,Equipment and Materials,03-Apr-2013,2576759-13531,"1,155.50",JOHN R BUTTERFIELD LTD.
Neighbourhood Services,Technical Services,Supplies and Services,304358,Equipment and Materials,03-Apr-2013,2576759-13532,820.00,JOHN R BUTTERFIELD LTD.
Neighbourhood Services,Technical Services,Supplies and Services,304358,Equipment and Materials,03-Apr-2013,2576759-13534,741.00,JOHN R BUTTERFIELD LTD.
Neighbourhood Services,Technical Services,Supplies and Services,304358,Equipment and Materials,03-Apr-2013,2576759-13535,689.40,JOHN R BUTTERFIELD LTD.
Neighbourhood Services,Technical Services,Supplies and Services,304358,Equipment and Materials,03-Apr-2013,2576759-13539,689.40,JOHN R BUTTERFIELD LTD.
Neighbourhood Services,Technical Services,Supplies and Services,304358,Equipment and Materials,03-Apr-2013,2576759-13540,926.50,JOHN R BUTTERFIELD LTD.
Neighbourhood Services,Technical Services,Supplies and Services,304358,Equipment and Materials,03-Apr-2013,2576759-13543,636.20,JOHN R BUTTERFIELD LTD.
Neighbourhood Services,Technical Services,Supplies and Services,304358,Equipment and Materials,03-Apr-2013,2576759-13573,826.00,JOHN R BUTTERFIELD LTD.
Neighbourhood Services,Technical Services,Supplies and Services,304358,Equipment and Materials,03-Apr-2013,2576759-13574,857.00,JOHN R BUTTERFIELD LTD.
Neighbourhood Services,Technical Services,Supplies and Services,304358,Equipment and Materials,03-Apr-2013,2576759-13577,"1,152.00",JOHN R BUTTERFIELD LTD.
Neighbourhood Services,Technical Services,Supplies and Services,304358,Equipment and Materials,03-Apr-2013,2576759-13579,"1,155.50",JOHN R BUTTERFIELD LTD.
Neighbourhood Services,Technical Services,Supplies and Services,304358,Equipment and Materials,03-Apr-2013,2576759-13580,608.00,JOHN R BUTTERFIELD LTD.
Neighbourhood Services,Technical Services,Supplies and Services,304358,Equipment and Materials,03-Apr-2013,2576759-13581,689.40,JOHN R BUTTERFIELD LTD.
Neighbourhood Services,Technical Services,Supplies and Services,304358,Equipment and Materials,03-Apr-2013,2576759-13583,719.40,JOHN R BUTTERFIELD LTD.
Neighbourhood Services,Technical Services,Supplies and Services,304358,Equipment and Materials,03-Apr-2013,2576759-13586,623.00,JOHN R BUTTERFIELD LTD.
Neighbourhood Services,Technical Services,Supplies and Services,304358,Equipment and Materials,03-Apr-2013,2576759-13587,963.00,JOHN R BUTTERFIELD LTD.
Neighbourhood Services,Technical Services,Supplies and Services,304358,Equipment and Materials,03-Apr-2013,2576759-13589,914.20,JOHN R BUTTERFIELD LTD.
Neighbourhood Services,Technical Services,Supplies and Services,304358,Equipment and Materials,03-Apr-2013,2576759-13616,718.20,JOHN R BUTTERFIELD LTD.
Neighbourhood Services,Technical Services,Supplies and Services,304358,Equipment and Materials,03-Apr-2013,2576759-13617,725.40,JOHN R BUTTERFIELD LTD.
Neighbourhood Services,Technical Services,Supplies and Services,304358,Equipment and Materials,03-Apr-2013,2576759-13618,651.00,JOHN R BUTTERFIELD LTD.
Neighbourhood Services,Technical Services,Supplies and Services,304358,Equipment and Materials,03-Apr-2013,2576759-13619,570.80,JOHN R BUTTERFIELD LTD.
Neighbourhood Services,Technical Services,Supplies and Services,304358,Equipment and Materials,03-Apr-2013,2576759-13625,"1,014.00",JOHN R BUTTERFIELD LTD.
Neighbourhood Services,Technical Services,Supplies and Services,304358,Equipment and Materials,03-Apr-2013,2576759-13627,979.00,JOHN R BUTTERFIELD LTD.
Neighbourhood Services,Technical Services,Supplies and Services,304358,Equipment and Materials,03-Apr-2013,2576759-13633,930.00,JOHN R BUTTERFIELD LTD.
Neighbourhood Services,Technical Services,Supplies and Services,304358,Equipment and Materials,03-Apr-2013,2576759-13634,920.00,JOHN R BUTTERFIELD LTD.
Neighbourhood Services,Technical Services,Supplies and Services,304358,Equipment and Materials,03-Apr-2013,2576759-13636,741.00,JOHN R BUTTERFIELD LTD.
Neighbourhood Services,Technical Services,Supplies and Services,304358,Equipment and Materials,03-Apr-2013,2576759-13640,"1,093.00",JOHN R BUTTERFIELD LTD.
Neighbourhood Services,Technical Services,Supplies and Services,304358,Equipment and Materials,03-Apr-2013,2576759-13642,892.60,JOHN R BUTTERFIELD LTD.
Neighbourhood Services,Technical Services,Supplies and Services,304358,Equipment and Materials,03-Apr-2013,2576759-13643,725.40,JOHN R BUTTERFIELD LTD.
Neighbourhood Services,Technical Services,Supplies and Services,304358,Equipment and Materials,03-Apr-2013,2576759-13646,"1,006.00",JOHN R BUTTERFIELD LTD.
Neighbourhood Services,Technical Services,Supplies and Services,304358,Equipment and Materials,03-Apr-2013,2576759-13672,649.00,JOHN R BUTTERFIELD LTD.
Neighbourhood Services,Technical Services,Supplies and Services,304358,Equipment and Materials,03-Apr-2013,2576759-13673,"1,142.00",JOHN R BUTTERFIELD LTD.
Neighbourhood Services,Technical Services,Supplies and Services,304358,Equipment and Materials,03-Apr-2013,2576759-13675,648.00,JOHN R BUTTERFIELD LTD.
Neighbourhood Services,Technical Services,Supplies and Services,304358,Equipment and Materials,03-Apr-2013,2576759-13680,570.00,JOHN R BUTTERFIELD LTD.
Neighbourhood Services,Technical Services,Supplies and Services,304358,Equipment and Materials,03-Apr-2013,2576759-13683,741.00,JOHN R BUTTERFIELD LTD.
Neighbourhood Services,Technical Services,Supplies and Services,304358,Equipment and Materials,03-Apr-2013,2576759-13687,910.40,JOHN R BUTTERFIELD LTD.
Neighbourhood Services,Technical Services,Supplies and Services,304358,Equipment and Materials,03-Apr-2013,2576759-13688,750.40,JOHN R BUTTERFIELD LTD.
Neighbourhood Services,Technical Services,Supplies and Services,304358,Equipment and Materials,03-Apr-2013,2576759-13691,"1,072.00",JOHN R BUTTERFIELD LTD.
Neighbourhood Services,Technical Services,Supplies and Services,304358,Equipment and Materials,03-Apr-2013,2576759-13693,685.80,JOHN R BUTTERFIELD LTD.
Neighbourhood Services,Technical Services,Supplies and Services,304358,Equipment and Materials,03-Apr-2013,2576759-13721,721.80,JOHN R BUTTERFIELD LTD.
Neighbourhood Services,Technical Services,Supplies and Services,304358,Equipment and Materials,03-Apr-2013,2576767-751,"2,745.00",KEVIN SNOWDON GROUNDWORKS LTD.
Neighbourhood Services,Technical Services,Supplies and Services,304221,Equipment and Materials,03-Apr-2013,2576775-3B02806562,942.82,LAFARGE AGGREGATES LTD.
Neighbourhood Services,Technical Services,Supplies and Services,304221,Equipment and Materials,03-Apr-2013,2576775-3C02011862,736.40,LAFARGE AGGREGATES LTD.
Neighbourhood Services,Technical Services,Supplies and Services,304221,Equipment and Materials,03-Apr-2013,2576775-3C02913670,943.80,LAFARGE AGGREGATES LTD.
Neighbourhood Services,Technical Services,Supplies and Services,304221,Equipment and Materials,03-Apr-2013,2576801-ZDB0014330,976.82,MARSHALLS MONO LTD.
Neighbourhood Services,Technical Services,Supplies and Services,304357,Equipment and Materials,03-Apr-2013,2576817-718079255,720.00,MOBILE MINI UK LTD.
Neighbourhood Services,Technical Services,Third Party Payments,430100,Rendered by Private Contractors,03-Apr-2013,2576890-123178,"4,902.88",PREMIER TRAFFIC MANAGEMENT LTD.
Neighbourhood Services,Technical Services,Third Party Payments,430100,Rendered by Private Contractors,03-Apr-2013,2576890-123692,"7,093.59",PREMIER TRAFFIC MANAGEMENT LTD.
Neighbourhood Services,Technical Services,Third Party Payments,430100,Rendered by Private Contractors,03-Apr-2013,2576890-123693,"14,961.85",PREMIER TRAFFIC MANAGEMENT LTD.
Neighbourhood Services,Technical Services,Supplies and Services,304358,Equipment and Materials,03-Apr-2013,2576928-2013010,"1,174.50",SHIREHAVEN LTD.
Neighbourhood Services,Technical Services,Supplies and Services,304358,Equipment and Materials,03-Apr-2013,2576928-2013011,649.50,SHIREHAVEN LTD.
Neighbourhood Services,Technical Services,Supplies and Services,304358,Equipment and Materials,03-Apr-2013,2576928-2013012,"1,623.75",SHIREHAVEN LTD.
Neighbourhood Services,Technical Services,Supplies and Services,304358,Equipment and Materials,03-Apr-2013,2576928-2013013,"1,506.00",SHIREHAVEN LTD.
Neighbourhood Services,Technical Services,Supplies and Services,304221,Equipment and Materials,03-Apr-2013,2576963-9028086552,522.43,TARMAC LTD.
Neighbourhood Services,Technical Services,Supplies and Services,304221,Equipment and Materials,03-Apr-2013,2576963-9029341474,615.04,TARMAC LTD.
Neighbourhood Services,Technical Services,Supplies and Services,304358,Equipment and Materials,03-Apr-2013,2576984-22035,"3,525.00",TODDS HIGHWAY MAINTENANCE LTD.
Neighbourhood Services,Technical Services,Supplies and Services,304221,Equipment and Materials,03-Apr-2013,2576984-22046,950.00,TODDS HIGHWAY MAINTENANCE LTD.
Neighbourhood Services,Technical Services,Supplies and Services,304358,Equipment and Materials,03-Apr-2013,2577003-35090,"3,150.00",W MARLEY AGRICULTURAL CONTRACTORS LTD.
Neighbourhood Services,Technical Services,Supplies and Services,384999,Miscellaneous Expenses,03-Apr-2013,2576552-20598,569.70,ALLWAG PROMOTIONS LTD.
Neighbourhood Services,Technical Services,Construction Work,908114,Capital - Bridge Strengthening,03-Apr-2013,2576919-SIL/D262/2259,"2,994.00",SEALANE INSHORE LTD.
RED HRA,Housing Revenue Account,Construction Work,908105,Construction work,03-Apr-2013,2576829-7365,805.00,NELSONS OF DURHAM.
RED HRA,Housing Revenue Account,Other Expenses,914006,Tenants Allowances,03-Apr-2013,2577017-6/300094,"2,796.08",(USE 43811) WILLIAMSONS PAINT & WALL COVERINGS.
RED HRA,Housing Revenue Account,Supplies and Services,372009,Subscriptions,03-Apr-2013,2576783-6281245532,"1,125.00",LEEDS CITY COUNCIL.
RED HRA,HRA Capital,Construction Work,908105,Construction work,03-Apr-2013,2576660-168458,"4,817.96",EDMUNDSON ELECTRICAL LTD.
RED HRA,HRA Capital,Construction Work,908105,Construction work,03-Apr-2013,2576762-168457,"7,326.54",JOINERY & TIMBER CREATIONS (65) LTD.
RED HRA,HRA Capital,Construction Work,908105,Construction work,03-Apr-2013,2576699-SIGN/00033257,"31,439.87",GENTOO CONSTRUCTION LTD.
RED HRA,HRA Capital,Construction Work,908105,Construction work,03-Apr-2013,2576699-SIGN/00033249,"115,225.65",GENTOO CONSTRUCTION LTD.
RED HRA,HRA Capital,Construction Work,908105,Construction work,03-Apr-2013,2576884-13060,"1,110.00",PIMSS DATA SYSTEMS LTD.
RED HRA,HRA Capital,Construction Work,908105,Construction work,03-Apr-2013,2576774-1205,"2,896.30",KJS ACCESS SOLUTIONS.
RED HRA,HRA Capital,Construction Work,908105,Construction work,03-Apr-2013,2576655-SINV/00003015,"64,284.50",EAST DURHAM HOMES.
RED HRA,HRA Capital,Construction Work,908105,Construction work,03-Apr-2013,2576655-SINV/00003016,"66,969.13",EAST DURHAM HOMES.
RED HRA,HRA Capital,Construction Work,908105,Construction work,03-Apr-2013,2576813-CON61603,770.00,MIS ENVIRONMENTAL LTD.
RED HRA,HRA Capital,Construction Work,908105,Construction work,03-Apr-2013,2576813-CON61607,"1,140.00",MIS ENVIRONMENTAL LTD.
RED HRA,HRA Capital,Construction Work,908105,Construction work,03-Apr-2013,2576813-CON61650,630.00,MIS ENVIRONMENTAL LTD.
RED HRA,HRA Capital,Construction Work,908105,Construction work,03-Apr-2013,2576813-CON61680,560.00,MIS ENVIRONMENTAL LTD.
RED HRA,HRA Capital,Construction Work,908105,Construction work,03-Apr-2013,2576813-CON61764,"1,800.00",MIS ENVIRONMENTAL LTD.
RED HRA,HRA Capital,Construction Work,908105,Construction work,03-Apr-2013,2576813-CON61828,770.00,MIS ENVIRONMENTAL LTD.
RED HRA,HRA Capital,Construction Work,908105,Construction work,03-Apr-2013,2576813-CON61853,"1,820.00",MIS ENVIRONMENTAL LTD.
RED HRA,HRA Capital,Construction Work,908105,Construction work,03-Apr-2013,2576655-SINV/00003011,"1,364.46",EAST DURHAM HOMES.
RED HRA,HRA Capital,Construction Work,908105,Construction work,03-Apr-2013,2576655-SINV/00003012,"16,905.00",EAST DURHAM HOMES.
RED HRA,HRA Capital,Construction Work,908105,Construction work,03-Apr-2013,2576655-SINV/00003013,"17,069.80",EAST DURHAM HOMES.
RED HRA,HRA Capital,Construction Work,908105,Construction work,03-Apr-2013,2576655-SINV/00003014,"35,761.88",EAST DURHAM HOMES.
RED HRA,HRA Capital,Construction Work,908105,Construction work,03-Apr-2013,2576655-SINV/00003020,"2,325.00",EAST DURHAM HOMES.
RED HRA,HRA Capital,Other Expenses,914001,Other capital expenses,03-Apr-2013,2576655-SINV/00003010,"17,630.88",EAST DURHAM HOMES.
RED HRA,HRA Capital,Construction Work,908105,Construction work,03-Apr-2013,2576655-SINV/00003019,"1,193.94",EAST DURHAM HOMES.
Regeneration & Economic Development,Economic Development and Housing,Premises,145050,Cleaning and Domestic Supplies,03-Apr-2013,2576811-061,630.00,MIKE TINKLER.
Regeneration & Economic Development,Economic Development and Housing,Supplies and Services,338078,Services,03-Apr-2013,2576895-3249,"5,184.68",QW SECURITY LTD.
Regeneration & Economic Development,Economic Development and Housing,Supplies and Services,336005,Advertising,03-Apr-2013,218813-6455,"3,300.00",STAR RADIO.
Regeneration & Economic Development,Economic Development and Housing,Supplies and Services,372009,Subscriptions,03-Apr-2013,218819-UKSPA2103,"1,300.00",UK SCIENCE PARK ASSOCIATION.
Regeneration & Economic Development,Economic Development and Housing,Supplies and Services,384700,Miscellaneous Expenses,03-Apr-2013,2576554-CONTRIBUTION,"1,215.00",ANDY LOWE PLUMBING SERVICES LTD.
Regeneration & Economic Development,Economic Development and Housing,Supplies and Services,384540,Miscellaneous Expenses,03-Apr-2013,2576916-013/252-BCV,"4,500.00",SARAH PATRICK CONSULTING.
Regeneration & Economic Development,Economic Development and Housing,Cap Exp on Grants & Other Financial Assistance (REFCUS),918401,Capital grants,03-Apr-2013,218725-BIS,"6,298.00",ENTERPRISE INNS PLC.
Regeneration & Economic Development,Economic Development and Housing,Other Expenses,914001,Other capital expenses,03-Apr-2013,2577014-PV/WWPC/01/2013,808.63,WHORLTON WESTWICK PARISH COUNCIL.
Regeneration & Economic Development,Economic Development and Housing,Fees,901002,Professional Fees,03-Apr-2013,2576541-60163688A-3,"1,667.00",AECOM LTD.
Regeneration & Economic Development,Economic Development and Housing,Fees,901002,Professional Fees,03-Apr-2013,2576727-HR29840,"1,368.00",HENRY RILEY T/A RILEY CONSULTING.
Regeneration & Economic Development,Economic Development and Housing,Fees,901002,Professional Fees,03-Apr-2013,2576727-HR30003,"1,205.00",HENRY RILEY T/A RILEY CONSULTING.
Regeneration & Economic Development,Economic Development and Housing,Fees,901002,Professional Fees,03-Apr-2013,2576790-2013/05,"4,950.00",LIME4 LTD.
Regeneration & Economic Development,Economic Development and Housing,Fees,901002,Professional Fees,03-Apr-2013,2576953-NE121231-9,"4,000.00",SUMMERS INMAN.
Regeneration & Economic Development,Economic Development and Housing,Fees,901002,Professional Fees,03-Apr-2013,2577030-13/48,"1,386.45",XSITE ARCHITECTURE LLP.
Regeneration & Economic Development,Economic Development and Housing,Construction Work,908105,Construction work,03-Apr-2013,2576961-20130016,"29,993.85",T MANNERS & SONS LTD.
Regeneration & Economic Development,Economic Development and Housing,Construction Work,908105,Construction work,03-Apr-2013,2576777-INV00246574,800.00,LANES GROUP PLC.
Regeneration & Economic Development,Economic Development and Housing,Construction Work,908105,Construction work,03-Apr-2013,2576777-INV00246575,"1,410.00",LANES GROUP PLC.
Regeneration & Economic Development,Economic Development and Housing,Construction Work,908105,Construction work,03-Apr-2013,2576777-INV00246576,800.00,LANES GROUP PLC.
Regeneration & Economic Development,Economic Development and Housing,Cap Exp on Grants & Other Financial Assistance (REFCUS),918401,Capital grants,03-Apr-2013,218692-DFG409/12,"4,749.00",ACORN PLUMBING & HEATING.
Regeneration & Economic Development,Economic Development and Housing,Cap Exp on Grants & Other Financial Assistance (REFCUS),918401,Capital grants,03-Apr-2013,218728-152,"11,912.00",GHENT BUILDING CONTRACTORS LTD.
Regeneration & Economic Development,Economic Development and Housing,Cap Exp on Grants & Other Financial Assistance (REFCUS),918401,Capital grants,03-Apr-2013,218749-782,"3,763.00",LORMOR & HALL CONSTRUCTION.
Regeneration & Economic Development,Economic Development and Housing,Cap Exp on Grants & Other Financial Assistance (REFCUS),918401,Capital grants,03-Apr-2013,2576539-324,"6,345.50",A OGILVIE BUILDING CONTRACTORS LTD.
Regeneration & Economic Development,Economic Development and Housing,Cap Exp on Grants & Other Financial Assistance (REFCUS),918401,Capital grants,03-Apr-2013,2576548-12044/2012,"3,440.00",ALAN LEE & SON.
Regeneration & Economic Development,Economic Development and Housing,Cap Exp on Grants & Other Financial Assistance (REFCUS),918401,Capital grants,03-Apr-2013,2576750-DFG/467/12,"3,896.40",J & B NELSON CONSTRUCTION.
Regeneration & Economic Development,Economic Development and Housing,Cap Exp on Grants & Other Financial Assistance (REFCUS),918401,Capital grants,03-Apr-2013,2576831-DFG/441/12,"4,610.00",NEW AGE PLUMBING & HEATING SERVICES.
Regeneration & Economic Development,Economic Development and Housing,Cap Exp on Grants & Other Financial Assistance (REFCUS),918401,Capital grants,03-Apr-2013,2576831-DFG/514/12,"5,325.00",NEW AGE PLUMBING & HEATING SERVICES.
Regeneration & Economic Development,Economic Development and Housing,Cap Exp on Grants & Other Financial Assistance (REFCUS),918401,Capital grants,03-Apr-2013,2576874-12080/25012013,"3,880.00",PETER JORDAN.
Regeneration & Economic Development,Economic Development and Housing,Fees,901001,Internal fees,03-Apr-2013,2576981-SITRH/0005300,"1,685.80",THREE RIVERS HOUSING ASSOCIATION LTD.
Regeneration & Economic Development,Economic Development and Housing,Cap Exp on Grants & Other Financial Assistance (REFCUS),918401,Capital grants,03-Apr-2013,2576982-SIP122506,"1,554.64",THYSSENKRUPP ENCASA LTD.
Regeneration & Economic Development,Economic Development and Housing,Cap Exp on Grants & Other Financial Assistance (REFCUS),918401,Capital grants,03-Apr-2013,2577028-DFG/460/12,"7,959.64",WRIGHT BUILDING CO LTD.
Regeneration & Economic Development,Economic Development and Housing,Fees,901001,Internal fees,03-Apr-2013,2576981-SITRH/0005279,"1,161.00",THREE RIVERS HOUSING ASSOCIATION LTD.
Regeneration & Economic Development,Economic Development and Housing,Fees,901001,Internal fees,03-Apr-2013,2576981-SITRH/0005280,"2,019.80",THREE RIVERS HOUSING ASSOCIATION LTD.
Regeneration & Economic Development,"Spatial Policy, Planning, Assets & Environment",Employees,040149,"Recruitment, Instruction and Training",03-Apr-2013,2576832-50053547,"2,198.00",NEW COLLEGE DURHAM.
Regeneration & Economic Development,"Spatial Policy, Planning, Assets & Environment",Supplies and Services,384999,Miscellaneous Expenses,03-Apr-2013,2576650-12147,"4,985.50",DURHAM WILDLIFE TRUST LTD.
Regeneration & Economic Development,"Spatial Policy, Planning, Assets & Environment",Supplies and Services,384199,Miscellaneous Expenses,03-Apr-2013,218752-55,"32,940.00",MAKING TRAX.
Regeneration & Economic Development,"Spatial Policy, Planning, Assets & Environment",Supplies and Services,384199,Miscellaneous Expenses,03-Apr-2013,2576800-931,750.00,MARCUS BYRON.
Regeneration & Economic Development,Transport,Construction Work,908105,Construction work,03-Apr-2013,218804-1800006388995,"4,894.62",NEWCASTLE UPON TYNE CITY COUNCIL.
Regeneration & Economic Development,Transport,Third Party Payments,440999,Other Third Party Payments,03-Apr-2013,2576737-874,500.00,HSA GROUP.
Regeneration & Economic Development,Transport,Third Party Payments,440999,Other Third Party Payments,03-Apr-2013,2576893-SIN000416,"26,237.00",PROJECT GENESIS MANAGEMENT CO LTD.
Regeneration & Economic Development,Transport,Supplies and Services,304245,Equipment and Materials,03-Apr-2013,2576625-SITRH/0005274,"2,797.92",COUNTY DURHAM HANDYPERSON SERVICE.
Regeneration & Economic Development,Transport,Employees,040149,"Recruitment, Instruction and Training",03-Apr-2013,2576832-50055019,"1,000.00",NEW COLLEGE DURHAM.
Regeneration & Economic Development,Transport,Premises,145009,Cleaning and Domestic Supplies,03-Apr-2013,2576974-81364,"1,004.60",THE DURHAM COMPANY (TDC).
Regeneration & Economic Development,Transport,Premises,145009,Cleaning and Domestic Supplies,03-Apr-2013,2576974-81374,985.40,THE DURHAM COMPANY (TDC).
Regeneration & Economic Development,Transport,Premises,145009,Cleaning and Domestic Supplies,03-Apr-2013,2576974-81393,985.40,THE DURHAM COMPANY (TDC).
Adults Wellbeing and Health,Commissioning inc Supporting People,Third Party Payments,479111,Purchase of Care,04-Apr-2013,2577709-398,"3,000.00",THE HOSPITAL OF GOD AT GREATHAM.
Adults Wellbeing and Health,Head of Adults,Third Party Payments,473101,Purchase of Care,04-Apr-2013,2577525-0000012678,"1,788.00",NORTH EAST AUTISM SOCIETY.
Adults Wellbeing and Health,Head of Adults,Third Party Payments,473101,Purchase of Care,04-Apr-2013,2577525-0000012929,678.00,NORTH EAST AUTISM SOCIETY.
Adults Wellbeing and Health,Head of Adults,Third Party Payments,473101,Purchase of Care,04-Apr-2013,2577525-0000013295,"1,135.65",NORTH EAST AUTISM SOCIETY.
Adults Wellbeing and Health,Head of Adults,Third Party Payments,473101,Purchase of Care,04-Apr-2013,2577525-0000010492,693.00,NORTH EAST AUTISM SOCIETY.
Adults Wellbeing and Health,Head of Adults,Third Party Payments,473101,Purchase of Care,04-Apr-2013,2577525-0000010528,"2,632.50",NORTH EAST AUTISM SOCIETY.
Adults Wellbeing and Health,Head of Adults,Third Party Payments,473101,Purchase of Care,04-Apr-2013,2577525-0000011078,570.00,NORTH EAST AUTISM SOCIETY.
Adults Wellbeing and Health,Head of Adults,Third Party Payments,473101,Purchase of Care,04-Apr-2013,2577525-0000012055,"2,260.00",NORTH EAST AUTISM SOCIETY.
Adults Wellbeing and Health,Head of Adults,Third Party Payments,473101,Purchase of Care,04-Apr-2013,2577525-0000012526,"1,977.50",NORTH EAST AUTISM SOCIETY.
Adults Wellbeing and Health,Head of Adults,Third Party Payments,473101,Purchase of Care,04-Apr-2013,2577618-3150,"1,300.00",REAL CARE LTD.
Adults Wellbeing and Health,Head of Adults,Third Party Payments,473101,Purchase of Care,04-Apr-2013,2577618-3151,520.00,REAL CARE LTD.
Adults Wellbeing and Health,Head of Adults,Summary Income Level,720033,Fees and Charges,04-Apr-2013,2577463-REFUND,803.89,REDACTED - PAYMENT TO INDIVIDUAL
Adults Wellbeing and Health,Head of Adults,Supplies and Services,384619,Miscellaneous Expenses,04-Apr-2013,2577162-3140117,"14,303.25",CO DURHAM & DARLINGTON NHS FOUNDATION TRUST.
Adults Wellbeing and Health,Head of Adults,Supplies and Services,324117,Provisions,04-Apr-2013,2577391-M98750,607.16,JR HOLLAND FOOD SERVICES LTD.
Adults Wellbeing and Health,Head of Adults,Supplies and Services,308011,Furniture,04-Apr-2013,2577513-7352,572.50,NELSONS OF DURHAM.
Adults Wellbeing and Health,Head of Adults,Supplies and Services,338094,Services,04-Apr-2013,2577144-12-580,675.00,CHESTER LE STREET CVS BULLION HALL.
Adults Wellbeing and Health,Planning and Performance,Supplies and Services,338026,Services,04-Apr-2013,2577375-06,682.50,J CALL
Adults Wellbeing and Health,Social Inclusion,Employees,080030,Agency Staff,04-Apr-2013,2577336-PFU/190313,"1,041.60",HELFORD UNITED FOOTBALL CLUB.
Adults Wellbeing and Health,Social Inclusion,Supplies and Services,384199,Miscellaneous Expenses,04-Apr-2013,2577474-19SESS,760.00,MR D ROBINSON T/A CENTREFIELD PAVILION.
Assistant Chief Executive,Partnerships & Community Engagement Div.,Transfer Payments,525030,Other,04-Apr-2013,2577138-12NB-BASH,"13,200.00",CAVOS.
Assistant Chief Executive,Partnerships & Community Engagement Div.,Transfer Payments,525030,Other,04-Apr-2013,2577243-12AB-EDUR006,"5,000.00",EAST DURHAM EMPLOYABILITY LTD.
Assistant Chief Executive,Partnerships & Community Engagement Div.,Transfer Payments,525030,Other,04-Apr-2013,2577677-12AB-SPEN003,"5,000.00",ST DAVIDS YOUTH GROUP.
Assistant Chief Executive,Partnerships & Community Engagement Div.,Transfer Payments,525030,Other,04-Apr-2013,2577091-12AB-TEES003,500.00,BARNARD CASTLE MECHS INST & WITHAM HALL COMM ASSOC.
Assistant Chief Executive,Partnerships & Community Engagement Div.,Transfer Payments,525030,Other,04-Apr-2013,2577167-12AB-TEES005,980.00,COCKFIELD COMMUNITY XMAS DECORATION FUND.
Assistant Chief Executive,Partnerships & Community Engagement Div.,Transfer Payments,525030,Other,04-Apr-2013,2577290-12AB-TEES006,"15,000.00",FRIENDS OF BOWES MUSEUM.
Assistant Chief Executive,Partnerships & Community Engagement Div.,Transfer Payments,525030,Other,04-Apr-2013,2577612-12AB-TEES003,500.00,RAMSHAW COMMUNITY ASSOCIATION.
Assistant Chief Executive,Partnerships & Community Engagement Div.,Transfer Payments,525030,Other,04-Apr-2013,2577683-12AB-TEES005,600.00,STOCKTON & DISTRICT MOTOR CLUB.
Assistant Chief Executive,Partnerships & Community Engagement Div.,Transfer Payments,525030,Other,04-Apr-2013,2577699-12AB-TEES003,500.00,TEESDALE EDUCATION TRUST.
Assistant Chief Executive,Partnerships & Community Engagement Div.,Supplies and Services,384086,Miscellaneous Expenses,04-Apr-2013,2577108-12NB-CHES052,"2,252.70",BOURNMOOR CONSERVATION GROUP.
Assistant Chief Executive,Partnerships & Community Engagement Div.,Cap Exp on Grants & Other Financial Assistance (REFCUS),918004,Contributions to other bodies,04-Apr-2013,2577135-12NB-EDUR074,"2,065.81",CASTLE EDEN ALLOTMENT ASSOCIATION.
Assistant Chief Executive,Partnerships & Community Engagement Div.,Cap Exp on Grants & Other Financial Assistance (REFCUS),918004,Contributions to other bodies,04-Apr-2013,2577231-12NB-DCTY031,"1,430.00",DURHAM COMMUNITY ASSOCIATION.
Assistant Chief Executive,Partnerships & Community Engagement Div.,Cap Exp on Grants & Other Financial Assistance (REFCUS),918004,Contributions to other bodies,04-Apr-2013,2577323-12NB-CHES018,"2,000.00",GROUNDWORK NORTH EAST.
Assistant Chief Executive,Partnerships & Community Engagement Div.,Supplies and Services,384086,Miscellaneous Expenses,04-Apr-2013,2577323-12NB-DVLY011,"3,000.00",GROUNDWORK NORTH EAST.
Assistant Chief Executive,Partnerships & Community Engagement Div.,Cap Exp on Grants & Other Financial Assistance (REFCUS),918004,Contributions to other bodies,04-Apr-2013,2577407-12NB-EDUR080,"2,000.00",LAMPANG CAMP MUAYTHAI.
Assistant Chief Executive,Partnerships & Community Engagement Div.,Supplies and Services,384086,Miscellaneous Expenses,04-Apr-2013,2577570-12NB-CHES055,"3,500.00",PELTON FELL COMMUNITY PARTNERSHIP.
Assistant Chief Executive,Partnerships & Community Engagement Div.,Supplies and Services,384086,Miscellaneous Expenses,04-Apr-2013,2577672-12NB-SPEN016,"1,000.00",SPENNYMOOR YOUTH & COMMUNITY ASSOCIATION.
Assistant Chief Executive,Partnerships & Community Engagement Div.,Cap Exp on Grants & Other Financial Assistance (REFCUS),918004,Contributions to other bodies,04-Apr-2013,2577775-12NB-EDUR067,"10,000.00",WHEATLEY HILL ANGLING CLUB.
Children and Young Peoples Services,CYPS - Local Authority,Supplies and Services,384199,Miscellaneous Expenses,04-Apr-2013,2577641-116,"2,470.00",SALLYANN HEWITT.
Children and Young Peoples Services,CYPS - Local Authority,Employees,080025,Agency Staff,04-Apr-2013,2577163-3139912,"1,002.14",CO DURHAM & DARLINGTON NHS FOUNDATION TRUST.
Children and Young Peoples Services,CYPS - Local Authority,Supplies and Services,308011,Furniture,04-Apr-2013,2577785-496122794,545.00,YORKSHIRE PURCHASING ORGANISATION.
Children and Young Peoples Services,CYPS - Local Authority,Supplies and Services,384491,Miscellaneous Expenses,04-Apr-2013,2577207-ONEP,"2,167.50",DAWN TILL DUSK CHILDCARE.
Children and Young Peoples Services,CYPS - Local Authority,Supplies and Services,304245,Equipment and Materials,04-Apr-2013,2577785-496122804,725.67,YORKSHIRE PURCHASING ORGANISATION.
Children and Young Peoples Services,CYPS - Local Authority,Transfer Payments,510026,School Children,04-Apr-2013,2577208-D031301,"1,392.75",DAYPARK LTD T/A YELLOW WELLIES.
Children and Young Peoples Services,CYPS - Local Authority,Employees,040149,"Recruitment, Instruction and Training",04-Apr-2013,2577146-302/100,695.00,CHILDREN NORTH EAST.
Children and Young Peoples Services,CYPS - Local Authority,Supplies and Services,352001,Conference Expenses,04-Apr-2013,2577750-99403,"1,260.00",UNIVERSITY OF TEESSIDE.
Children and Young Peoples Services,CYPS - Local Authority,Transport,230007,Contract Hire,04-Apr-2013,2577315-GT03,684.00,GORDON`S TAXIS.
Children and Young Peoples Services,CYPS - Local Authority,Construction Work,908105,Construction work,04-Apr-2013,2577278-7375/Y/6895,500.00,F PARKINSON LTD.
Children and Young Peoples Services,CYPS - Local Authority,Transport,230007,Contract Hire,04-Apr-2013,2577150-43713,"2,076.80",CJ GRIERSON.
Children and Young Peoples Services,CYPS - Local Authority,Transport,230007,Contract Hire,04-Apr-2013,2577413-093,"1,559.00",LD TAXIS.
Children and Young Peoples Services,CYPS - Local Authority,Transport,230007,Contract Hire,04-Apr-2013,2577448-480313,"1,000.00",MARKS TAXIS.
Children and Young Peoples Services,CYPS - Local Authority,Transport,230007,Contract Hire,04-Apr-2013,2577150-43714,"1,780.00",CJ GRIERSON.
Children and Young Peoples Services,CYPS - Local Authority,Transport,230007,Contract Hire,04-Apr-2013,2577150-43715,"1,980.00",CJ GRIERSON.
Children and Young Peoples Services,CYPS - Local Authority,Transport,230007,Contract Hire,04-Apr-2013,2577298-15143,"9,360.00",GARNETTS LTD (COACHES).
Children and Young Peoples Services,CYPS - Local Authority,Transport,230007,Contract Hire,04-Apr-2013,2577150-43716,"4,960.00",CJ GRIERSON.
Children and Young Peoples Services,CYPS - Local Authority,Transport,230007,Contract Hire,04-Apr-2013,2577150-43717,"2,100.00",CJ GRIERSON.
Children and Young Peoples Services,CYPS - Local Authority,Transport,230007,Contract Hire,04-Apr-2013,2577521-2419,"2,679.00",NIGHTINGALE COACHES.
Children and Young Peoples Services,CYPS - Local Authority,Transport,230007,Contract Hire,04-Apr-2013,2577521-2420,"2,540.00",NIGHTINGALE COACHES.
Children and Young Peoples Services,CYPS - Local Authority,Transport,230007,Contract Hire,04-Apr-2013,2577521-2421,"2,605.80",NIGHTINGALE COACHES.
Children and Young Peoples Services,CYPS - Local Authority,Transport,230007,Contract Hire,04-Apr-2013,2577264-65,"1,400.00",ELITE TAXIS.
Children and Young Peoples Services,CYPS - Local Authority,Transport,230007,Contract Hire,04-Apr-2013,2577435-003,"1,200.00",LUKES TAXIS.
Children and Young Peoples Services,CYPS - Local Authority,Supplies and Services,338027,Services,04-Apr-2013,2577360-DURH/0335,"35,040.04",INSPIREDSPACES DURHAM LTD.
Children and Young Peoples Services,CYPS - Local Authority,Supplies and Services,338027,Services,04-Apr-2013,2577360-DURH/0344,"35,040.04",INSPIREDSPACES DURHAM LTD.
Children and Young Peoples Services,CYPS - Local Authority,Transport,230007,Contract Hire,04-Apr-2013,2577432-1045-27/3/13,"1,900.00",LP TRAVEL LTD.
Children and Young Peoples Services,CYPS - Local Authority,Transport,230007,Contract Hire,04-Apr-2013,2577504-42-28/3/13,"1,464.60",N FORBES.
Children and Young Peoples Services,CYPS - Local Authority,Transport,230007,Contract Hire,04-Apr-2013,2577490-AA224,"2,530.00",MR T GUNN.
Children and Young Peoples Services,CYPS - Local Authority,Transport,230007,Contract Hire,04-Apr-2013,2577577-615,"1,833.00",PG TRIPS.
Children and Young Peoples Services,CYPS - Local Authority,Transport,230007,Contract Hire,04-Apr-2013,2577417-041,868.00,LEE`S TAXIS.
Children and Young Peoples Services,CYPS - Local Authority,Transport,230007,Contract Hire,04-Apr-2013,2577438-15,"1,680.00",M & S TAXIS.
Children and Young Peoples Services,CYPS - Local Authority,Transport,230007,Contract Hire,04-Apr-2013,2577413-094,"1,080.00",LD TAXIS.
Children and Young Peoples Services,CYPS - Local Authority,Transport,230007,Contract Hire,04-Apr-2013,2577268-0540,"1,700.00",EN ROUTE TRAVEL.
Children and Young Peoples Services,CYPS - Local Authority,Transport,230007,Contract Hire,04-Apr-2013,2577268-0541,"2,784.40",EN ROUTE TRAVEL.
Children and Young Peoples Services,CYPS - Local Authority,Transport,230007,Contract Hire,04-Apr-2013,2577477-84,"2,410.80",MR GN ROBBINS T/A GNR MINIBUS HIRE.
Children and Young Peoples Services,CYPS - Local Authority,Transport,230007,Contract Hire,04-Apr-2013,2577477-85,900.00,MR GN ROBBINS T/A GNR MINIBUS HIRE.
Children and Young Peoples Services,CYPS - Local Authority,Transport,230007,Contract Hire,04-Apr-2013,2577170-E035/03/13,"2,380.00",COLIN FRANKS T/A FRANKS COACHES.
Children and Young Peoples Services,CYPS - Local Authority,Transport,230007,Contract Hire,04-Apr-2013,2577170-E042/03/13,"2,184.00",COLIN FRANKS T/A FRANKS COACHES.
Children and Young Peoples Services,CYPS - Local Authority,Transport,230007,Contract Hire,04-Apr-2013,2577395-S007007,"2,106.00",KEITH HAMMOND.
Children and Young Peoples Services,CYPS - Local Authority,Transport,230007,Contract Hire,04-Apr-2013,2577467-KDC010313,"2,561.40",MJ TIMNEY.
Children and Young Peoples Services,CYPS - Local Authority,Transport,230007,Contract Hire,04-Apr-2013,2577564-7,"1,600.00",PAUL SMITH T/A LANGLEY TAXIS.
Children and Young Peoples Services,CYPS - Local Authority,Transport,230007,Contract Hire,04-Apr-2013,2577577-616,"1,280.00",PG TRIPS.
Children and Young Peoples Services,CYPS - Local Authority,Transport,230007,Contract Hire,04-Apr-2013,2577417-040,"1,540.00",LEE`S TAXIS.
Children and Young Peoples Services,CYPS - Local Authority,Transport,230007,Contract Hire,04-Apr-2013,2577387-39,"1,660.00",JOHNS TAXIS (CHESTER LE STREET).
Children and Young Peoples Services,CYPS - Local Authority,Transport,230007,Contract Hire,04-Apr-2013,2577390-PH7,"1,920.00",JOVIAL PRIVATE HIRE.
Children and Young Peoples Services,CYPS - Local Authority,Transport,230007,Contract Hire,04-Apr-2013,2577450-007,"1,800.00",MARTIN`S TAXIS.
Children and Young Peoples Services,CYPS - Local Authority,Transport,230007,Contract Hire,04-Apr-2013,2577594-130365,"3,009.00",PRATTS TAXIS.
Children and Young Peoples Services,CYPS - Local Authority,Transport,230007,Contract Hire,04-Apr-2013,2577594-130371,528.00,PRATTS TAXIS.
Children and Young Peoples Services,CYPS - Local Authority,Transport,230007,Contract Hire,04-Apr-2013,2577413-092,"2,640.00",LD TAXIS.
Children and Young Peoples Services,CYPS - Local Authority,Transport,230007,Contract Hire,04-Apr-2013,2577486-00145,580.00,MR P GARBUTT.
Children and Young Peoples Services,CYPS - Local Authority,Supplies and Services,384199,Miscellaneous Expenses,04-Apr-2013,2577338-INV000027,"6,000.00",HERMITAGE ACADEMY.
Children and Young Peoples Services,CYPS - Local Authority,Supplies and Services,384199,Miscellaneous Expenses,04-Apr-2013,2577400-1000127,"10,000.00",KING JAMES 1 COMMUNITY ASSOCIATION.
Children and Young Peoples Services,CYPS - Local Authority,Supplies and Services,384199,Miscellaneous Expenses,04-Apr-2013,2577212-031304,"1,350.00",DENIS HALL ASSOCIATES.
Children and Young Peoples Services,CYPS - Local Authority,Supplies and Services,384199,Miscellaneous Expenses,04-Apr-2013,2577349-0000000270,700.00,IGEN LTD.
Children and Young Peoples Services,CYPS - Local Authority,Transport,230007,Contract Hire,04-Apr-2013,2577329-04/2013-28/3/13,"1,502.90",HARRY DICKSON.
Children and Young Peoples Services,CYPS - Local Authority,Third Party Payments,425040,Rendered by Voluntary Organisations,04-Apr-2013,2577287-7603,"3,232.68",FOSTERING OUTCOMES.
Children and Young Peoples Services,CYPS - Local Authority,Third Party Payments,425020,Rendered by Voluntary Organisations,04-Apr-2013,2577676-1131056,"1,416.00",ST CUTHBERTS CARE.
Children and Young Peoples Services,CYPS - Local Authority,Third Party Payments,425021,Rendered by Voluntary Organisations,04-Apr-2013,2577713-SI13-11-1401,934.24,THE YOUTH JUSTICE BOARD.
Children and Young Peoples Services,CYPS - Local Authority,Third Party Payments,425040,Rendered by Voluntary Organisations,04-Apr-2013,2577776-000466,"2,500.00",WHITEHORSE LODGE LTD.
Children and Young Peoples Services,CYPS - Local Authority,Supplies and Services,384956,Miscellaneous Expenses,04-Apr-2013,2577670-12007181,"3,950.00",SOUTH TYNESIDE COUNCIL.
Children and Young Peoples Services,CYPS - Local Authority,Transport,230005,Contract Hire,04-Apr-2013,2577427-1397,711.00,LOCAL TRANSPORT LTD.
Children and Young Peoples Services,CYPS - Local Authority,Transport,230005,Contract Hire,04-Apr-2013,2577427-1439,976.00,LOCAL TRANSPORT LTD.
Children and Young Peoples Services,CYPS - Local Authority,Third Party Payments,486021,Service Level Agreements,04-Apr-2013,2577617-2640,"1,984.15",REACH OUT CARE SUPPORT SERVICES LTD.
Children and Young Peoples Services,CYPS - Local Authority,Premises,125009,Rents,04-Apr-2013,2577777-233668,612.00,WHITTLE JONES (GROUP) LTD.
Children and Young Peoples Services,Dedicated Schools Grant,Transport,230007,Contract Hire,04-Apr-2013,2577372-L008G,"1,677.00",JAFFAS TAXIS.
Children and Young Peoples Services,Dedicated Schools Grant,Transport,230007,Contract Hire,04-Apr-2013,2577374-00005-1/3/13,810.00,JD`S TAXIS WINGATE.
Children and Young Peoples Services,Dedicated Schools Grant,Transport,230007,Contract Hire,04-Apr-2013,2577374-0006,"1,026.00",JD`S TAXIS WINGATE.
Children and Young Peoples Services,Dedicated Schools Grant,Employees,080025,Agency Staff,04-Apr-2013,2577132-03567535,799.80,CAPITA EDUCATION RESOURCING.
Children and Young Peoples Services,Dedicated Schools Grant,Employees,080025,Agency Staff,04-Apr-2013,2577132-03567536,"1,100.00",CAPITA EDUCATION RESOURCING.
Children and Young Peoples Services,Dedicated Schools Grant,Employees,080025,Agency Staff,04-Apr-2013,2577132-03567537,975.00,CAPITA EDUCATION RESOURCING.
Children and Young Peoples Services,Dedicated Schools Grant,Employees,080025,Agency Staff,04-Apr-2013,2577132-03573240,"1,100.00",CAPITA EDUCATION RESOURCING.
Children and Young Peoples Services,Dedicated Schools Grant,Employees,080025,Agency Staff,04-Apr-2013,2577132-03573242,975.00,CAPITA EDUCATION RESOURCING.
Children and Young Peoples Services,Dedicated Schools Grant,Employees,080025,Agency Staff,04-Apr-2013,2577132-03575758,"1,100.00",CAPITA EDUCATION RESOURCING.
Children and Young Peoples Services,Dedicated Schools Grant,Employees,080025,Agency Staff,04-Apr-2013,2577132-03575759,975.00,CAPITA EDUCATION RESOURCING.
Children and Young Peoples Services,Dedicated Schools Grant,Employees,080025,Agency Staff,04-Apr-2013,2577398-17296,925.00,KEYSTAGE RECRUITMENT LTD.
Children and Young Peoples Services,Dedicated Schools Grant,Employees,080025,Agency Staff,04-Apr-2013,2577398-17349,925.00,KEYSTAGE RECRUITMENT LTD.
Children and Young Peoples Services,Dedicated Schools Grant,Employees,080025,Agency Staff,04-Apr-2013,2577695-797849,700.00,TEACHING PERSONNEL LTD.
Children and Young Peoples Services,Dedicated Schools Grant,Employees,080025,Agency Staff,04-Apr-2013,2577695-797850,603.50,TEACHING PERSONNEL LTD.
Children and Young Peoples Services,Dedicated Schools Grant,Employees,080025,Agency Staff,04-Apr-2013,2577695-797851,"1,020.00",TEACHING PERSONNEL LTD.
Children and Young Peoples Services,Dedicated Schools Grant,Employees,080025,Agency Staff,04-Apr-2013,2577695-797852,"1,025.00",TEACHING PERSONNEL LTD.
Children and Young Peoples Services,Dedicated Schools Grant,Employees,080025,Agency Staff,04-Apr-2013,2577695-797853,950.00,TEACHING PERSONNEL LTD.
Children and Young Peoples Services,Dedicated Schools Grant,Employees,080025,Agency Staff,04-Apr-2013,2577695-800111,"1,025.00",TEACHING PERSONNEL LTD.
Children and Young Peoples Services,Dedicated Schools Grant,Employees,080025,Agency Staff,04-Apr-2013,2577695-800112,560.00,TEACHING PERSONNEL LTD.
Children and Young Peoples Services,Dedicated Schools Grant,Employees,080025,Agency Staff,04-Apr-2013,2577695-800113,603.50,TEACHING PERSONNEL LTD.
Children and Young Peoples Services,Dedicated Schools Grant,Employees,080025,Agency Staff,04-Apr-2013,2577695-800114,"1,020.00",TEACHING PERSONNEL LTD.
Children and Young Peoples Services,Dedicated Schools Grant,Employees,080025,Agency Staff,04-Apr-2013,2577695-800115,"1,025.00",TEACHING PERSONNEL LTD.
Children and Young Peoples Services,Dedicated Schools Grant,Employees,080025,Agency Staff,04-Apr-2013,2577695-800116,950.00,TEACHING PERSONNEL LTD.
Children and Young Peoples Services,Dedicated Schools Grant,Supplies and Services,384199,Miscellaneous Expenses,04-Apr-2013,2577698-430024410,920.56,TEES ESK & WEAR VALLEY NHS FOUNDATION TRUST.
Children and Young Peoples Services,Dedicated Schools Grant,Supplies and Services,384199,Miscellaneous Expenses,04-Apr-2013,2577698-430024670,920.56,TEES ESK & WEAR VALLEY NHS FOUNDATION TRUST.
Corporate Resources,Human Resources Total,Supplies and Services,338066,Services,04-Apr-2013,2577766-495617,"7,246.00",WARD HADAWAY.
Corporate Resources,ICT Services incl. Design and Print,Construction Work,908105,Construction work,04-Apr-2013,2577036-DUR10116,"4,475.00",802 WORKS LTD.
Corporate Resources,ICT Services incl. Design and Print,Supplies and Services,344102,Telephones,04-Apr-2013,2577759-291229-060,"71,149.00",VIRGIN MEDIA LTD.
Corporate Resources,ICT Services incl. Design and Print,Supplies and Services,332047,"Printing, Stationery and Gen Off Exps",04-Apr-2013,2577687-5783242,627.87,SUPPLIES TEAM LTD.
Corporate Resources,ICT Services incl. Design and Print,Supplies and Services,332029,"Printing, Stationery and Gen Off Exps",04-Apr-2013,2577674-6789,777.00,SPOT ON DISPLAYS LTD.
Corporate Resources,ICT Services incl. Design and Print,Supplies and Services,342223,Computers and Communications,04-Apr-2013,2577756-2320276,"1,660.00",VIGLEN LTD.
Corporate Resources,ICT Services incl. Design and Print,Supplies and Services,342215,Computers and Communications,04-Apr-2013,2577140-HR13-5875,"83,850.54",CELERITY LTD.
Corporate Resources,ICT Services incl. Design and Print,Employees,040149,"Recruitment, Instruction and Training",04-Apr-2013,2577541-700,"1,578.60",OE CAM LLP.
Corporate Resources,ICT Services incl. Design and Print,Stock,926900,Stock in hand-Inventory system,04-Apr-2013,2577358-1238730,"2,654.44",INSIGHT DIRECT (UK) LTD.
Corporate Resources,ICT Services incl. Design and Print,Stock,926900,Stock in hand-Inventory system,04-Apr-2013,2577782-S611871,598.14,XMA LTD.
Corporate Resources,ICT Services incl. Design and Print,Stock,926900,Stock in hand-Inventory system,04-Apr-2013,2577782-S683184,842.79,XMA LTD.
Corporate Resources,ICT Services incl. Design and Print,Supplies and Services,332047,"Printing, Stationery and Gen Off Exps",04-Apr-2013,2577687-5781917,983.28,SUPPLIES TEAM LTD.
Corporate Resources,Legal & Democratic Services,Supplies and Services,352001,Conference Expenses,04-Apr-2013,2577506-2013/24,940.00,NATIONAL ASSOC OF COUNCILLORS ENGLISH REGION.
Neighbourhood Services,Direct Services,Supplies and Services,304221,Equipment and Materials,04-Apr-2013,2577303-SINV-056715,"1,450.00",GELPACK EXCELSIOR LTD.
Neighbourhood Services,Direct Services,Supplies and Services,304221,Equipment and Materials,04-Apr-2013,2577344-B33/0052569,741.03,HOWDEN JOINERY LTD.
Neighbourhood Services,Direct Services,Supplies and Services,304221,Equipment and Materials,04-Apr-2013,2577591-4120147871,881.67,PLUMBING TRADE SUPPLIES LTD.
Neighbourhood Services,Direct Services,Premises,155001,Insurance of Premises,04-Apr-2013,2577443-1304081,"1,701.13",MANDALE INVESTMENTS LTD.
Neighbourhood Services,Direct Services,Third Party Payments,430100,Rendered by Private Contractors,04-Apr-2013,2577226-9100638958,"10,586.32",DORMA UK LTD.
Neighbourhood Services,Direct Services,Supplies and Services,304221,Equipment and Materials,04-Apr-2013,2577393-NB190519,"1,031.25",JT DOVE LTD.
Neighbourhood Services,Direct Services,Third Party Payments,430100,Rendered by Private Contractors,04-Apr-2013,2577503-NL/1699,"2,522.97",N & N SECURITY FENCING LTD.
Neighbourhood Services,Direct Services,Supplies and Services,304221,Equipment and Materials,04-Apr-2013,2577124-1660/0779703,"1,390.46",BSS GROUP PLC.
Neighbourhood Services,Direct Services,Supplies and Services,304221,Equipment and Materials,04-Apr-2013,2577158-8115437,"3,999.62",CLOVER CONTROLS LTD.
Neighbourhood Services,Direct Services,Supplies and Services,304221,Equipment and Materials,04-Apr-2013,2577783-034767-001,"5,691.47",XTRALITE (ROOFLIGHTS) LTD.
Neighbourhood Services,"Heritage, Culture & Libraries",Supplies and Services,384199,Miscellaneous Expenses,04-Apr-2013,2577261-C-INV-52402-2013,500.00,ELASTIC ARTISTS AGENCY LTD.
Neighbourhood Services,"Heritage, Culture & Libraries",Supplies and Services,384199,Miscellaneous Expenses,04-Apr-2013,2577061-030,"1,000.00",AMIE SLAVEN.
Neighbourhood Services,"Heritage, Culture & Libraries",Supplies and Services,384199,Miscellaneous Expenses,04-Apr-2013,2577430-LJ011,"1,500.00",LOUIE O`GRADY& JESSICA MAUNTNER T/A LOUIE & JESSE..
Neighbourhood Services,"Heritage, Culture & Libraries",Supplies and Services,384199,Miscellaneous Expenses,04-Apr-2013,2577491-13/104,900.00,MRS AM LISTER.
Neighbourhood Services,"Heritage, Culture & Libraries",Supplies and Services,384199,Miscellaneous Expenses,04-Apr-2013,2577731-1253626,"6,815.00",TRAVELEX GLOBAL BUSINESS PAYMENTS LTD.
Neighbourhood Services,"Heritage, Culture & Libraries",Supplies and Services,384199,Miscellaneous Expenses,04-Apr-2013,2577731-1253632,"7,415.00",TRAVELEX GLOBAL BUSINESS PAYMENTS LTD.
Neighbourhood Services,"Heritage, Culture & Libraries",Supplies and Services,336005,Advertising,04-Apr-2013,2577720-100000926398,"3,168.25",TMP (UK) LTD (RECRUITMENT).
Neighbourhood Services,Projects and Business services,Supplies and Services,340001,Postages,04-Apr-2013,2577631-9042393712,"2,042.46",ROYAL MAIL GROUP PLC.
Neighbourhood Services,Sport & Leisure,Premises,120037,Energy Costs,04-Apr-2013,2577164-063428,"1,985.28",COAL4ENERGY LTD.
Neighbourhood Services,Sport & Leisure,Supplies and Services,304259,Equipment and Materials,04-Apr-2013,2577364-24274,580.00,INTERPLAN SIGN SYSTEMS LTD.
Neighbourhood Services,Sport & Leisure,"Vehicles, Equipment, Furniture and Fittings",912529,Purchase-equipment,04-Apr-2013,2577442-7995,"10,525.00",MADDISON WATER TECHNOLOGY LTD.
Neighbourhood Services,Sport & Leisure,"Vehicles, Equipment, Furniture and Fittings",912529,Purchase-equipment,04-Apr-2013,2577569-0000060448,"2,236.30",PEART FENCING LTD.
Neighbourhood Services,Technical Services,Stock,926004,Stock,04-Apr-2013,2577156-90125011,"3,173.02",CLEVELAND POTASH LTD.
Neighbourhood Services,Technical Services,Stock,926004,Stock,04-Apr-2013,2577156-90125012,"2,704.60",CLEVELAND POTASH LTD.
Neighbourhood Services,Technical Services,Stock,926004,Stock,04-Apr-2013,2577156-90125013,"13,808.56",CLEVELAND POTASH LTD.
Neighbourhood Services,Technical Services,Supplies and Services,304221,Equipment and Materials,04-Apr-2013,2577595-049716,941.59,PREMIER WASTE MANAGEMENT LTD.
Neighbourhood Services,Technical Services,Supplies and Services,304221,Equipment and Materials,04-Apr-2013,2577050-17760004,654.82,AGGREGATE INDUSTRIES UK LTD.
Neighbourhood Services,Technical Services,Supplies and Services,304221,Equipment and Materials,04-Apr-2013,2577050-17760005,652.28,AGGREGATE INDUSTRIES UK LTD.
Neighbourhood Services,Technical Services,Supplies and Services,304357,Equipment and Materials,04-Apr-2013,2577308-9074,728.00,GEORGE VARDY HAULAGE.
Neighbourhood Services,Technical Services,Supplies and Services,304357,Equipment and Materials,04-Apr-2013,2577308-9106,"1,030.00",GEORGE VARDY HAULAGE.
Neighbourhood Services,Technical Services,Supplies and Services,304357,Equipment and Materials,04-Apr-2013,2577308-9118,714.00,GEORGE VARDY HAULAGE.
Neighbourhood Services,Technical Services,Third Party Payments,430100,Rendered by Private Contractors,04-Apr-2013,2577332-SIN7033959,516.25,HCS DRAIN SERVICES LTD.
Neighbourhood Services,Technical Services,Supplies and Services,304358,Equipment and Materials,04-Apr-2013,2577370-1126,"1,510.00",J & JG GILL & SONS LTD.
Neighbourhood Services,Technical Services,Supplies and Services,304358,Equipment and Materials,04-Apr-2013,2577386-13536,707.40,JOHN R BUTTERFIELD LTD.
Neighbourhood Services,Technical Services,Third Party Payments,430100,Rendered by Private Contractors,04-Apr-2013,2577456-13024,"1,534.63",MEERDINK (UK) LTD.
Neighbourhood Services,Technical Services,Supplies and Services,304358,Equipment and Materials,04-Apr-2013,2577786-3094,926.75,YOULL CONSTRUCTION LTD.
Neighbourhood Services,Technical Services,Supplies and Services,384999,Miscellaneous Expenses,04-Apr-2013,2577058-20634,505.00,ALLWAG PROMOTIONS LTD.
RED HRA,East Durham Homes - HRA Rent Control Account,Premises,150005,Apportioned Exps of Operational Blds,04-Apr-2013,2577244-SINV/00002984,"96,984.27",EAST DURHAM HOMES.
RED HRA,East Durham Homes - HRA Rent Control Account,Premises,150005,Apportioned Exps of Operational Blds,04-Apr-2013,2577244-SINV/00002986,"5,481.00",EAST DURHAM HOMES.
RED HRA,East Durham Homes - HRA Rent Control Account,Premises,150005,Apportioned Exps of Operational Blds,04-Apr-2013,2577244-SINV/00002987,539.98,EAST DURHAM HOMES.
RED HRA,East Durham Homes - HRA Rent Control Account,Premises,150005,Apportioned Exps of Operational Blds,04-Apr-2013,2577244-SINV/00002988,626.89,EAST DURHAM HOMES.
RED HRA,East Durham Homes - HRA Rent Control Account,Premises,150005,Apportioned Exps of Operational Blds,04-Apr-2013,2577244-SINV/00002989,"1,305.88",EAST DURHAM HOMES.
RED HRA,East Durham Homes - HRA Rent Control Account,Premises,150005,Apportioned Exps of Operational Blds,04-Apr-2013,2577244-SINV/00002990,"11,691.58",EAST DURHAM HOMES.
RED HRA,East Durham Homes - HRA Rent Control Account,Premises,150005,Apportioned Exps of Operational Blds,04-Apr-2013,2577244-SINV/00003021,"91,795.22",EAST DURHAM HOMES.
RED HRA,East Durham Homes - HRA Rent Control Account,Premises,150005,Apportioned Exps of Operational Blds,04-Apr-2013,2577244-SINV/00003023,"5,329.80",EAST DURHAM HOMES.
RED HRA,East Durham Homes - HRA Rent Control Account,Premises,150005,Apportioned Exps of Operational Blds,04-Apr-2013,2577244-SINV/00003024,533.09,EAST DURHAM HOMES.
RED HRA,East Durham Homes - HRA Rent Control Account,Premises,150005,Apportioned Exps of Operational Blds,04-Apr-2013,2577244-SINV/00003025,618.24,EAST DURHAM HOMES.
RED HRA,East Durham Homes - HRA Rent Control Account,Premises,150005,Apportioned Exps of Operational Blds,04-Apr-2013,2577244-SINV/00003026,"1,293.86",EAST DURHAM HOMES.
RED HRA,East Durham Homes - HRA Rent Control Account,Premises,150005,Apportioned Exps of Operational Blds,04-Apr-2013,2577244-SINV/00003027,"11,648.30",EAST DURHAM HOMES.
RED HRA,Housing Revenue Account,Supplies and Services,384999,Miscellaneous Expenses,04-Apr-2013,2577244-SINV/00002991,"2,340.81",EAST DURHAM HOMES.
RED HRA,Housing Revenue Account,Supplies and Services,384999,Miscellaneous Expenses,04-Apr-2013,2577244-SINV/00003028,"2,311.41",EAST DURHAM HOMES.
RED HRA,Housing Revenue Account,Supplies and Services,384999,Miscellaneous Expenses,04-Apr-2013,2577244-SINV/00003029,"13,656.89",EAST DURHAM HOMES.
RED HRA,Housing Revenue Account,Supplies and Services,384999,Miscellaneous Expenses,04-Apr-2013,2577244-SINV/00003030,"5,792.85",EAST DURHAM HOMES.
RED HRA,Housing Revenue Account,Supplies and Services,384999,Miscellaneous Expenses,04-Apr-2013,2577244-SINV/00003031,"7,952.79",EAST DURHAM HOMES.
RED HRA,HRA Capital,Construction Work,908105,Construction work,04-Apr-2013,2577789-27752,"9,846.18",YWC GROUP LTD.
RED HRA,HRA Capital,Construction Work,908105,Construction work,04-Apr-2013,2577271-105487CERT10,"20,750.89",ESH CONSTRUCTION LTD FORMERLY LUMSDEN & CARROLL CONSTRUCTION LTD.
RED HRA,HRA Capital,Construction Work,908105,Construction work,04-Apr-2013,2577271-105489CERT10,"36,382.59",ESH CONSTRUCTION LTD FORMERLY LUMSDEN & CARROLL CONSTRUCTION LTD.
RED HRA,HRA Capital,Construction Work,908105,Construction work,04-Apr-2013,2577271-106226CERT11,"46,500.00",ESH CONSTRUCTION LTD FORMERLY LUMSDEN & CARROLL CONSTRUCTION LTD.
RED HRA,HRA Capital,Construction Work,908105,Construction work,04-Apr-2013,2577271-106228CERT11369/2/1,"46,500.00",ESH CONSTRUCTION LTD FORMERLY LUMSDEN & CARROLL CONSTRUCTION LTD.
RED HRA,HRA Capital,Construction Work,908105,Construction work,04-Apr-2013,2577384-167419,"17,782.56",JOHN FLOWERS LTD.
RED HRA,HRA Capital,Construction Work,908105,Construction work,04-Apr-2013,2577210-167696CERT8,"5,297.53",DELTA ELECTRICAL & MECHANICAL SERVICES.
RED HRA,HRA Capital,Construction Work,908105,Construction work,04-Apr-2013,2577165-167369CERT10,"22,138.09",COAST & COUNTRY HOUSING LTD.
RED HRA,HRA Capital,Construction Work,908105,Construction work,04-Apr-2013,2577351-167368CERT10,"2,690.71",IMPEY SHOWERS LTD.
RED HRA,HRA Capital,Construction Work,908105,Construction work,04-Apr-2013,2577244-SINV/00003034,"5,005.00",EAST DURHAM HOMES.
RED HRA,HRA Capital,Construction Work,908105,Construction work,04-Apr-2013,2577459-CON61483,"1,950.00",MIS ENVIRONMENTAL LTD.
RED HRA,HRA Capital,Construction Work,908105,Construction work,04-Apr-2013,2577459-CON61545,530.00,MIS ENVIRONMENTAL LTD.
RED HRA,HRA Capital,Construction Work,908105,Construction work,04-Apr-2013,2577459-CON61546,552.00,MIS ENVIRONMENTAL LTD.
RED HRA,HRA Capital,Construction Work,908105,Construction work,04-Apr-2013,2577459-CON61550,"3,290.00",MIS ENVIRONMENTAL LTD.
RED HRA,HRA Capital,Construction Work,908105,Construction work,04-Apr-2013,2577399-12090027,"20,377.33",KIER SERVICES LTD.
RED HRA,HRA Capital,Construction Work,908105,Construction work,04-Apr-2013,2577399-12090028,"4,575.45",KIER SERVICES LTD.
RED HRA,HRA Capital,Construction Work,908105,Construction work,04-Apr-2013,2577399-12090029,"6,388.48",KIER SERVICES LTD.
RED HRA,HRA Capital,Construction Work,908105,Construction work,04-Apr-2013,2577399-12090030,"47,761.70",KIER SERVICES LTD.
Regeneration & Economic Development,Economic Development and Housing,Other Expenses,914001,Other capital expenses,04-Apr-2013,2577385-NI021683,"48,189.86",JOHN MACLEAN & SONS ELECTRICAL (DINGWALL) LTD.
Regeneration & Economic Development,Economic Development and Housing,Supplies and Services,384999,Miscellaneous Expenses,04-Apr-2013,2577112-1160,"1,500.00",BREEZE STRATEGY LTD.
Regeneration & Economic Development,Economic Development and Housing,Supplies and Services,384199,Miscellaneous Expenses,04-Apr-2013,2577075-INV-1316,500.00,ARKENFORD LTD.
Regeneration & Economic Development,Economic Development and Housing,Supplies and Services,384700,Miscellaneous Expenses,04-Apr-2013,2577309-WAGESSUBSIDY-MU,"1,425.60",GIBSON BUILDING CONTRACTOR LTD.
Regeneration & Economic Development,Economic Development and Housing,Other Expenses,914001,Other capital expenses,04-Apr-2013,2577633-RD001/2013,640.00,RUBY&D.
Regeneration & Economic Development,Economic Development and Housing,Construction Work,908105,Construction work,04-Apr-2013,2577534-ANNF,"10,878.34",NORTHUMBRIAN WATER LTD.
Regeneration & Economic Development,Economic Development and Housing,Construction Work,908105,Construction work,04-Apr-2013,2577534-DRUM,"10,176.53",NORTHUMBRIAN WATER LTD.
Regeneration & Economic Development,Economic Development and Housing,Construction Work,908105,Construction work,04-Apr-2013,2577534-GREEN,"11,432.49",NORTHUMBRIAN WATER LTD.
Regeneration & Economic Development,Economic Development and Housing,Construction Work,908105,Construction work,04-Apr-2013,2577534-ADVENT,"8,528.79",NORTHUMBRIAN WATER LTD.
Regeneration & Economic Development,Economic Development and Housing,Supplies and Services,368008,Incentives to Industrialists,04-Apr-2013,2577267-ES00053,"3,340.00",EMPTY SHOP.
Regeneration & Economic Development,Economic Development and Housing,Other Expenses,914001,Other capital expenses,04-Apr-2013,2577305-SIGN/00033997,"4,000.00",GENTOO CONSTRUCTION LTD.
Regeneration & Economic Development,Economic Development and Housing,Cap Exp on Grants & Other Financial Assistance (REFCUS),918401,Capital grants,04-Apr-2013,2577037-339,"7,347.60",A OGILVIE BUILDING CONTRACTORS LTD.
Regeneration & Economic Development,Economic Development and Housing,Cap Exp on Grants & Other Financial Assistance (REFCUS),918401,Capital grants,04-Apr-2013,2577188-107,"4,345.00",CRAIG PATTERSON T/A LET ME GET YOU WET.
Regeneration & Economic Development,Economic Development and Housing,Cap Exp on Grants & Other Financial Assistance (REFCUS),918401,Capital grants,04-Apr-2013,2577240-12419,"1,728.26",EASIBATHE LTD.
Regeneration & Economic Development,Economic Development and Housing,Cap Exp on Grants & Other Financial Assistance (REFCUS),918401,Capital grants,04-Apr-2013,2577240-12420,"2,364.15",EASIBATHE LTD.
Regeneration & Economic Development,Economic Development and Housing,Cap Exp on Grants & Other Financial Assistance (REFCUS),918401,Capital grants,04-Apr-2013,2577240-12512,"2,514.58",EASIBATHE LTD.
Regeneration & Economic Development,Economic Development and Housing,Cap Exp on Grants & Other Financial Assistance (REFCUS),918401,Capital grants,04-Apr-2013,2577265-090GE,"2,970.00",ELLIOT HIRD & PARTNERS LTD.
Regeneration & Economic Development,Economic Development and Housing,Cap Exp on Grants & Other Financial Assistance (REFCUS),918401,Capital grants,04-Apr-2013,2577265-091JH,"6,190.00",ELLIOT HIRD & PARTNERS LTD.
Regeneration & Economic Development,Economic Development and Housing,Cap Exp on Grants & Other Financial Assistance (REFCUS),918401,Capital grants,04-Apr-2013,2577279-DFG494/12,"3,200.00",F TIFFEN BUILDING SERVICES.
Regeneration & Economic Development,Economic Development and Housing,Cap Exp on Grants & Other Financial Assistance (REFCUS),918401,Capital grants,04-Apr-2013,2577279-DFG500/12,"2,777.85",F TIFFEN BUILDING SERVICES.
Regeneration & Economic Development,Economic Development and Housing,Cap Exp on Grants & Other Financial Assistance (REFCUS),918401,Capital grants,04-Apr-2013,2577279-DFG501/12,"4,790.00",F TIFFEN BUILDING SERVICES.
Regeneration & Economic Development,Economic Development and Housing,Cap Exp on Grants & Other Financial Assistance (REFCUS),918401,Capital grants,04-Apr-2013,2577394-DFG484/12,"4,200.00",KAJEN PLUMBING & HEATING LTD.
Regeneration & Economic Development,Economic Development and Housing,Cap Exp on Grants & Other Financial Assistance (REFCUS),918401,Capital grants,04-Apr-2013,2577655-149,"3,353.00",SHAPE ADAPTATIONS LTD.
Regeneration & Economic Development,Economic Development and Housing,Cap Exp on Grants & Other Financial Assistance (REFCUS),918401,Capital grants,04-Apr-2013,2577715-SIP-122883,"1,386.12",THYSSENKRUPP ENCASA LTD.
Regeneration & Economic Development,Economic Development and Housing,Cap Exp on Grants & Other Financial Assistance (REFCUS),918401,Capital grants,04-Apr-2013,2577715-SIP122810,"4,315.00",THYSSENKRUPP ENCASA LTD.
Regeneration & Economic Development,Economic Development and Housing,Cap Exp on Grants & Other Financial Assistance (REFCUS),918401,Capital grants,04-Apr-2013,2577715-SIP122936,"4,425.00",THYSSENKRUPP ENCASA LTD.
Regeneration & Economic Development,Economic Development and Housing,Cap Exp on Grants & Other Financial Assistance (REFCUS),918401,Capital grants,04-Apr-2013,2577715-SIP200001,"13,452.50",THYSSENKRUPP ENCASA LTD.
Regeneration & Economic Development,"Spatial Policy, Planning, Assets & Environment",Supplies and Services,384700,Miscellaneous Expenses,04-Apr-2013,2577235-12146,600.00,DURHAM WILDLIFE TRUST LTD.
Regeneration & Economic Development,"Spatial Policy, Planning, Assets & Environment",Supplies and Services,384700,Miscellaneous Expenses,04-Apr-2013,2577236-REIMB,800.00,DURHAM WILDLIFE TRUST LTD.
Regeneration & Economic Development,"Spatial Policy, Planning, Assets & Environment",Supplies and Services,384700,Miscellaneous Expenses,04-Apr-2013,2577323-LL011-CLAIM8,"1,064.09",GROUNDWORK NORTH EAST.
Regeneration & Economic Development,"Spatial Policy, Planning, Assets & Environment",Supplies and Services,384700,Miscellaneous Expenses,04-Apr-2013,2577324-REIMB-LL001CLAIM08,"3,685.41",GROUNDWORK NORTH EAST.
Regeneration & Economic Development,"Spatial Policy, Planning, Assets & Environment",Supplies and Services,384700,Miscellaneous Expenses,04-Apr-2013,2577324-REIMB-LL016CLAIM08,"21,500.69",GROUNDWORK NORTH EAST.
Regeneration & Economic Development,"Spatial Policy, Planning, Assets & Environment",Supplies and Services,384700,Miscellaneous Expenses,04-Apr-2013,2577324-REIMB-LL017CLAIM07,847.66,GROUNDWORK NORTH EAST.
Regeneration & Economic Development,"Spatial Policy, Planning, Assets & Environment",Supplies and Services,384700,Miscellaneous Expenses,04-Apr-2013,2577529-REIMB-LL023CLAIM08,"3,494.50",NORTH OF ENGLAND CIVIC TRUST.
Regeneration & Economic Development,"Spatial Policy, Planning, Assets & Environment",Supplies and Services,384700,Miscellaneous Expenses,04-Apr-2013,2577277-GRANT,"5,647.65",REDACTED - PAYMENT TO INDIVIDUAL
Regeneration & Economic Development,"Spatial Policy, Planning, Assets & Environment",Supplies and Services,384700,Miscellaneous Expenses,04-Apr-2013,2577476-GRANT,"3,102.40",REDACTED - PAYMENT TO INDIVIDUAL
Regeneration & Economic Development,"Spatial Policy, Planning, Assets & Environment",Supplies and Services,384700,Miscellaneous Expenses,04-Apr-2013,2577482-GRANT,"2,853.40",REDACTED - PAYMENT TO INDIVIDUAL
Regeneration & Economic Development,"Spatial Policy, Planning, Assets & Environment",Supplies and Services,384700,Miscellaneous Expenses,04-Apr-2013,2577483-GRANT,"1,457.00",REDACTED - PAYMENT TO INDIVIDUAL
Regeneration & Economic Development,"Spatial Policy, Planning, Assets & Environment",Supplies and Services,384700,Miscellaneous Expenses,04-Apr-2013,2577488-GRANT,"1,277.50",REDACTED - PAYMENT TO INDIVIDUAL
Regeneration & Economic Development,"Spatial Policy, Planning, Assets & Environment",Transport,235057,Public Transport,04-Apr-2013,2577157-330670,"3,036.76",CLICK TRAVEL LTD.
Regeneration & Economic Development,Transport,Supplies and Services,304259,Equipment and Materials,04-Apr-2013,2577737-3IN/10218205,"1,873.50",TUNSTALL HEALTHCARE (UK) LTD.
Regeneration & Economic Development,Transport,Supplies and Services,304259,Equipment and Materials,04-Apr-2013,2577737-3IN/10218601,"1,466.80",TUNSTALL HEALTHCARE (UK) LTD.
Regeneration & Economic Development,Transport,Supplies and Services,304259,Equipment and Materials,04-Apr-2013,2577737-3IN/10218718,"1,026.80",TUNSTALL HEALTHCARE (UK) LTD.
Regeneration & Economic Development,Transport,Premises,120009,Energy Costs,04-Apr-2013,2577109-CCE,767.52,BOWBURN COMMUNITY ASSOCIATION.
Regeneration & Economic Development,Transport,"Vehicles, Equipment, Furniture and Fittings",912529,Purchase-equipment,04-Apr-2013,2577737-3IN/20124108,"30,006.00",TUNSTALL HEALTHCARE (UK) LTD.
Adults Wellbeing and Health,Commissioning inc Supporting People,Transport,240045,Car Allowances,05-Apr-2013,2578074-2800,"18,445.68",SOCIAL RESOURCE CENTRE LTD.
Adults Wellbeing and Health,Commissioning inc Supporting People,Third Party Payments,479111,Purchase of Care,05-Apr-2013,2578044-LD111FINALQTR,"24,727.75",REAL LIVES REAL CHOICES.
Adults Wellbeing and Health,Commissioning inc Supporting People,Third Party Payments,479111,Purchase of Care,05-Apr-2013,2578044-LD111QTR3-12/13,"24,727.75",REAL LIVES REAL CHOICES.
Adults Wellbeing and Health,Head of Adults,Transfer Payments,515201,Social Services Clients,05-Apr-2013,2577961,609.26,REDACTED - PAYMENT TO INDIVIDUAL
Adults Wellbeing and Health,Head of Adults,Supplies and Services,338370,Services,05-Apr-2013,2577859-3949098,"47,783.00",CO DURHAM & DARLINGTON NHS FOUNDATION TRUST.
Adults Wellbeing and Health,Head of Adults,Transport,230005,Contract Hire,05-Apr-2013,2577932-7960,"1,757.50",GREENCROFT MINI COACHES.
Adults Wellbeing and Health,Head of Adults,Supplies and Services,384616,Miscellaneous Expenses,05-Apr-2013,2578041-CSIV2651,"1,128.90",PROGRESS CARE HOUSING ASSOCIATION LTD.
Adults Wellbeing and Health,Head of Adults,Third Party Payments,472101,Purchase of Care,05-Apr-2013,2577875-3664,"1,929.50",DCS & D LTD T/A HERITAGE HEALTHCARE.
Adults Wellbeing and Health,Head of Adults,Premises,108099,Service Repairs and Maintenance,05-Apr-2013,2578114-1099,810.00,UPNORTH FOODSERVICE EQUIPMENT LTD.
Adults Wellbeing and Health,Planning and Performance,Supplies and Services,352001,Conference Expenses,05-Apr-2013,2578045-RGB109,"4,200.00",RGB TRAINING MANAGEMENT.
Adults Wellbeing and Health,Planning and Performance,Supplies and Services,352001,Conference Expenses,05-Apr-2013,2578006-AD11,"2,400.00",NEDATS.
Adults Wellbeing and Health,Planning and Performance,Employees,040149,"Recruitment, Instruction and Training",05-Apr-2013,2578045-RGB113,"1,200.00",RGB TRAINING MANAGEMENT.
Adults Wellbeing and Health,Social Inclusion,Supplies and Services,384540,Miscellaneous Expenses,05-Apr-2013,2577856-FTI0002100,"1,895.00",CLEAR CHANNEL UK LTD.
Adults Wellbeing and Health,Social Inclusion,Supplies and Services,304259,Equipment and Materials,05-Apr-2013,2577915-374,"3,200.00",FIRST IN TRAINING LTD.
Assistant Chief Executive,Partnerships & Community Engagement Div.,Supplies and Services,384199,Miscellaneous Expenses,05-Apr-2013,2577825-STANLEYPB,"1,050.00",BARBARAS CATERING SERVICE.
Assistant Chief Executive,Partnerships & Community Engagement Div.,Premises,135005,Water Services,05-Apr-2013,2578020-260101200036039,"2,067.45",NORTHUMBRIAN WATER LTD.
Children and Young Peoples Services,CYPS - Local Authority,Supplies and Services,338027,Services,05-Apr-2013,2577972-1000120,"27,796.27",KING JAMES I ACADEMY.
Children and Young Peoples Services,CYPS - Local Authority,Premises,108099,Service Repairs and Maintenance,05-Apr-2013,2577845-13505,660.60,CATHEDRAL LOCK & SAFE SERVICES LTD.
Children and Young Peoples Services,CYPS - Local Authority,Premises,108099,Service Repairs and Maintenance,05-Apr-2013,2577845-13504,"1,815.87",CATHEDRAL LOCK & SAFE SERVICES LTD.
Children and Young Peoples Services,CYPS - Local Authority,Supplies and Services,384491,Miscellaneous Expenses,05-Apr-2013,2577909-12C/69FREEDOM,792.00,EMERALD NURSERY.
Children and Young Peoples Services,CYPS - Local Authority,Supplies and Services,384491,Miscellaneous Expenses,05-Apr-2013,2577928-7981,750.00,GIANT STEPS LTD.
Children and Young Peoples Services,CYPS - Local Authority,Supplies and Services,384641,Miscellaneous Expenses,05-Apr-2013,2577817-205,637.50,AUCKLAND YOUTH & COMMUNITY ASSOCIATION.
Children and Young Peoples Services,CYPS - Local Authority,Supplies and Services,384641,Miscellaneous Expenses,05-Apr-2013,2577817-206,742.50,AUCKLAND YOUTH & COMMUNITY ASSOCIATION.
Children and Young Peoples Services,CYPS - Local Authority,Premises,145015,Cleaning and Domestic Supplies,05-Apr-2013,2577877-164526,715.00,DENIS RAWLINS LTD.
Children and Young Peoples Services,CYPS - Local Authority,Supplies and Services,384409,Miscellaneous Expenses,05-Apr-2013,2578079-MID,870.00,SPENNYMOOR YOUTH & COMMUNITY ASSOCIATION.
Children and Young Peoples Services,CYPS - Local Authority,Supplies and Services,338099,Services,05-Apr-2013,2577878-SAIF,"2,775.41",DERWENTSIDE COUNCIL FOR VOL SERVICES & VOL BUREAU.
Children and Young Peoples Services,CYPS - Local Authority,Supplies and Services,304259,Equipment and Materials,05-Apr-2013,2577996-M10889604,605.33,MISCO.
Children and Young Peoples Services,CYPS - Local Authority,Transport,230007,Contract Hire,05-Apr-2013,2578106-1247,633.27,TRAPPA`S TRAVEL.
Children and Young Peoples Services,CYPS - Local Authority,Transport,230007,Contract Hire,05-Apr-2013,2578106-1251,"1,480.00",TRAPPA`S TRAVEL.
Children and Young Peoples Services,CYPS - Local Authority,Transport,230007,Contract Hire,05-Apr-2013,2578106-1252,"1,200.00",TRAPPA`S TRAVEL.
Children and Young Peoples Services,CYPS - Local Authority,Transport,230007,Contract Hire,05-Apr-2013,2578092-66659,"2,499.00",TGM GROUP LTD T/A CLASSIC COACHES (CONTINENTAL) LTD.
Children and Young Peoples Services,CYPS - Local Authority,Transport,230007,Contract Hire,05-Apr-2013,2578106-1249,"1,292.00",TRAPPA`S TRAVEL.
Children and Young Peoples Services,CYPS - Local Authority,Transport,230007,Contract Hire,05-Apr-2013,2578106-1250,"1,020.00",TRAPPA`S TRAVEL.
Children and Young Peoples Services,CYPS - Local Authority,Transport,230007,Contract Hire,05-Apr-2013,2578121-935,"1,068.15",WE CONNOR.
Children and Young Peoples Services,CYPS - Local Authority,Transport,230007,Contract Hire,05-Apr-2013,2578029-5095,"1,192.50",OVERLANDER LTD.
Children and Young Peoples Services,CYPS - Local Authority,Supplies and Services,338027,Services,05-Apr-2013,2577963-19,"1,155.00",JOHN RYMASZEWSKI.
Children and Young Peoples Services,CYPS - Local Authority,Supplies and Services,342007,Computers and Communications,05-Apr-2013,2578064-4029,"3,996.00",SGA SYSTEMS LTD.
Children and Young Peoples Services,CYPS - Local Authority,Supplies and Services,338027,Services,05-Apr-2013,2577827-ASS,"1,900.00",BETH MILLER.
Children and Young Peoples Services,CYPS - Local Authority,Supplies and Services,338027,Services,05-Apr-2013,2577827-ASS,"1,900.00",BETH MILLER.
Children and Young Peoples Services,CYPS - Local Authority,Third Party Payments,425040,Rendered by Voluntary Organisations,05-Apr-2013,2578091-19089,"3,232.86",TEAM FOSTERING.
Children and Young Peoples Services,CYPS - Local Authority,Supplies and Services,304259,Equipment and Materials,05-Apr-2013,2577937-17350,"1,176.01",HANDS FREE COMPUTING LTD.
Children and Young Peoples Services,CYPS - Local Authority,Transport,230005,Contract Hire,05-Apr-2013,2577858-CLUB13012E,700.00,CLUBMAN CABS.
Children and Young Peoples Services,CYPS - Local Authority,Transport,230005,Contract Hire,05-Apr-2013,2577858-CLUB13012D,"1,114.00",CLUBMAN CABS.
Children and Young Peoples Services,CYPS - Local Authority,Employees,040149,"Recruitment, Instruction and Training",05-Apr-2013,2578080-596842.,720.00,STAND & DELIVER.
Children and Young Peoples Services,CYPS - Local Authority,Supplies and Services,338057,Services,05-Apr-2013,2577867-511768,"1,221.14",COUNTY DURHAM PCT .
Children and Young Peoples Services,Dedicated Schools Grant,Third Party Payments,410037,Rendered by Other Local Authorities,05-Apr-2013,2578012-1800006375526,"13,877.48",NEWCASTLE UPON TYNE CITY COUNCIL.
Corporate Resources,Asset Management,Premises,106099,Centrally Controlled Rep and Maint,05-Apr-2013,2578058-95146427,"3,683.49",SCHNEIDER ELECTRIC LTD.
Corporate Resources,Financing- Resources,Supplies and Services,332047,"Printing, Stationery and Gen Off Exps",05-Apr-2013,2578087-5767668,532.44,SUPPLIES TEAM LTD.
Corporate Resources,ICT Services incl. Design and Print,"Vehicles, Equipment, Furniture and Fittings",912701,Computer equipment,05-Apr-2013,2578116-2320483,538.00,VIGLEN LTD.
Corporate Resources,ICT Services incl. Design and Print,Supplies and Services,332029,"Printing, Stationery and Gen Off Exps",05-Apr-2013,2577941-65968,"1,196.00",HILLPRINT MEDIA LTD.
Corporate Resources,ICT Services incl. Design and Print,Supplies and Services,332029,"Printing, Stationery and Gen Off Exps",05-Apr-2013,2577941-66001,"1,386.00",HILLPRINT MEDIA LTD.
Corporate Resources,ICT Services incl. Design and Print,Supplies and Services,344135,Telephones,05-Apr-2013,2577795-DUR10117,"1,832.00",802 WORKS LTD.
Corporate Resources,ICT Services incl. Design and Print,Supplies and Services,342215,Computers and Communications,05-Apr-2013,2577948-1903130137,"4,009.01",IBM UNITED KINGDOM LTD.
Corporate Resources,ICT Services incl. Design and Print,Supplies and Services,338027,Services,05-Apr-2013,2578077-OP/L629357,"2,500.00",SPECIALIST COMPUTER CENTRES PLC.
Corporate Resources,ICT Services incl. Design and Print,Debtors,930167,Debtor-Telephone Holding Account,05-Apr-2013,2577835-VP,"2,194.36",BRITISH TELECOMMUNICATIONS PLC.
Corporate Resources,ICT Services incl. Design and Print,Stock,926900,Stock in hand-Inventory system,05-Apr-2013,2578130-S804340,"1,412.83",XMA LTD.
Corporate Resources,Legal & Democratic Services,Premises,125009,Rents,05-Apr-2013,2577878-1601,672.00,DERWENTSIDE COUNCIL FOR VOL SERVICES & VOL BUREAU.
Corporate Resources,Legal & Democratic Services,Supplies and Services,384151,Miscellaneous Expenses,05-Apr-2013,2577859-3140188,"36,929.70",CO DURHAM & DARLINGTON NHS FOUNDATION TRUST.
Corporate Resources,Legal & Democratic Services,Supplies and Services,338025,Services,05-Apr-2013,2577860-S44954-00623,810.00,CO-OPERATIVE FUNERAL CARE.
Corporate Resources,Legal & Democratic Services,Supplies and Services,338057,Services,05-Apr-2013,2577887-3/13N,871.20,DR BARRETT.
Corporate Resources,Legal & Democratic Services,Supplies and Services,338057,Services,05-Apr-2013,2577889-3/13N,"2,226.40",DR C PATEL.
Corporate Resources,Legal & Democratic Services,Supplies and Services,338057,Services,05-Apr-2013,2577908-1153,855.10,ELYSIAN PATHOLOGY SERVICES LTD.
Corporate Resources,Legal & Democratic Services,Supplies and Services,338025,Services,05-Apr-2013,2578004-D439,"1,030.00",N ALDERSON FUNERAL DIRECTOR LTD.
Corporate Resources,Legal & Democratic Services,Supplies and Services,338057,Services,05-Apr-2013,2578013-R0202376,700.00,NEWCASTLE UPON TYNE HOSPITALS NHS FOUNDATION TRUST.
Corporate Resources,Legal & Democratic Services,Supplies and Services,338057,Services,05-Apr-2013,2578018-PAT2955,749.00,NORTHGENE LTD.
Corporate Resources,Legal & Democratic Services,Supplies and Services,338057,Services,05-Apr-2013,2577886-3/13S,"1,258.40",DR BARRETT.
Corporate Resources,Legal & Democratic Services,Supplies and Services,338025,Services,05-Apr-2013,2578060-1208,"1,250.00",SEATON LENG & SON LTD.
Neighbourhood Services,Direct Services,Supplies and Services,328041,"Clothing, Uniforms and Laundry",05-Apr-2013,2577958-6178,520.85,JG UNIFORMS.
Neighbourhood Services,Direct Services,Supplies and Services,304259,Equipment and Materials,05-Apr-2013,2577843-438901,"2,760.00",CARRS BILLINGTON AGRICULTURE.
Neighbourhood Services,Direct Services,Supplies and Services,304259,Equipment and Materials,05-Apr-2013,2577843-438902,"1,095.00",CARRS BILLINGTON AGRICULTURE.
Neighbourhood Services,Direct Services,Premises,125009,Rents,05-Apr-2013,2577829-662,"4,615.00",BMA PROPERTIES LTD.
Neighbourhood Services,Direct Services,"Vehicles, Equipment, Furniture and Fittings",912529,Purchase-equipment,05-Apr-2013,2578054-RMI1358,"1,673.45",RUGGED MOBILE SYSTEMS LTD.
Neighbourhood Services,Direct Services,"Vehicles, Equipment, Furniture and Fittings",912529,Purchase-equipment,05-Apr-2013,2578054-RMI1359,"6,283.20",RUGGED MOBILE SYSTEMS LTD.
Neighbourhood Services,Direct Services,Third Party Payments,430101,Rendered by Private Contractors,05-Apr-2013,2577940-INV09060714,551.40,HI Q TYRESERVICES.
Neighbourhood Services,Direct Services,Transport,230710,Contract Hire,05-Apr-2013,2578117-1I/0018786/03,"7,800.00",VIRTUAL LEASE SERVICES LTD.
Neighbourhood Services,Direct Services,Supplies and Services,304259,Equipment and Materials,05-Apr-2013,2577986-SVS/90016094,599.00,MAHA UK LTD.
Neighbourhood Services,Direct Services,Supplies and Services,304221,Equipment and Materials,05-Apr-2013,2578035-168427,632.09,PLUMBING TRADE SUPPLIES LTD.
Neighbourhood Services,Direct Services,Supplies and Services,304221,Equipment and Materials,05-Apr-2013,2578035-4120147705,818.64,PLUMBING TRADE SUPPLIES LTD.
Neighbourhood Services,Direct Services,Supplies and Services,304221,Equipment and Materials,05-Apr-2013,2578035-4120147869,785.70,PLUMBING TRADE SUPPLIES LTD.
Neighbourhood Services,Direct Services,Supplies and Services,304221,Equipment and Materials,05-Apr-2013,2578035-4120147994,"1,036.25",PLUMBING TRADE SUPPLIES LTD.
Neighbourhood Services,Direct Services,Premises,106099,Centrally Controlled Rep and Maint,05-Apr-2013,2577984-4128,730.00,LUCION ENVIRONMENTAL LLP LTD.
Neighbourhood Services,Direct Services,Premises,106099,Centrally Controlled Rep and Maint,05-Apr-2013,2577939-91193CR1,755.04,HEPSCOTT WATER SYSTEMS LTD.
Neighbourhood Services,Direct Services,Premises,106099,Centrally Controlled Rep and Maint,05-Apr-2013,2578083-4065,"2,637.00",STONE TECHNICAL SERVICES LTD.
Neighbourhood Services,Direct Services,Supplies and Services,304221,Equipment and Materials,05-Apr-2013,2577843-439024,505.00,CARRS BILLINGTON AGRICULTURE.
Neighbourhood Services,Direct Services,Supplies and Services,304259,Equipment and Materials,05-Apr-2013,2578011-061433,575.00,NEW ROW FARM NURSERIES.
Neighbourhood Services,Direct Services,Supplies and Services,304259,Equipment and Materials,05-Apr-2013,2577806-9580,975.20,AMENITY & HORTICULTURAL SERVICES LTD.
Neighbourhood Services,Direct Services,Premises,106099,Centrally Controlled Rep and Maint,05-Apr-2013,2577796-90093289,716.44,ABACUS LIGHTING LTD.
Neighbourhood Services,Direct Services,Stock,926900,Stock in hand-Inventory system,05-Apr-2013,2577957-3307/0312276,"3,950.00",JEWSON LTD.
Neighbourhood Services,Direct Services,Stock,926900,Stock in hand-Inventory system,05-Apr-2013,2578030-XL080804,816.00,PARK ELECTRICAL DISTRIBUTORS LTD.
Neighbourhood Services,Direct Services,Stock,926900,Stock in hand-Inventory system,05-Apr-2013,2578030-XL080810,"1,689.48",PARK ELECTRICAL DISTRIBUTORS LTD.
Neighbourhood Services,Direct Services,Stock,926900,Stock in hand-Inventory system,05-Apr-2013,2578030-XL081052,"2,621.74",PARK ELECTRICAL DISTRIBUTORS LTD.
Neighbourhood Services,Direct Services,Stock,926900,Stock in hand-Inventory system,05-Apr-2013,2578037-9528/259,"4,850.00",POST & COLUMN CO LTD.
Neighbourhood Services,Direct Services,Stock,926900,Stock in hand-Inventory system,05-Apr-2013,2578128-80455282,783.44,WOLSELEY UK LTD.
Neighbourhood Services,Direct Services,"Vehicles, Equipment, Furniture and Fittings",912541,Purchase-vehicles,05-Apr-2013,2577934-104995,"29,449.00",GREENLAY (GRASS MACHINERY) LTD.
Neighbourhood Services,Direct Services,Supplies and Services,304221,Equipment and Materials,05-Apr-2013,2578035-4120147569,"3,096.24",PLUMBING TRADE SUPPLIES LTD.
Neighbourhood Services,Direct Services,Supplies and Services,304221,Equipment and Materials,05-Apr-2013,2578128-80389770,"1,978.84",WOLSELEY UK LTD.
Neighbourhood Services,Direct Services,Supplies and Services,304221,Equipment and Materials,05-Apr-2013,2577992-SIN079132,"1,091.10",MHS BOILERS LTD.
Neighbourhood Services,Direct Services,Supplies and Services,304221,Equipment and Materials,05-Apr-2013,2577992-SIN079242,"1,673.88",MHS BOILERS LTD.
Neighbourhood Services,Direct Services,Third Party Payments,430100,Rendered by Private Contractors,05-Apr-2013,2578078-7006748324,"1,420.87",SPEEDY ASSET SERVICES LTD.
Neighbourhood Services,Direct Services,Third Party Payments,430100,Rendered by Private Contractors,05-Apr-2013,2577845-13460,721.01,CATHEDRAL LOCK & SAFE SERVICES LTD.
Neighbourhood Services,Direct Services,Supplies and Services,304221,Equipment and Materials,05-Apr-2013,2578070-123933,"1,829.93",SIKA LIQUID PLASTICS LTD.
Neighbourhood Services,Direct Services,Supplies and Services,304221,Equipment and Materials,05-Apr-2013,2578105-28430,"2,522.00",TOTAL PUMP SOLUTIONS LTD.
Neighbourhood Services,"Environment,Health & Consumer Protection",Supplies and Services,338027,Services,05-Apr-2013,2578082-405,"18,059.00",STM ENVIRONMENTAL LTD.
Neighbourhood Services,"Environment,Health & Consumer Protection",Employees,040149,"Recruitment, Instruction and Training",05-Apr-2013,2577946-402,"1,890.00",HSF TRAINING LTD.
Neighbourhood Services,"Environment,Health & Consumer Protection",Premises,135005,Water Services,05-Apr-2013,2578020-10230970002X060,943.25,NORTHUMBRIAN WATER LTD.
Neighbourhood Services,"Heritage, Culture & Libraries",Premises,125009,Rents,05-Apr-2013,2577831-BOWB,720.00,BOWBURN COMMUNITY ASSOCIATION.
Neighbourhood Services,"Heritage, Culture & Libraries",Premises,125009,Rents,05-Apr-2013,2577950-6053,"36,141.25",IMPALA ESTATES LTD.
Neighbourhood Services,"Heritage, Culture & Libraries",Supplies and Services,338047,Services,05-Apr-2013,2577899-60092665,823.81,E1 ENTERTAINMENT.
Neighbourhood Services,"Heritage, Culture & Libraries",Supplies and Services,338047,Services,05-Apr-2013,2577982-10120709,666.02,LIONS GATE UK LTD.
Neighbourhood Services,"Heritage, Culture & Libraries",Supplies and Services,338047,Services,05-Apr-2013,2577982-10120710,572.61,LIONS GATE UK LTD.
Neighbourhood Services,"Heritage, Culture & Libraries",Supplies and Services,340001,Postages,05-Apr-2013,2578052-9042745199,"1,078.33",ROYAL MAIL GROUP PLC.
Neighbourhood Services,"Heritage, Culture & Libraries",Supplies and Services,338047,Services,05-Apr-2013,2577854-20130355,"2,779.58",CITY SCREEN LTD.
Neighbourhood Services,"Heritage, Culture & Libraries",Summary Income Level,715699,Sales,05-Apr-2013,2578124-REDEM,"1,109.02",WEST END THEATRE MANAGERS LTD.
Neighbourhood Services,Projects and Business services,Third Party Payments,430103,Rendered by Private Contractors,05-Apr-2013,2577834-RECYC,708.79,BRITISH HEART FOUNDATION.
Neighbourhood Services,Sport & Leisure,Supplies and Services,304259,Equipment and Materials,05-Apr-2013,2577812-694,"1,000.00",ASA JAMES.
Neighbourhood Services,Sport & Leisure,Supplies and Services,304259,Equipment and Materials,05-Apr-2013,2578033-28/03/2013,850.00,PHASE ONE RECORDS LTD.
Neighbourhood Services,Sport & Leisure,Supplies and Services,384700,Miscellaneous Expenses,05-Apr-2013,2577859-3140107,"247,017.02",CO DURHAM & DARLINGTON NHS FOUNDATION TRUST.
Neighbourhood Services,Sport & Leisure,Fees,901002,Professional fees,05-Apr-2013,2578076-732/02/PJ1202,"11,500.00",SOUTHERN GREEN LTD.
Neighbourhood Services,Technical Services,Third Party Payments,460350,Contract Payments,05-Apr-2013,2578032-208671,942.50,PETER MONKHOUSE HAULAGE.
Neighbourhood Services,Technical Services,Third Party Payments,430100,Rendered by Private Contractors,05-Apr-2013,2577814-39340,"6,732.27",ASG (ESSEX) LTD.
Neighbourhood Services,Technical Services,Supplies and Services,304221,Equipment and Materials,05-Apr-2013,2578089-9029341443,"7,280.84",TARMAC LTD.
Neighbourhood Services,Technical Services,Supplies and Services,304221,Equipment and Materials,05-Apr-2013,2577800-17864418,"1,220.40",AGGREGATE INDUSTRIES UK LTD.
Neighbourhood Services,Technical Services,Supplies and Services,304221,Equipment and Materials,05-Apr-2013,2577800-17885740,954.04,AGGREGATE INDUSTRIES UK LTD.
Neighbourhood Services,Technical Services,Supplies and Services,304357,Equipment and Materials,05-Apr-2013,2577922-DCC310313,"6,955.75",GAP GROUP LTD.
Neighbourhood Services,Technical Services,Supplies and Services,304358,Equipment and Materials,05-Apr-2013,2577926-9125,"2,643.82",GEORGE VARDY HAULAGE.
Neighbourhood Services,Technical Services,Third Party Payments,430100,Rendered by Private Contractors,05-Apr-2013,2577931-20187,780.00,GRAB & DELIVER LTD.
Neighbourhood Services,Technical Services,Supplies and Services,304358,Equipment and Materials,05-Apr-2013,2577947-78,"3,428.20",IAN WILSON.
Neighbourhood Services,Technical Services,Supplies and Services,304221,Equipment and Materials,05-Apr-2013,2577957-3307/0180470,648.06,JEWSON LTD.
Neighbourhood Services,Technical Services,Supplies and Services,304221,Equipment and Materials,05-Apr-2013,2577957-3307/0180558,"1,000.00",JEWSON LTD.
Neighbourhood Services,Technical Services,Supplies and Services,304221,Equipment and Materials,05-Apr-2013,2577957-3307/0310536,992.50,JEWSON LTD.
Neighbourhood Services,Technical Services,Third Party Payments,430100,Rendered by Private Contractors,05-Apr-2013,2578047-2746,"3,741.00",RINGLAND SCAFFOLDING.
Neighbourhood Services,Technical Services,Supplies and Services,304221,Equipment and Materials,05-Apr-2013,2578067-571968,759.29,SHERBURN STONE CO LTD.
Neighbourhood Services,Technical Services,Supplies and Services,304252,Equipment and Materials,05-Apr-2013,2578102-141011,624.00,TOOL TIME LTD.
Neighbourhood Services,Technical Services,Supplies and Services,304221,Equipment and Materials,05-Apr-2013,2578126-32510,"3,872.00",WILLOWCRETE MFG CO LTD.
Neighbourhood Services,Technical Services,Supplies and Services,304358,Equipment and Materials,05-Apr-2013,2578133-3113,"2,550.00",YOULL CONSTRUCTION LTD.
Neighbourhood Services,Technical Services,Supplies and Services,304358,Equipment and Materials,05-Apr-2013,2578133-3114,"4,766.00",YOULL CONSTRUCTION LTD.
Neighbourhood Services,Technical Services,Supplies and Services,304358,Equipment and Materials,05-Apr-2013,2578133-3115,"3,016.00",YOULL CONSTRUCTION LTD.
Neighbourhood Services,Technical Services,Supplies and Services,304358,Equipment and Materials,05-Apr-2013,2578133-3116,"2,340.75",YOULL CONSTRUCTION LTD.
Neighbourhood Services,Technical Services,Supplies and Services,304358,Equipment and Materials,05-Apr-2013,2578133-3118,"1,910.75",YOULL CONSTRUCTION LTD.
Neighbourhood Services,Technical Services,Supplies and Services,384999,Miscellaneous Expenses,05-Apr-2013,2577798-60268123-43,"2,986.50",AECOM LTD.
Neighbourhood Services,Technical Services,Supplies and Services,384999,Miscellaneous Expenses,05-Apr-2013,2577798-60268123-46,904.00,AECOM LTD.
Neighbourhood Services,Technical Services,Supplies and Services,384999,Miscellaneous Expenses,05-Apr-2013,2577994-17782,"3,993.75",MICRO DRAINAGE LTD.
Neighbourhood Services,Technical Services,Supplies and Services,384999,Miscellaneous Expenses,05-Apr-2013,2577994-17844,"3,637.50",MICRO DRAINAGE LTD.
RED HRA,Dale & Valley Homes - HRA Rent Control Account,Premises,150005,Apportioned Exps of Operational Blds,05-Apr-2013,2577872-80001520,"3,386.40",DALE & VALLEY HOMES.
RED HRA,Dale & Valley Homes - HRA Rent Control Account,Premises,150005,Apportioned Exps of Operational Blds,05-Apr-2013,2577872-80001521,"8,980.78",DALE & VALLEY HOMES.
RED HRA,Dale & Valley Homes - HRA Rent Control Account,Premises,150005,Apportioned Exps of Operational Blds,05-Apr-2013,2577872-80001522,"5,490.56",DALE & VALLEY HOMES.
RED HRA,HRA Capital,Construction Work,908105,Construction work,05-Apr-2013,2577810-86520,525.00,AQUEOUS 1ST KWIK FLOW.
RED HRA,HRA Capital,Construction Work,908105,Construction work,05-Apr-2013,2578035-168459,"1,906.92",PLUMBING TRADE SUPPLIES LTD.
RED HRA,HRA Capital,Construction Work,908105,Construction work,05-Apr-2013,2578042-168784,"19,690.89",R BLAND LTD.
RED HRA,HRA Capital,Construction Work,908105,Construction work,05-Apr-2013,2577964-ESHW,"22,015.96",JOHN WADE (HAULAGE) LTD.
RED HRA,HRA Capital,Construction Work,908105,Construction work,05-Apr-2013,2577991-WHILL,"18,567.92",MGL DEMOLITION LTD.
RED HRA,HRA Capital,Construction Work,908105,Construction work,05-Apr-2013,2577883-6527,"1,410.00",DOLPHIN STAIRLIFTS (NORTH EAST) LTD.
RED HRA,HRA Capital,Construction Work,908105,Construction work,05-Apr-2013,2577901-SINV/00003035,"258,706.66",EAST DURHAM HOMES.
RED HRA,HRA Capital,Construction Work,908105,Construction work,05-Apr-2013,2577901-SINV/00003040,"89,365.41",EAST DURHAM HOMES.
RED HRA,HRA Capital,Construction Work,908105,Construction work,05-Apr-2013,2577995-CON61945,"1,190.00",MIS ENVIRONMENTAL LTD.
RED HRA,HRA Capital,Construction Work,908105,Construction work,05-Apr-2013,2577901-SINV/00003037,"17,241.48",EAST DURHAM HOMES.
RED HRA,HRA Capital,Construction Work,908105,Construction work,05-Apr-2013,2577901-SINV/00003038,"7,268.03",EAST DURHAM HOMES.
RED HRA,HRA Capital,Construction Work,908105,Construction work,05-Apr-2013,2577901-SINV/00003039,"21,077.52",EAST DURHAM HOMES.
RED HRA,HRA Capital,Construction Work,908105,Construction work,05-Apr-2013,2577901-SINV/00003041,"2,346.04",EAST DURHAM HOMES.
RED HRA,HRA Capital,Construction Work,908105,Construction work,05-Apr-2013,2577970-12090031,"13,256.00",KIER SERVICES LTD.
RED HRA,HRA Capital,Construction Work,908105,Construction work,05-Apr-2013,2577970-50362CERT1,"97,355.97",KIER SERVICES LTD.
RED HRA,HRA Capital,Construction Work,908105,Construction work,05-Apr-2013,2578085-0157014,860.00,SUNDERLAND COMM HEATING ADVICE & INSULATION PROJECT LTD.
RED HRA,HRA Capital,Construction Work,908105,Construction work,05-Apr-2013,2577901-SINV/00003036,"13,156.80",EAST DURHAM HOMES.
RED HRA,HRA Capital,Construction Work,908105,Construction work,05-Apr-2013,2577917-50338CERT8,"126,218.87",FRANK HASLAM MILAN & CO LTD.
RED HRA,HRA Capital,Construction Work,908105,Construction work,05-Apr-2013,2577917-50349CERT3,"390,407.70",FRANK HASLAM MILAN & CO LTD.
RED HRA,HRA Capital,Construction Work,908105,Construction work,05-Apr-2013,2578120-50343CERT4,"207,647.52",WATES CONSTRUCTION LTD.
RED HRA,HRA Capital,Construction Work,908105,Construction work,05-Apr-2013,2578120-50348CERT2,"285,739.15",WATES CONSTRUCTION LTD.
RED HRA,HRA Capital,Construction Work,908105,Construction work,05-Apr-2013,2578120-50352CERT1,"272,409.24",WATES CONSTRUCTION LTD.
Regeneration & Economic Development,Econ Dev and Regen Financing,Creditors,952146,Creditor-Section 106 agreement,05-Apr-2013,2577911-106MONIESVAT,"9,819.00",ETHERLEY PARISH COUNCIL.
Regeneration & Economic Development,Economic Development and Housing,Premises,125009,Rents,05-Apr-2013,2577878-1260,"3,170.12",DERWENTSIDE COUNCIL FOR VOL SERVICES & VOL BUREAU.
Regeneration & Economic Development,Economic Development and Housing,Premises,125009,Rents,05-Apr-2013,2577878-TP1,"1,738.08",DERWENTSIDE COUNCIL FOR VOL SERVICES & VOL BUREAU.
Regeneration & Economic Development,Economic Development and Housing,Supplies and Services,342053,Computers and Communications,05-Apr-2013,2577802-13031,"8,220.00",ALCIUM SOFTWARE LTD.
Regeneration & Economic Development,Economic Development and Housing,Supplies and Services,352001,Conference Expenses,05-Apr-2013,2577846-210313-1,700.00,CDC ENTERPRISE AGENCY.
Regeneration & Economic Development,Economic Development and Housing,Supplies and Services,352001,Conference Expenses,05-Apr-2013,2577846-210313-2,"3,000.00",CDC ENTERPRISE AGENCY.
Regeneration & Economic Development,Economic Development and Housing,Supplies and Services,352001,Conference Expenses,05-Apr-2013,2577900-5261,750.00,EAST DURHAM BUSINESS SERVICE.
Regeneration & Economic Development,Economic Development and Housing,Supplies and Services,372009,Subscriptions,05-Apr-2013,2577910-25650,"1,860.00",EMQC LTD.
Regeneration & Economic Development,Economic Development and Housing,Other Expenses,914006,Tenants Allowances,05-Apr-2013,2578002,"4,057.82",REDACTED - PAYMENT TO INDIVIDUAL
Regeneration & Economic Development,Economic Development and Housing,"Vehicles, Equipment, Furniture and Fittings",912529,Purchase-equipment,05-Apr-2013,2577866-74849,658.36,CORPORATE COMPUTER SUPPLIES LTD.
Regeneration & Economic Development,Economic Development and Housing,Cap Exp on Grants & Other Financial Assistance (REFCUS),918401,Capital grants,05-Apr-2013,2578098-BIG-2/4/13,"30,473.94",THROWER STONE PROPERTY MANAGEMENT.
Regeneration & Economic Development,Economic Development and Housing,Cap Exp on Grants & Other Financial Assistance (REFCUS),918401,Capital grants,05-Apr-2013,2578000-TBI/GRANT,"1,000.00",MR ALAN LINDSAY.
Regeneration & Economic Development,Economic Development and Housing,Cap Exp on Grants & Other Financial Assistance (REFCUS),918401,Capital grants,05-Apr-2013,2577864-TBI/GRANT,"5,600.00",CONSETT & DISTRICT RUGBY FOOTBALL CLUB.
Regeneration & Economic Development,Economic Development and Housing,Cap Exp on Grants & Other Financial Assistance (REFCUS),918401,Capital grants,05-Apr-2013,2578046-TBIGRANT-IP,773.13,RICE PROPERTY SERVICES LTD.
Regeneration & Economic Development,Economic Development and Housing,Cap Exp on Grants & Other Financial Assistance (REFCUS),918401,Capital grants,05-Apr-2013,2577819-806,"5,062.50",AVENSWAY BUILDING CONTRACTORS LTD.
Regeneration & Economic Development,Economic Development and Housing,Cap Exp on Grants & Other Financial Assistance (REFCUS),918401,Capital grants,05-Apr-2013,2577907-092GE,"3,535.00",ELLIOT HIRD & PARTNERS LTD.
Regeneration & Economic Development,Economic Development and Housing,Cap Exp on Grants & Other Financial Assistance (REFCUS),918401,Capital grants,05-Apr-2013,2577968-DFG449/12,"9,897.65",KASON CONSTRUCTION LTD.
Regeneration & Economic Development,Economic Development and Housing,Cap Exp on Grants & Other Financial Assistance (REFCUS),918401,Capital grants,05-Apr-2013,2577974-LM203,"2,958.44",L & M  BUILDING SOLUTIONS LTD.
Regeneration & Economic Development,Economic Development and Housing,Cap Exp on Grants & Other Financial Assistance (REFCUS),918401,Capital grants,05-Apr-2013,2578065-153,"3,980.00",SHAPE ADAPTATIONS LTD.
Regeneration & Economic Development,Economic Development and Housing,Fees,901001,Internal fees,05-Apr-2013,2578097-SITRH/0005302,926.40,THREE RIVERS HOUSING ASSOCIATION LTD.
Regeneration & Economic Development,Economic Development and Housing,Fees,901001,Internal fees,05-Apr-2013,2578097-SITRH/0005306,574.80,THREE RIVERS HOUSING ASSOCIATION LTD.
Regeneration & Economic Development,Economic Development and Housing,Fees,901001,Internal fees,05-Apr-2013,2578097-SITRH/0005310,"1,096.75",THREE RIVERS HOUSING ASSOCIATION LTD.
Regeneration & Economic Development,Economic Development and Housing,Fees,901001,Internal fees,05-Apr-2013,2578097-SITRH/0005312,524.40,THREE RIVERS HOUSING ASSOCIATION LTD.
Regeneration & Economic Development,Economic Development and Housing,Fees,901001,Internal fees,05-Apr-2013,2578097-SITRH/0005316,966.60,THREE RIVERS HOUSING ASSOCIATION LTD.
Regeneration & Economic Development,Economic Development and Housing,Cap Exp on Grants & Other Financial Assistance (REFCUS),918401,Capital grants,05-Apr-2013,2578099-SIP122923,"1,770.00",THYSSENKRUPP ENCASA LTD.
Regeneration & Economic Development,Economic Development and Housing,Cap Exp on Grants & Other Financial Assistance (REFCUS),918401,Capital grants,05-Apr-2013,2578099-SIP122937,"3,805.00",THYSSENKRUPP ENCASA LTD.
Regeneration & Economic Development,Economic Development and Housing,Cap Exp on Grants & Other Financial Assistance (REFCUS),918401,Capital grants,05-Apr-2013,2578099-SIP122938,"3,985.00",THYSSENKRUPP ENCASA LTD.
Regeneration & Economic Development,Economic Development and Housing,Cap Exp on Grants & Other Financial Assistance (REFCUS),918401,Capital grants,05-Apr-2013,2578099-SIP122939,"4,590.00",THYSSENKRUPP ENCASA LTD.
Regeneration & Economic Development,Economic Development and Housing,Cap Exp on Grants & Other Financial Assistance (REFCUS),918401,Capital grants,05-Apr-2013,2578104-644,"7,974.92",TORONTO ELECTRICAL SERVICES & TESTING (TEST).
Regeneration & Economic Development,"Spatial Policy, Planning, Assets & Environment",Supplies and Services,342051,Computers and Communications,05-Apr-2013,2578016-91250799,"1,458.63",NORTHGATE INFORMATION SOLUTIONS UK LTD.
Regeneration & Economic Development,"Spatial Policy, Planning, Assets & Environment",Supplies and Services,384700,Miscellaneous Expenses,05-Apr-2013,2577935-REIMB,"2,497.40",GROUNDWORK NORTH EAST.
Regeneration & Economic Development,"Spatial Policy, Planning, Assets & Environment",Premises,125009,Rents,05-Apr-2013,2578072-1120-262271,"43,303.25",SMITHS GORE.
Regeneration & Economic Development,Strategy Programmes and Performance,Supplies and Services,384899,Miscellaneous Expenses,05-Apr-2013,2577832-NPD186/1,"14,636.57",BOWES PRE SCHOOL.
Regeneration & Economic Development,Transport,Supplies and Services,304245,Equipment and Materials,05-Apr-2013,2578108-3IN/10218075,"2,800.00",TUNSTALL HEALTHCARE (UK) LTD.
Regeneration & Economic Development,Transport,Supplies and Services,304245,Equipment and Materials,05-Apr-2013,2578108-627544,"7,740.00",TUNSTALL HEALTHCARE (UK) LTD.
Regeneration & Economic Development,Transport,Supplies and Services,384540,Miscellaneous Expenses,05-Apr-2013,2578110-7237,550.00,UK PORTFOLIOS LTD.
Regeneration & Economic Development,Transport,Premises,135005,Water Services,05-Apr-2013,2578020-260100700014053,"7,806.27",NORTHUMBRIAN WATER LTD.
Regeneration & Economic Development,Transport,Third Party Payments,430100,Rendered by Private Contractors,05-Apr-2013,2578021-016651,"37,331.97",NSL LTD.
Regeneration & Economic Development,Transport,Third Party Payments,430100,Rendered by Private Contractors,05-Apr-2013,2578021-016652,"64,472.24",NSL LTD.
Regeneration & Economic Development,Transport,Supplies and Services,384199,Miscellaneous Expenses,05-Apr-2013,2577840-84047,"1,585.57",CALE BRIPARC LTD.
Regeneration & Economic Development,Transport,Construction Work,908105,Construction work,05-Apr-2013,2577868-INS-BISHOP-AUCKLAND,852.21,COUPE LINE LTD.
Regeneration & Economic Development,Transport,Construction Work,908105,Construction work,05-Apr-2013,2577868-LOCATIONS,"2,408.28",COUPE LINE LTD.
Regeneration & Economic Development,Transport,Construction Work,908105,Construction work,05-Apr-2013,2577868-INS-BISHOPAUCKLAND,"1,175.15",COUPE LINE LTD.
Regeneration & Economic Development,Transport,Other Expenses,914001,Other capital expenses,05-Apr-2013,2577868-INS-CROOK-CPE,"1,286.56",COUPE LINE LTD.
Regeneration & Economic Development,Transport,Other Expenses,914001,Other capital expenses,05-Apr-2013,2577868-INS-CROOK-CPE-SOUTH,"2,204.80",COUPE LINE LTD.
Regeneration & Economic Development,Transport,Other Expenses,914001,Other capital expenses,05-Apr-2013,2577868-INS-SEDGEFIELD,543.64,COUPE LINE LTD.
Regeneration & Economic Development,Transport,Other Expenses,914001,Other capital expenses,05-Apr-2013,2577868-INS-SEDGEFIELD.,941.09,COUPE LINE LTD.
Regeneration & Economic Development,Transport,Other Expenses,914001,Other capital expenses,05-Apr-2013,2577868-INS-WILLINGTON,"1,183.45",COUPE LINE LTD.
Regeneration & Economic Development,Transport,Other Expenses,914001,Other capital expenses,05-Apr-2013,2577868-INS-WILLINGTON.,528.47,COUPE LINE LTD.
Regeneration & Economic Development,Transport,Other Expenses,914001,Other capital expenses,05-Apr-2013,2578127-260448,562.00,WM SMITH & SONS (BARNARD CASTLE) LTD.
Regeneration & Economic Development,Transport,Third Party Payments,430106,Rendered by Private Contractors,05-Apr-2013,2577848-42SCHM-F3/2/13-2/3/13,877.50,CENTRAL COACHES.
Regeneration & Economic Development,Transport,Third Party Payments,430106,Rendered by Private Contractors,05-Apr-2013,2577983-1044-25/3/13,"5,614.98",LP TRAVEL LTD.
Regeneration & Economic Development,Transport,Third Party Payments,430106,Rendered by Private Contractors,05-Apr-2013,2577988-17-2/2/13,"1,559.62",MAURICE & SONS.
Regeneration & Economic Development,Transport,Third Party Payments,430106,Rendered by Private Contractors,05-Apr-2013,2577988-PPT2982/3111-3/3/13-31/3/13,"1,363.24",MAURICE & SONS.
Regeneration & Economic Development,Transport,Third Party Payments,430106,Rendered by Private Contractors,05-Apr-2013,2578043-284,"10,058.07",R COOPER T/A DC TAXIS.
Regeneration & Economic Development,Transport,Third Party Payments,430106,Rendered by Private Contractors,05-Apr-2013,2578092-69215,"3,208.65",TGM GROUP LTD T/A CLASSIC COACHES (CONTINENTAL) LTD.
Regeneration & Economic Development,Transport,Premises,145050,Cleaning and Domestic Supplies,05-Apr-2013,2578021-016648,"10,695.45",NSL LTD.
Regeneration & Economic Development,Transport,Third Party Payments,430100,Rendered by Private Contractors,05-Apr-2013,2578074-2803,"1,171.31",SOCIAL RESOURCE CENTRE LTD.
Regeneration & Economic Development,Transport,Third Party Payments,430109,Rendered by Private Contractors,05-Apr-2013,2578048-223489,"1,472.08",RITHERDON & CO LTD.
Adults Wellbeing and Health,Commissioning inc Supporting People,Supplies and Services,338099,Services,08-Apr-2013,2578162-226110,"4,127.18",ALLPAY.NET LTD.
Adults Wellbeing and Health,Head of Adults,Third Party Payments,472101,Purchase of Care,08-Apr-2013,2578673-762,"1,205.71",PREMIER COMMUNITY CARE LTD.
Adults Wellbeing and Health,Head of Adults,Third Party Payments,470101,Purchase of Care,08-Apr-2013,2578459-INV0135,"9,211.53",INTERACT CARE LTD.
Adults Wellbeing and Health,Head of Adults,Summary Income Level,720024,Fees and Charges,08-Apr-2013,2578499-553376,"1,680.00",K & L DECORATORS.
Adults Wellbeing and Health,Head of Adults,Summary Income Level,720024,Fees and Charges,08-Apr-2013,2578703-CLG1600,"1,747.00",RENDLES HOUSE FURNISHER.
Adults Wellbeing and Health,Planning and Performance,Supplies and Services,338091,Services,08-Apr-2013,2578870-11498393-004,770.00,UNIVERSITY OF TEESSIDE.
Assistant Chief Executive,Partnerships & Community Engagement Div.,Cap Exp on Grants & Other Financial Assistance (REFCUS),918004,Contributions to other bodies,08-Apr-2013,2578775-SPECTRUMU,"2,400.00",SPECTRUM LEISURE & MANAGEMENT.
Assistant Chief Executive,Partnerships & Community Engagement Div.,Premises,135005,Water Services,08-Apr-2013,2578629-106105600017025,553.81,NORTHUMBRIAN WATER LTD.
Assistant Chief Executive,Partnerships & Community Engagement Div.,Premises,135005,Water Services,08-Apr-2013,2578629-260101200081003,995.37,NORTHUMBRIAN WATER LTD.
Children and Young Peoples Services,CYPS - Local Authority,Supplies and Services,308011,Furniture,08-Apr-2013,2578904-495862535,602.80,YORKSHIRE PURCHASING ORGANISATION.
Children and Young Peoples Services,CYPS - Local Authority,Premises,135005,Water Services,08-Apr-2013,2578629-306820420029009,"3,313.53",NORTHUMBRIAN WATER LTD.
Children and Young Peoples Services,CYPS - Local Authority,Supplies and Services,384199,Miscellaneous Expenses,08-Apr-2013,2578452-5243,545.75,INGRAMS REMOVERS & STORERS.
Children and Young Peoples Services,CYPS - Local Authority,Transport,230007,Contract Hire,08-Apr-2013,2578580-227,564.00,MR S BALL T/A ABBIE`S TAXIS..
Children and Young Peoples Services,CYPS - Local Authority,Transport,230007,Contract Hire,08-Apr-2013,2578145-87/5023D,990.00,ABLE NOVAK TAXIS.
Children and Young Peoples Services,CYPS - Local Authority,Employees,005001,Pay,08-Apr-2013,2578577,"13,300.00",REDACTED - PAYMENT TO INDIVIDUAL
Children and Young Peoples Services,CYPS - Local Authority,Transport,235005,Public Transport,08-Apr-2013,2578891-0651,"6,581.00",WEARDALE MOTOR SERVICES LTD.
Children and Young Peoples Services,CYPS - Local Authority,Transport,235005,Public Transport,08-Apr-2013,2578406-33963,"4,320.00",GO GATESHEAD LTD.
Children and Young Peoples Services,CYPS - Local Authority,"Vehicles, Equipment, Furniture and Fittings",912701,Computer equipment,08-Apr-2013,2578453-1101156,"1,157.23",INSIGHT DIRECT (UK) LTD.
Children and Young Peoples Services,CYPS - Local Authority,Summary Income Level,705113,Government Grants,08-Apr-2013,2578781-SUM,"5,750.00",ST BEDES CATHOLIC ACADEMY (LANCHESTER).
Children and Young Peoples Services,CYPS - Local Authority,Transport,230007,Contract Hire,08-Apr-2013,2578580-216,900.00,MR S BALL T/A ABBIE`S TAXIS..
Children and Young Peoples Services,CYPS - Local Authority,Transport,230007,Contract Hire,08-Apr-2013,2578145-86-28/2/13,700.00,ABLE NOVAK TAXIS.
Children and Young Peoples Services,CYPS - Local Authority,Transport,230007,Contract Hire,08-Apr-2013,2578580-228,657.50,MR S BALL T/A ABBIE`S TAXIS..
Children and Young Peoples Services,CYPS - Local Authority,Transport,230007,Contract Hire,08-Apr-2013,2578305-1249,"1,440.00",DA TAXIS.
Children and Young Peoples Services,CYPS - Local Authority,Transport,230007,Contract Hire,08-Apr-2013,2578580-224,"2,025.00",MR S BALL T/A ABBIE`S TAXIS..
Children and Young Peoples Services,CYPS - Local Authority,Transport,230007,Contract Hire,08-Apr-2013,2578622-M0005833506,"1,400.00",NORTH TYNESIDE COUNCIL.
Children and Young Peoples Services,CYPS - Local Authority,Supplies and Services,338027,Services,08-Apr-2013,2578316-2,"1,787.50",REDACTED - PAYMENT TO INDIVIDUAL
Children and Young Peoples Services,CYPS - Local Authority,Supplies and Services,304221,Equipment and Materials,08-Apr-2013,2578154-17842674,"1,218.00",AGGREGATE INDUSTRIES UK LTD.
Children and Young Peoples Services,CYPS - Local Authority,Supplies and Services,340001,Postages,08-Apr-2013,2578381-A/CREF54370,"1,000.00",FP TELESET.
Corporate Resources,ICT Services incl. Design and Print,Employees,040149,"Recruitment, Instruction and Training",08-Apr-2013,2578641-INV-0046,"3,000.00",ON BRAND PARTNERS UK LTD.
Corporate Resources,ICT Services incl. Design and Print,Employees,040149,"Recruitment, Instruction and Training",08-Apr-2013,2578641-INV-0047,"4,800.00",ON BRAND PARTNERS UK LTD.
Corporate Resources,ICT Services incl. Design and Print,Supplies and Services,344102,Telephones,08-Apr-2013,2578880-916161-036,"10,500.00",VIRGIN MEDIA LTD.
Corporate Resources,ICT Services incl. Design and Print,Supplies and Services,332029,"Printing, Stationery and Gen Off Exps",08-Apr-2013,2578433-66030,"2,390.00",HILLPRINT MEDIA LTD.
Corporate Resources,ICT Services incl. Design and Print,Supplies and Services,332029,"Printing, Stationery and Gen Off Exps",08-Apr-2013,2578670-591619,"2,275.00",POTTS PRINTERS LTD.
Corporate Resources,ICT Services incl. Design and Print,Supplies and Services,344033,Telephones,08-Apr-2013,2578804-04587309,534.58,TALKTALK BUSINESS.
Corporate Resources,ICT Services incl. Design and Print,Debtors,930167,Debtor-Telephone Holding Account,08-Apr-2013,2578221-VP,506.06,BRITISH TELECOMMUNICATIONS PLC.
Corporate Resources,ICT Services incl. Design and Print,Supplies and Services,340001,Postages,08-Apr-2013,2578715-9042558322,"9,040.47",ROYAL MAIL GROUP PLC.
Corporate Resources,ICT Services incl. Design and Print,Employees,040149,"Recruitment, Instruction and Training",08-Apr-2013,2578692-ICE202059,"1,380.00",QA LTD.
Corporate Resources,Legal & Democratic Services,Supplies and Services,384199,Miscellaneous Expenses,08-Apr-2013,2578433-MI110050,600.00,HILLPRINT MEDIA LTD.
Corporate Resources,Legal & Democratic Services,Creditors,952027,Creditor-lab grp-deds frm memb all,08-Apr-2013,2578335-SUBS,"12,191.85",DURHAM COUNTY COUNCIL LABOUR GROUP.
Corporate Resources,Legal & Democratic Services,Supplies and Services,384199,Miscellaneous Expenses,08-Apr-2013,2578427-L003572,"3,800.00",HELSTON GUNSMITHS LTD.
Corporate Resources,Legal & Democratic Services,Supplies and Services,340001,Postages,08-Apr-2013,2578715-9042668559,"1,073.17",ROYAL MAIL GROUP PLC.
Neighbourhood Services,Direct Services,Supplies and Services,304221,Equipment and Materials,08-Apr-2013,2578857-105920,"1,670.35",TUDOR ENVIRONMENTAL.
Neighbourhood Services,Direct Services,Premises,135005,Water Services,08-Apr-2013,2578629-260100600047003,"2,532.00",NORTHUMBRIAN WATER LTD.
Neighbourhood Services,Direct Services,Transport,230005,Contract Hire,08-Apr-2013,2578204-285418,990.00,BICKFORD TRUCK HIRE LTD.
Neighbourhood Services,Direct Services,Premises,135005,Water Services,08-Apr-2013,2578629-260100800019081,"3,360.60",NORTHUMBRIAN WATER LTD.
Neighbourhood Services,Direct Services,Construction Work,908113,Capital - Landscaping,08-Apr-2013,2578712-268,"3,663.00",ROCKS R US.
Neighbourhood Services,Direct Services,Stock,926900,Stock in hand-Inventory system,08-Apr-2013,2578377-OP/I267416,756.00,FLEMING & CO (MACHINERY) LTD.
Neighbourhood Services,Direct Services,Stock,926900,Stock in hand-Inventory system,08-Apr-2013,2578411-06/453635,"1,674.03",GREENHAM TRADING LTD.
Neighbourhood Services,Direct Services,Stock,926900,Stock in hand-Inventory system,08-Apr-2013,2578485-NS018877,"11,349.50",JOHN MACLEAN & SONS ELECTRICAL (DINGWALL) LTD.
Neighbourhood Services,Direct Services,Stock,926900,Stock in hand-Inventory system,08-Apr-2013,2578627-0668853,504.00,NORTHERN TOOLS & ACCESSORIES.
Neighbourhood Services,Direct Services,Stock,926900,Stock in hand-Inventory system,08-Apr-2013,2578890-15203,944.00,WARD TIMBER LTD.
Neighbourhood Services,Direct Services,Stock,926900,Stock in hand-Inventory system,08-Apr-2013,2578897-80371940,"6,365.80",WOLSELEY UK LTD.
Neighbourhood Services,Direct Services,Stock,926900,Stock in hand-Inventory system,08-Apr-2013,2578897-80371985,854.68,WOLSELEY UK LTD.
Neighbourhood Services,Direct Services,Stock,926900,Stock in hand-Inventory system,08-Apr-2013,2578897-80562869,"1,649.45",WOLSELEY UK LTD.
Neighbourhood Services,Direct Services,Supplies and Services,304357,Equipment and Materials,08-Apr-2013,2578892-150974,664.29,WERNICK HIRE LTD.
Neighbourhood Services,Direct Services,Supplies and Services,304221,Equipment and Materials,08-Apr-2013,2578414-J3646,876.00,GROVE REED.
Neighbourhood Services,Direct Services,Supplies and Services,304221,Equipment and Materials,08-Apr-2013,2578841-94946,"1,374.25",TOMMY WARDLE.
Neighbourhood Services,Direct Services,Supplies and Services,304357,Equipment and Materials,08-Apr-2013,2578892-150976,678.00,WERNICK HIRE LTD.
Neighbourhood Services,Direct Services,Third Party Payments,430100,Rendered by Private Contractors,08-Apr-2013,2578535-655,538.00,LMC ELECTRICAL SERVICES T/A LMC ELECTRICAL & STAIRLIFT SERVICES LTD.
Neighbourhood Services,Direct Services,Supplies and Services,324117,Provisions,08-Apr-2013,2578215-31578367,815.13,BRAKE BROS FOODSERVICE LTD.
Neighbourhood Services,"Heritage, Culture & Libraries",Premises,120037,Energy Costs,08-Apr-2013,2578394-4100350110,"1,627.97",GB OILS T/A BRETT FUELS.
Neighbourhood Services,"Heritage, Culture & Libraries",Supplies and Services,384199,Miscellaneous Expenses,08-Apr-2013,2578620-0067,800.00,NORTH EXHIBITION SERVICES LTD.
Neighbourhood Services,"Heritage, Culture & Libraries",Supplies and Services,338047,Services,08-Apr-2013,2578190-SIN005846,599.27,AVALON PROMOTIONS LTD.
Neighbourhood Services,Sport & Leisure,Premises,135005,Water Services,08-Apr-2013,2578629-225545540108021,"2,532.00",NORTHUMBRIAN WATER LTD.
Neighbourhood Services,Sport & Leisure,Premises,135005,Water Services,08-Apr-2013,2578629-225733450031021,"8,379.00",NORTHUMBRIAN WATER LTD.
Neighbourhood Services,Sport & Leisure,Premises,135005,Water Services,08-Apr-2013,2578629-225545540091023,759.90,NORTHUMBRIAN WATER LTD.
Neighbourhood Services,Sport & Leisure,Supplies and Services,352001,Conference Expenses,08-Apr-2013,2578509-3906,750.00,KNIGHT KAVANAGH & PAGE (KKP).
Neighbourhood Services,Technical Services,Premises,120009,Energy Costs,08-Apr-2013,2578630-NNO7FCZ3,"295,831.14",NPOWER.
Neighbourhood Services,Technical Services,Supplies and Services,304221,Equipment and Materials,08-Apr-2013,2578154-17830149,"1,201.20",AGGREGATE INDUSTRIES UK LTD.
Neighbourhood Services,Technical Services,Supplies and Services,304221,Equipment and Materials,08-Apr-2013,2578154-17836332,"1,224.00",AGGREGATE INDUSTRIES UK LTD.
Neighbourhood Services,Technical Services,Supplies and Services,304221,Equipment and Materials,08-Apr-2013,2578154-17855915,"1,176.08",AGGREGATE INDUSTRIES UK LTD.
Neighbourhood Services,Technical Services,Third Party Payments,430100,Rendered by Private Contractors,08-Apr-2013,2578292-15388INST1,843.99,COUPE LINE LTD.
Neighbourhood Services,Technical Services,Supplies and Services,304358,Equipment and Materials,08-Apr-2013,2578407-0000227689,"1,644.00",GO PLANT LTD T/A GPL HIRE.
Neighbourhood Services,Technical Services,Supplies and Services,304221,Equipment and Materials,08-Apr-2013,2578432-IN017118,"4,615.80",HILL & SMITH LTD.
Neighbourhood Services,Technical Services,Supplies and Services,304357,Equipment and Materials,08-Apr-2013,2578486-1116606,819.00,JOHN NIXON LTD.
Neighbourhood Services,Technical Services,Supplies and Services,304357,Equipment and Materials,08-Apr-2013,2578486-1116607,"1,134.00",JOHN NIXON LTD.
Neighbourhood Services,Technical Services,Supplies and Services,304358,Equipment and Materials,08-Apr-2013,2578487-13399,852.50,JOHN R BUTTERFIELD LTD.
Neighbourhood Services,Technical Services,Supplies and Services,304358,Equipment and Materials,08-Apr-2013,2578487-13443,"1,022.90",JOHN R BUTTERFIELD LTD.
Neighbourhood Services,Technical Services,Supplies and Services,304358,Equipment and Materials,08-Apr-2013,2578487-13477,"1,014.00",JOHN R BUTTERFIELD LTD.
Neighbourhood Services,Technical Services,Supplies and Services,304358,Equipment and Materials,08-Apr-2013,2578487-13478,746.00,JOHN R BUTTERFIELD LTD.
Neighbourhood Services,Technical Services,Supplies and Services,304358,Equipment and Materials,08-Apr-2013,2578487-13479,598.00,JOHN R BUTTERFIELD LTD.
Neighbourhood Services,Technical Services,Supplies and Services,304358,Equipment and Materials,08-Apr-2013,2578487-13482,"1,212.50",JOHN R BUTTERFIELD LTD.
Neighbourhood Services,Technical Services,Supplies and Services,304358,Equipment and Materials,08-Apr-2013,2578487-13487,"1,111.20",JOHN R BUTTERFIELD LTD.
Neighbourhood Services,Technical Services,Supplies and Services,304358,Equipment and Materials,08-Apr-2013,2578487-13495,"1,227.50",JOHN R BUTTERFIELD LTD.
Neighbourhood Services,Technical Services,Supplies and Services,304358,Equipment and Materials,08-Apr-2013,2578487-13527,"1,014.00",JOHN R BUTTERFIELD LTD.
Neighbourhood Services,Technical Services,Supplies and Services,304358,Equipment and Materials,08-Apr-2013,2578487-13530,919.70,JOHN R BUTTERFIELD LTD.
Neighbourhood Services,Technical Services,Supplies and Services,304358,Equipment and Materials,08-Apr-2013,2578487-13538,895.00,JOHN R BUTTERFIELD LTD.
Neighbourhood Services,Technical Services,Supplies and Services,304358,Equipment and Materials,08-Apr-2013,2578487-13542,810.00,JOHN R BUTTERFIELD LTD.
Neighbourhood Services,Technical Services,Supplies and Services,304358,Equipment and Materials,08-Apr-2013,2578487-13575,"1,142.00",JOHN R BUTTERFIELD LTD.
Neighbourhood Services,Technical Services,Supplies and Services,304358,Equipment and Materials,08-Apr-2013,2578487-13576,871.00,JOHN R BUTTERFIELD LTD.
Neighbourhood Services,Technical Services,Supplies and Services,304358,Equipment and Materials,08-Apr-2013,2578487-13584,"1,072.00",JOHN R BUTTERFIELD LTD.
Neighbourhood Services,Technical Services,Supplies and Services,304358,Equipment and Materials,08-Apr-2013,2578487-13635,901.60,JOHN R BUTTERFIELD LTD.
Neighbourhood Services,Technical Services,Supplies and Services,304358,Equipment and Materials,08-Apr-2013,2578487-13641,957.60,JOHN R BUTTERFIELD LTD.
Neighbourhood Services,Technical Services,Supplies and Services,304358,Equipment and Materials,08-Apr-2013,2578749-2013009,"2,271.00",SHIREHAVEN LTD.
Neighbourhood Services,Technical Services,Supplies and Services,304358,Equipment and Materials,08-Apr-2013,2578749-2013014,"1,174.50",SHIREHAVEN LTD.
Neighbourhood Services,Technical Services,Supplies and Services,304221,Equipment and Materials,08-Apr-2013,2578806-9029437901,577.75,TARMAC LTD.
Neighbourhood Services,Technical Services,Supplies and Services,304358,Equipment and Materials,08-Apr-2013,2578822-5580,801.35,TEWARD BROS LTD.
Neighbourhood Services,Technical Services,Supplies and Services,304358,Equipment and Materials,08-Apr-2013,2578822-5597,"3,025.00",TEWARD BROS LTD.
Neighbourhood Services,Technical Services,Supplies and Services,304358,Equipment and Materials,08-Apr-2013,2578822-5752,915.02,TEWARD BROS LTD.
Neighbourhood Services,Technical Services,Supplies and Services,304358,Equipment and Materials,08-Apr-2013,2578839-22032,540.00,TODDS HIGHWAY MAINTENANCE LTD.
Neighbourhood Services,Technical Services,Supplies and Services,304358,Equipment and Materials,08-Apr-2013,2578839-22142,670.00,TODDS HIGHWAY MAINTENANCE LTD.
Neighbourhood Services,Technical Services,Supplies and Services,304358,Equipment and Materials,08-Apr-2013,2578889-35120,"3,260.00",W MARLEY AGRICULTURAL CONTRACTORS LTD.
Neighbourhood Services,Technical Services,Supplies and Services,304358,Equipment and Materials,08-Apr-2013,2578889-35156,583.50,W MARLEY AGRICULTURAL CONTRACTORS LTD.
Neighbourhood Services,Technical Services,Supplies and Services,304358,Equipment and Materials,08-Apr-2013,2578889-35157,706.00,W MARLEY AGRICULTURAL CONTRACTORS LTD.
Neighbourhood Services,Technical Services,Supplies and Services,304357,Equipment and Materials,08-Apr-2013,2578892-150961,664.28,WERNICK HIRE LTD.
Neighbourhood Services,Technical Services,Supplies and Services,304357,Equipment and Materials,08-Apr-2013,2578892-150965,664.29,WERNICK HIRE LTD.
Neighbourhood Services,Technical Services,Supplies and Services,304357,Equipment and Materials,08-Apr-2013,2578892-150966,664.28,WERNICK HIRE LTD.
Neighbourhood Services,Technical Services,Supplies and Services,304357,Equipment and Materials,08-Apr-2013,2578892-150969,664.29,WERNICK HIRE LTD.
